Body Name,Date Paid,Transaction Number,Amount,Supplier Name,Supplier Type,Expense Area,Cost Centre Description,Expense Type
Cambridgeshire County Council,26-Jun-17,22520121-15591960,-42953.54,Mott Macdonald Ltd,Trade Supplier,Transport and Infrastructure Policy & Funding,Transport Strategy and Policy,Capital WIP - other  -  Expenditure / Payments
Cambridgeshire County Council,21-Jun-17,23530161-15551306,-19353.84,Civica Uk Ltd,Trade Supplier,LGSS,3rd Party Contracts,Computer hardware - maintenance
Cambridgeshire County Council,05-Jun-17,23406768-15461159,-9000,Capita Business Services Ltd,Trade Supplier,Corporate Services,One vision - Capita Annual Maintenance,Computer software - annual licence agreement
Cambridgeshire County Council,12-Jun-17,23457026-15498635,-7821.43,Benjamin Uk Ltd,Care Establishment,S&C,Placements - Social Care,Agency Placements - Out County
Cambridgeshire County Council,26-Jun-17,23606395-15591154,-6338.57,The Cambridge Nursing Home,Care Establishment,2 - Commissioning - Older people Pool,City and South - Short term blocks,Short Term Other
Cambridgeshire County Council,01-Jun-17,23131787-15443133,-5544,Thomas Telford Limited,Trade Supplier,Assets & Commissioning,"Eastern Highways Alliance	",Staff Training & Development
Cambridgeshire County Council,26-Jun-17,23493097-15591348,-5389.32,Banya Family Placement Agency,Care Establishment,S&C,Placements - Social Care,Agency Placements - In Cambs
Cambridgeshire County Council,26-Jun-17,23493096-15591347,-5389.32,Banya Family Placement Agency,Care Establishment,S&C,Placements - Social Care,Agency Placements - In Cambs
Cambridgeshire County Council,01-Jun-17,23276760-15440365,-4936,East Cambridgeshire District Council,Other Public Bodies,LGSS Managed,Bottisham Locality and Children's Centre,Business rates
Cambridgeshire County Council,06-Jun-17,23067250-15469343,-4714.35,Break,Charity,S&C,Placements - Social Care,Agency Placements - In Cambs
Cambridgeshire County Council,01-Jun-17,23420753-15443883,-4655,Brookdale Healthcare Limited,Care Establishment,2 - Operations - Learning Disability,LDP Hunts special needs,Respite Independent Sector
Cambridgeshire County Council,22-Jun-17,23450013-15577539,-4655,Brookdale Healthcare Limited,Care Establishment,2 - Operations - Learning Disability,LDP Hunts special needs,Respite Independent Sector
Cambridgeshire County Council,22-Jun-17,23485037-15577557,-4655,Brookdale Healthcare Limited,Care Establishment,2 - Operations - Learning Disability,LDP Hunts special needs,Respite Independent Sector
Cambridgeshire County Council,22-Jun-17,23574228-15577585,-4655,Brookdale Healthcare Limited,Care Establishment,2 - Operations - Learning Disability,LDP Hunts special needs,Respite Independent Sector
Cambridgeshire County Council,22-Jun-17,23574233-15577590,-4655,Brookdale Healthcare Limited,Care Establishment,2 - Operations - Learning Disability,LDP Huntingdonshire Locality - Care,Respite Independent Sector
Cambridgeshire County Council,29-Jun-17,23637105-15609683,-4655,Brookdale Healthcare Limited,Care Establishment,2 - Operations - Learning Disability,LDP Hunts special needs,Respite Independent Sector
Cambridgeshire County Council,01-Jun-17,23420751-15443881,-4655,Brookdale Healthcare Limited,Care Establishment,2 - Operations - Learning Disability,LDP Huntingdonshire Locality - Care,Respite Independent Sector
Cambridgeshire County Council,01-Jun-17,23420769-15443891,-4655,Brookdale Healthcare Limited,Care Establishment,2 - Operations - Learning Disability,LDP Huntingdonshire Locality - Care,Respite Independent Sector
Cambridgeshire County Council,01-Jun-17,23420780-15443900,-4655,Brookdale Healthcare Limited,Care Establishment,2 - Operations - Learning Disability,LDP Hunts special needs,Respite Independent Sector
Cambridgeshire County Council,22-Jun-17,23450011-15577537,-4655,Brookdale Healthcare Limited,Care Establishment,2 - Operations - Learning Disability,LDP Huntingdonshire Locality - Care,Respite Independent Sector
Cambridgeshire County Council,22-Jun-17,23450037-15577552,-4655,Brookdale Healthcare Limited,Care Establishment,2 - Operations - Learning Disability,LDP Hunts special needs,Respite Independent Sector
Cambridgeshire County Council,22-Jun-17,23574240-15577597,-4655,Brookdale Healthcare Limited,Care Establishment,2 - Operations - Learning Disability,LDP Hunts special needs,Respite Independent Sector
Cambridgeshire County Council,29-Jun-17,23637118-15609696,-4655,Brookdale Healthcare Limited,Care Establishment,2 - Operations - Learning Disability,LDP Hunts special needs,Respite Independent Sector
Cambridgeshire County Council,29-Jun-17,23637120-15609698,-4655,Brookdale Healthcare Limited,Care Establishment,2 - Operations - Learning Disability,LDP Hunts special needs,Respite Independent Sector
Cambridgeshire County Council,22-Jun-17,23450015-15577541,-4655,Brookdale Healthcare Limited,Care Establishment,2 - Operations - Learning Disability,LDP Hunts special needs,Respite Independent Sector
Cambridgeshire County Council,22-Jun-17,23450021-15577544,-4655,Brookdale Healthcare Limited,Care Establishment,2 - Operations - Learning Disability,LDP Hunts special needs,Respite Independent Sector
Cambridgeshire County Council,22-Jun-17,23450022-15577545,-4655,Brookdale Healthcare Limited,Care Establishment,2 - Operations - Learning Disability,LDP Hunts special needs,Respite Independent Sector
Cambridgeshire County Council,29-Jun-17,23637107-15609685,-4655,Brookdale Healthcare Limited,Care Establishment,2 - Operations - Learning Disability,LDP Hunts special needs,Respite Independent Sector
Cambridgeshire County Council,22-Jun-17,23450026-15577546,-4655,Brookdale Healthcare Limited,Care Establishment,2 - Operations - Learning Disability,LDP Hunts special needs,Respite Independent Sector
Cambridgeshire County Council,22-Jun-17,23485043-15577562,-4655,Brookdale Healthcare Limited,Care Establishment,2 - Operations - Learning Disability,LDP Huntingdonshire Locality - Care,Respite Independent Sector
Cambridgeshire County Council,29-Jun-17,23637113-15609691,-4655,Brookdale Healthcare Limited,Care Establishment,2 - Operations - Learning Disability,LDP Huntingdonshire Locality - Care,Respite Independent Sector
Cambridgeshire County Council,29-Jun-17,23637114-15609692,-4655,Brookdale Healthcare Limited,Care Establishment,2 - Operations - Learning Disability,LDP Huntingdonshire Locality - Care,Respite Independent Sector
Cambridgeshire County Council,29-Jun-17,23637116-15609694,-4655,Brookdale Healthcare Limited,Care Establishment,2 - Operations - Learning Disability,LDP Huntingdonshire Locality - Care,Respite Independent Sector
Cambridgeshire County Council,01-Jun-17,23420752-15443882,-4655,Brookdale Healthcare Limited,Care Establishment,2 - Operations - Learning Disability,LDP Huntingdonshire Locality - Care,Respite Independent Sector
Cambridgeshire County Council,01-Jun-17,23420772-15443894,-4655,Brookdale Healthcare Limited,Care Establishment,2 - Operations - Learning Disability,LDP Hunts special needs,Respite Independent Sector
Cambridgeshire County Council,22-Jun-17,23485039-15577558,-4655,Brookdale Healthcare Limited,Care Establishment,2 - Operations - Learning Disability,LDP Huntingdonshire Locality - Care,Respite Independent Sector
Cambridgeshire County Council,22-Jun-17,23574222-15577579,-4655,Brookdale Healthcare Limited,Care Establishment,2 - Operations - Learning Disability,LDP Hunts special needs,Respite Independent Sector
Cambridgeshire County Council,22-Jun-17,23574238-15577595,-4655,Brookdale Healthcare Limited,Care Establishment,2 - Operations - Learning Disability,LDP Hunts special needs,Respite Independent Sector
Cambridgeshire County Council,29-Jun-17,23637102-15609680,-4655,Brookdale Healthcare Limited,Care Establishment,2 - Operations - Learning Disability,LDP Huntingdonshire Locality - Care,Respite Independent Sector
Cambridgeshire County Council,01-Jun-17,23420779-15443899,-4655,Brookdale Healthcare Limited,Care Establishment,2 - Operations - Learning Disability,LDP Hunts special needs,Respite Independent Sector
Cambridgeshire County Council,22-Jun-17,23450031-15577550,-4655,Brookdale Healthcare Limited,Care Establishment,2 - Operations - Learning Disability,LDP Hunts special needs,Respite Independent Sector
Cambridgeshire County Council,22-Jun-17,23487645-15577571,-4655,Brookdale Healthcare Limited,Care Establishment,2 - Operations - Learning Disability,LDP Huntingdonshire Locality - Care,Respite Independent Sector
Cambridgeshire County Council,22-Jun-17,23574224-15577581,-4655,Brookdale Healthcare Limited,Care Establishment,2 - Operations - Learning Disability,LDP Hunts special needs,Respite Independent Sector
Cambridgeshire County Council,22-Jun-17,23574230-15577587,-4655,Brookdale Healthcare Limited,Care Establishment,2 - Operations - Learning Disability,LDP Huntingdonshire Locality - Care,Respite Independent Sector
Cambridgeshire County Council,01-Jun-17,23420775-15443896,-4655,Brookdale Healthcare Limited,Care Establishment,2 - Operations - Learning Disability,LDP Huntingdonshire Locality - Care,Respite Independent Sector
Cambridgeshire County Council,22-Jun-17,23450020-15577543,-4655,Brookdale Healthcare Limited,Care Establishment,2 - Operations - Learning Disability,LDP Hunts special needs,Respite Independent Sector
Cambridgeshire County Council,22-Jun-17,23574235-15577592,-4655,Brookdale Healthcare Limited,Care Establishment,2 - Operations - Learning Disability,LDP Hunts special needs,Respite Independent Sector
Cambridgeshire County Council,29-Jun-17,23637119-15609697,-4655,Brookdale Healthcare Limited,Care Establishment,2 - Operations - Learning Disability,LDP Hunts special needs,Respite Independent Sector
Cambridgeshire County Council,01-Jun-17,23420757-15443885,-4655,Brookdale Healthcare Limited,Care Establishment,2 - Operations - Learning Disability,LDP Huntingdonshire Locality - Care,Respite Independent Sector
Cambridgeshire County Council,22-Jun-17,23485036-15577556,-4655,Brookdale Healthcare Limited,Care Establishment,2 - Operations - Learning Disability,LDP Hunts special needs,Respite Independent Sector
Cambridgeshire County Council,22-Jun-17,23487633-15577563,-4655,Brookdale Healthcare Limited,Care Establishment,2 - Operations - Learning Disability,LDP Huntingdonshire Locality - Care,Respite Independent Sector
Cambridgeshire County Council,22-Jun-17,23487642-15577569,-4655,Brookdale Healthcare Limited,Care Establishment,2 - Operations - Learning Disability,LDP Huntingdonshire Locality - Care,Respite Independent Sector
Cambridgeshire County Council,22-Jun-17,23487643-15577570,-4655,Brookdale Healthcare Limited,Care Establishment,2 - Operations - Learning Disability,LDP Huntingdonshire Locality - Care,Respite Independent Sector
Cambridgeshire County Council,22-Jun-17,23487648-15577574,-4655,Brookdale Healthcare Limited,Care Establishment,2 - Operations - Learning Disability,LDP Hunts special needs,Respite Independent Sector
Cambridgeshire County Council,22-Jun-17,23574239-15577596,-4655,Brookdale Healthcare Limited,Care Establishment,2 - Operations - Learning Disability,LDP Hunts special needs,Respite Independent Sector
Cambridgeshire County Council,07-Jun-17,23012665-15471188,-3673.02,Alphabet (Uk) Fleet Management Limited,Trade Supplier,LGSS Managed,LGSS Property Trading Recharges,Leased Vehicle Costs
Cambridgeshire County Council,01-Jun-17,23152005-15435604,-3340.7,Midfield Lodge Care Centre,Care Establishment,5 - Commissioning - Mental Health & Supporting People,OP Blocks - Care Placements,Nursing Independent Sector
Cambridgeshire County Council,01-Jun-17,23152023-15435609,-3340.7,Midfield Lodge Care Centre,Care Establishment,5 - Commissioning - Mental Health & Supporting People,OP Blocks - Care Placements,Nursing Independent Sector
Cambridgeshire County Council,01-Jun-17,23152037-15435613,-3340.7,Midfield Lodge Care Centre,Care Establishment,5 - Commissioning - Mental Health & Supporting People,OP Blocks - Care Placements,Nursing Independent Sector
Cambridgeshire County Council,01-Jun-17,23151999-15435602,-3340.7,Midfield Lodge Care Centre,Care Establishment,5 - Commissioning - Mental Health & Supporting People,OP Blocks - Care Placements,Nursing Independent Sector
Cambridgeshire County Council,01-Jun-17,23152003-15435603,-3340.7,Midfield Lodge Care Centre,Care Establishment,5 - Commissioning - Mental Health & Supporting People,OP Blocks - Care Placements,Nursing Independent Sector
Cambridgeshire County Council,01-Jun-17,23152021-15435607,-3340.7,Midfield Lodge Care Centre,Care Establishment,5 - Commissioning - Mental Health & Supporting People,OP Blocks - Care Placements,Nursing Independent Sector
Cambridgeshire County Council,01-Jun-17,23151988-15435600,-3340.7,Midfield Lodge Care Centre,Care Establishment,5 - Commissioning - Mental Health & Supporting People,OP Blocks - Care Placements,Nursing Independent Sector
Cambridgeshire County Council,01-Jun-17,23151991-15435601,-3340.7,Midfield Lodge Care Centre,Care Establishment,5 - Commissioning - Mental Health & Supporting People,OP Blocks - Care Placements,Nursing Independent Sector
Cambridgeshire County Council,01-Jun-17,23152022-15435608,-3340.7,Midfield Lodge Care Centre,Care Establishment,5 - Commissioning - Mental Health & Supporting People,OP Blocks - Care Placements,Nursing Independent Sector
Cambridgeshire County Council,01-Jun-17,23152029-15435612,-3340.7,Midfield Lodge Care Centre,Care Establishment,5 - Commissioning - Mental Health & Supporting People,OP Blocks - Care Placements,Nursing Independent Sector
Cambridgeshire County Council,01-Jun-17,23152016-15435606,-3340.7,Midfield Lodge Care Centre,Care Establishment,5 - Commissioning - Mental Health & Supporting People,OP Blocks - Care Placements,Nursing Independent Sector
Cambridgeshire County Council,01-Jun-17,23152024-15435610,-3340.7,Midfield Lodge Care Centre,Care Establishment,5 - Commissioning - Mental Health & Supporting People,OP Blocks - Care Placements,Nursing Independent Sector
Cambridgeshire County Council,01-Jun-17,23161113-15435767,-3340.7,Midfield Lodge Care Centre,Care Establishment,5 - Commissioning - Mental Health & Supporting People,OP Blocks - Care Placements,Nursing Independent Sector
Cambridgeshire County Council,01-Jun-17,23161116-15435768,-3340.7,Midfield Lodge Care Centre,Care Establishment,5 - Commissioning - Mental Health & Supporting People,OP Blocks - Care Placements,Nursing Independent Sector
Cambridgeshire County Council,01-Jun-17,23161118-15435769,-3340.7,Midfield Lodge Care Centre,Care Establishment,5 - Commissioning - Mental Health & Supporting People,OP Blocks - Care Placements,Nursing Independent Sector
Cambridgeshire County Council,01-Jun-17,23420767-15443889,-3325,Brookdale Healthcare Limited,Care Establishment,2 - Operations - Learning Disability,LDP Hunts special needs,Respite Independent Sector
Cambridgeshire County Council,22-Jun-17,23574242-15577599,-3325,Brookdale Healthcare Limited,Care Establishment,2 - Operations - Learning Disability,LDP Hunts special needs,Respite Independent Sector
Cambridgeshire County Council,29-Jun-17,23637111-15609689,-3325,Brookdale Healthcare Limited,Care Establishment,2 - Operations - Learning Disability,LDP Hunts special needs,Respite Independent Sector
Cambridgeshire County Council,22-Jun-17,23450029-15577549,-3325,Brookdale Healthcare Limited,Care Establishment,2 - Operations - Learning Disability,LDP Hunts special needs,Respite Independent Sector
Cambridgeshire County Council,22-Jun-17,23487646-15577572,-3325,Brookdale Healthcare Limited,Care Establishment,2 - Operations - Learning Disability,LDP Hunts special needs,Respite Independent Sector
Cambridgeshire County Council,22-Jun-17,23448913-15561025,-3290.7,Social Care Solutions Ltd,Care Establishment,2 - Operations - Learning Disability,LDP Fenland Locality - Care,Supported Living
Cambridgeshire County Council,22-Jun-17,23448914-15561026,-3290.7,Social Care Solutions Ltd,Care Establishment,2 - Operations - Learning Disability,LDP Fenland Locality - Care,Supported Living
Cambridgeshire County Council,26-Jun-17,23589172-15591851,-3200,Huntingdonshire Regional College,Education,S&C,H to S Transport - Post 16,Home to School - Contract
Cambridgeshire County Council,27-Jun-17,23611364-15595291,-3155.76,Key2 Futures Ltd,Trade Supplier,S&C,Placements - Social Care,Agency Placements - In Cambs
Cambridgeshire County Council,12-Jun-17,22290280-15498224,-2977,The Elms Nursing Home,Care Establishment,6 - Commissioning - Mental Health & Supporting People,OP Blocks - Short-term Care Placements,Short Term Other
Cambridgeshire County Council,12-Jun-17,22407893-15498656,-2977,The Elms Nursing Home,Care Establishment,6 - Commissioning - Mental Health & Supporting People,OP Blocks - Short-term Care Placements,Short Term Other
Cambridgeshire County Council,01-Jun-17,23152028-15435611,-2863.46,Midfield Lodge Care Centre,Care Establishment,5 - Commissioning - Mental Health & Supporting People,OP Blocks - Care Placements,Nursing Independent Sector
Cambridgeshire County Council,01-Jun-17,23152015-15435605,-2863.46,Midfield Lodge Care Centre,Care Establishment,5 - Commissioning - Mental Health & Supporting People,OP Blocks - Care Placements,Nursing Independent Sector
Cambridgeshire County Council,22-Jun-17,23448908-15561020,-2820.6,Social Care Solutions Ltd,Care Establishment,2 - Operations - Learning Disability,LDP Fenland Locality - Care,Supported Living
Cambridgeshire County Council,12-Jun-17,22290281-15498225,-2764.36,The Elms Nursing Home,Care Establishment,6 - Commissioning - Mental Health & Supporting People,OP Blocks - Short-term Care Placements,Short Term Other
Cambridgeshire County Council,12-Jun-17,22100203-15498223,-2600,The Elms Nursing Home,Care Establishment,6 - Commissioning - Mental Health & Supporting People,OP Blocks - Short-term Care Placements,Short Term Other
Cambridgeshire County Council,12-Jun-17,23458125-15498537,-2584,Ethelbert Specialist Homes Ltd,Trade Supplier,S&C,Placements - Social Care,Agency Placements - Out County
Cambridgeshire County Council,21-Jun-17,23530163-15551307,-2419.24,Civica Uk Ltd,Trade Supplier,LGSS,3rd Party Contracts,Computer hardware - maintenance
Cambridgeshire County Council,01-Jun-17,23419757-15443620,-2337.29,Dimensions (Uk) Ltd,Care Establishment,2 - Operations - Learning Disability,LDP South Cambs - Special Needs,Supported Living
Cambridgeshire County Council,01-Jun-17,23419761-15443624,-2337.29,Dimensions (Uk) Ltd,Care Establishment,2 - Operations - Learning Disability,LDP Cambs City - Special Needs,Supported Living
Cambridgeshire County Council,01-Jun-17,23419762-15443625,-2337.29,Dimensions (Uk) Ltd,Care Establishment,2 - Operations - Learning Disability,LDP Cambs City - Special Needs,Supported Living
Cambridgeshire County Council,22-Jun-17,23448564-15577643,-2337.29,Dimensions (Uk) Ltd,Care Establishment,2 - Operations - Learning Disability,LDP South Cambs - Special Needs,Supported Living
Cambridgeshire County Council,22-Jun-17,23448568-15577647,-2337.29,Dimensions (Uk) Ltd,Care Establishment,2 - Operations - Learning Disability,LDP Cambs City - Special Needs,Supported Living
Cambridgeshire County Council,22-Jun-17,23546052-15577677,-2337.29,Dimensions (Uk) Ltd,Care Establishment,2 - Operations - Learning Disability,LDP Cambs City - Special Needs,Supported Living
Cambridgeshire County Council,22-Jun-17,23576200-15577741,-2337.29,Dimensions (Uk) Ltd,Care Establishment,2 - Operations - Learning Disability,LDP South Cambs - Special Needs,Supported Living
Cambridgeshire County Council,01-Jun-17,23419770-15443633,-2337.29,Dimensions (Uk) Ltd,Care Establishment,2 - Operations - Learning Disability,LDP South Cambs - Special Needs,Supported Living
Cambridgeshire County Council,22-Jun-17,23448558-15577637,-2337.29,Dimensions (Uk) Ltd,Care Establishment,2 - Operations - Learning Disability,LDP Cambs City - Special Needs,Supported Living
Cambridgeshire County Council,22-Jun-17,23490053-15577659,-2337.29,Dimensions (Uk) Ltd,Care Establishment,2 - Operations - Learning Disability,LDP South Cambs - Special Needs,Supported Living
Cambridgeshire County Council,22-Jun-17,23576208-15577748,-2337.29,Dimensions (Uk) Ltd,Care Establishment,2 - Operations - Learning Disability,LDP South Cambs - Special Needs,Supported Living
Cambridgeshire County Council,22-Jun-17,23448570-15577649,-2337.29,Dimensions (Uk) Ltd,Care Establishment,2 - Operations - Learning Disability,LDP South Cambs - Special Needs,Supported Living
Cambridgeshire County Council,22-Jun-17,23448569-15577648,-2337.29,Dimensions (Uk) Ltd,Care Establishment,2 - Operations - Learning Disability,LDP Cambs City - Special Needs,Supported Living
Cambridgeshire County Council,22-Jun-17,23448562-15577641,-2337.29,Dimensions (Uk) Ltd,Care Establishment,2 - Operations - Learning Disability,LDP South Cambs - Special Needs,Supported Living
Cambridgeshire County Council,22-Jun-17,23564056-15577670,-2337.29,Dimensions (Uk) Ltd,Care Establishment,2 - Operations - Learning Disability,LDP South Cambs - Special Needs,Supported Living
Cambridgeshire County Council,22-Jun-17,23576204-15577745,-2337.29,Dimensions (Uk) Ltd,Care Establishment,2 - Operations - Learning Disability,LDP South Cambs - Special Needs,Supported Living
Cambridgeshire County Council,01-Jun-17,23419760-15443623,-2337.29,Dimensions (Uk) Ltd,Care Establishment,2 - Operations - Learning Disability,LDP Cambs City - Special Needs,Supported Living
Cambridgeshire County Council,22-Jun-17,23448566-15577645,-2337.29,Dimensions (Uk) Ltd,Care Establishment,2 - Operations - Learning Disability,LDP South Cambs - Special Needs,Supported Living
Cambridgeshire County Council,22-Jun-17,23490047-15577653,-2337.29,Dimensions (Uk) Ltd,Care Establishment,2 - Operations - Learning Disability,LDP Cambs City - Special Needs,Supported Living
Cambridgeshire County Council,22-Jun-17,23490051-15577657,-2337.29,Dimensions (Uk) Ltd,Care Establishment,2 - Operations - Learning Disability,LDP Cambs City - Special Needs,Supported Living
Cambridgeshire County Council,22-Jun-17,23490054-15577660,-2337.29,Dimensions (Uk) Ltd,Care Establishment,2 - Operations - Learning Disability,LDP Cambs City - Special Needs,Supported Living
Cambridgeshire County Council,01-Jun-17,23419765-15443628,-2337.29,Dimensions (Uk) Ltd,Care Establishment,2 - Operations - Learning Disability,LDP South Cambs - Special Needs,Supported Living
Cambridgeshire County Council,01-Jun-17,23419771-15443634,-2337.29,Dimensions (Uk) Ltd,Care Establishment,2 - Operations - Learning Disability,LDP Cambs City - Special Needs,Supported Living
Cambridgeshire County Council,22-Jun-17,23490060-15577666,-2337.29,Dimensions (Uk) Ltd,Care Establishment,2 - Operations - Learning Disability,LDP South Cambs - Special Needs,Supported Living
Cambridgeshire County Council,22-Jun-17,23546051-15577676,-2337.29,Dimensions (Uk) Ltd,Care Establishment,2 - Operations - Learning Disability,LDP South Cambs - Special Needs,Supported Living
Cambridgeshire County Council,01-Jun-17,23419767-15443630,-2337.29,Dimensions (Uk) Ltd,Care Establishment,2 - Operations - Learning Disability,LDP Cambs City - Special Needs,Supported Living
Cambridgeshire County Council,22-Jun-17,23448567-15577646,-2337.29,Dimensions (Uk) Ltd,Care Establishment,2 - Operations - Learning Disability,LDP South Cambs - Special Needs,Supported Living
Cambridgeshire County Council,22-Jun-17,23490044-15577650,-2337.29,Dimensions (Uk) Ltd,Care Establishment,2 - Operations - Learning Disability,LDP South Cambs - Special Needs,Supported Living
Cambridgeshire County Council,22-Jun-17,23490050-15577656,-2337.29,Dimensions (Uk) Ltd,Care Establishment,2 - Operations - Learning Disability,LDP Cambs City - Special Needs,Supported Living
Cambridgeshire County Council,22-Jun-17,23490056-15577662,-2337.29,Dimensions (Uk) Ltd,Care Establishment,2 - Operations - Learning Disability,LDP South Cambs - Special Needs,Supported Living
Cambridgeshire County Council,22-Jun-17,23564057-15577671,-2337.29,Dimensions (Uk) Ltd,Care Establishment,2 - Operations - Learning Disability,LDP South Cambs - Special Needs,Supported Living
Cambridgeshire County Council,22-Jun-17,23576205-15577746,-2337.29,Dimensions (Uk) Ltd,Care Establishment,2 - Operations - Learning Disability,LDP South Cambs - Special Needs,Supported Living
Cambridgeshire County Council,26-Jun-17,23493095-15591346,-2020.92,Banya Family Placement Agency,Care Establishment,S&C,Placements - Social Care,Agency Placements - Out County
Cambridgeshire County Council,08-Jun-17,23453886-15483754,-1890.26,Haddon House,Care Establishment,2 - Operations - Learning Disability,LDP Hunts special needs,Residential Independent Sector
Cambridgeshire County Council,08-Jun-17,23453887-15483755,-1890.26,Haddon House,Care Establishment,2 - Operations - Learning Disability,LDP Hunts special needs,Residential Independent Sector
Cambridgeshire County Council,08-Jun-17,23453929-15483797,-1890.26,Haddon House,Care Establishment,2 - Operations - Learning Disability,LDP Hunts special needs,Residential Independent Sector
Cambridgeshire County Council,08-Jun-17,23453880-15483748,-1890.26,Haddon House,Care Establishment,2 - Operations - Learning Disability,LDP Hunts special needs,Residential Independent Sector
Cambridgeshire County Council,22-Jun-17,23486745-15561033,-1645.35,Social Care Solutions Ltd,Care Establishment,2 - Operations - Learning Disability,LDP E Cambs Locality - Care,Supported Living
Cambridgeshire County Council,22-Jun-17,23486749-15561036,-1645.35,Social Care Solutions Ltd,Care Establishment,2 - Operations - Learning Disability,LDP E Cambs Locality - Care,Supported Living
Cambridgeshire County Council,27-Jun-17,23074505-15595298,-1578.48,Key2 Futures Ltd,Trade Supplier,S&C,Placements - Social Care,Agency Placements - In Cambs
Cambridgeshire County Council,30-Jun-17,23645098-15621555,-1568.29,By The Bridge Ltd,Care Establishment,S&C,Placements - Social Care,Agency Placements - Out County
Cambridgeshire County Council,07-Jun-17,23441897-15471215,-1470,Ken Turner,Soletrader,Local Infrastructure & Street Management,Local Projects,Capital WIP - roads  -  Expenditure / Payments
Cambridgeshire County Council,05-Jun-17,23431504-15461118,-1457.75,Virgin Media Ltd,Company,LGSS,Corporate Telephony,External Telephone - rental
Cambridgeshire County Council,22-Jun-17,23486743-15561032,-1410.3,Social Care Solutions Ltd,Care Establishment,2 - Operations - Learning Disability,LDP E Cambs Locality - Care,Supported Living
Cambridgeshire County Council,01-Jun-17,23424652-15443638,-1408.16,Dimensions (Uk) Ltd,Care Establishment,2 - Operations - Learning Disability,LDP South Cambs Locality - Care,Supported Living
Cambridgeshire County Council,22-Jun-17,23569756-15565959,-1364.85,Thera East Anglia,Care Establishment,2 - Operations - Learning Disability,LDP E Cambs Special Needs,Supported Living
Cambridgeshire County Council,01-Jun-17,23394763-15439457,-1334.84,Craegmoor Syi East Anglia Priory,Care Establishment,4 - Commissioning - Mental Health & Supporting People,E Cambs & Fenland Mental Health Team,Supported Living
Cambridgeshire County Council,22-Jun-17,23581256-15577773,-1314.22,Dimensions (Uk) Ltd,Care Establishment,2 - Operations - Learning Disability,LDP South Cambs Locality - Care,Supported Living
Cambridgeshire County Council,26-Jun-17,23592157-15591153,-1311.42,The Cambridge Nursing Home,Care Establishment,2 - Commissioning - Older people Pool,City and South - Short term blocks,Short Term Other
Cambridgeshire County Council,22-Jun-17,23566651-15557588,-1266.59,2 Cheveril Lane (Voyage),Care Establishment,2 - Operations - Learning Disability,LDP Huntingdonshire Locality - Care,Supported Living
Cambridgeshire County Council,22-Jun-17,23450353-15557535,-1266.59,2 Cheveril Lane (Voyage),Care Establishment,2 - Operations - Learning Disability,LDP Hunts special needs,Supported Living
Cambridgeshire County Council,22-Jun-17,23488833-15557556,-1266.59,2 Cheveril Lane (Voyage),Care Establishment,2 - Operations - Learning Disability,LDP Huntingdonshire Locality - Care,Supported Living
Cambridgeshire County Council,22-Jun-17,23491123-15557561,-1266.59,2 Cheveril Lane (Voyage),Care Establishment,2 - Operations - Learning Disability,LDP Hunts special needs,Supported Living
Cambridgeshire County Council,22-Jun-17,23566633-15557574,-1266.59,2 Cheveril Lane (Voyage),Care Establishment,2 - Operations - Learning Disability,LDP Hunts special needs,Supported Living
Cambridgeshire County Council,22-Jun-17,23566647-15557584,-1266.59,2 Cheveril Lane (Voyage),Care Establishment,2 - Operations - Learning Disability,LDP Huntingdonshire Locality - Care,Supported Living
Cambridgeshire County Council,22-Jun-17,23566656-15557593,-1266.59,2 Cheveril Lane (Voyage),Care Establishment,2 - Operations - Learning Disability,LDP Huntingdonshire Locality - Care,Supported Living
Cambridgeshire County Council,22-Jun-17,23572693-15557599,-1266.59,2 Cheveril Lane (Voyage),Care Establishment,2 - Operations - Learning Disability,LDP Huntingdonshire Locality - Care,Supported Living
Cambridgeshire County Council,22-Jun-17,23450366-15557548,-1266.59,2 Cheveril Lane (Voyage),Care Establishment,2 - Operations - Learning Disability,LDP Hunts special needs,Supported Living
Cambridgeshire County Council,22-Jun-17,23488830-15557553,-1266.59,2 Cheveril Lane (Voyage),Care Establishment,2 - Operations - Learning Disability,LDP Huntingdonshire Locality - Care,Supported Living
Cambridgeshire County Council,22-Jun-17,23566646-15557583,-1266.59,2 Cheveril Lane (Voyage),Care Establishment,2 - Operations - Learning Disability,LDP Huntingdonshire Locality - Care,Supported Living
Cambridgeshire County Council,22-Jun-17,23423343-15557515,-1266.59,2 Cheveril Lane (Voyage),Care Establishment,2 - Operations - Learning Disability,LDP Hunts special needs,Supported Living
Cambridgeshire County Council,22-Jun-17,23422267-15557526,-1266.59,2 Cheveril Lane (Voyage),Care Establishment,2 - Operations - Learning Disability,LDP Hunts special needs,Supported Living
Cambridgeshire County Council,22-Jun-17,23488827-15557551,-1266.59,2 Cheveril Lane (Voyage),Care Establishment,2 - Operations - Learning Disability,LDP Huntingdonshire Locality - Care,Supported Living
Cambridgeshire County Council,22-Jun-17,23566636-15557576,-1266.59,2 Cheveril Lane (Voyage),Care Establishment,2 - Operations - Learning Disability,LDP Huntingdonshire Locality - Care,Supported Living
Cambridgeshire County Council,22-Jun-17,23423342-15557514,-1266.59,2 Cheveril Lane (Voyage),Care Establishment,2 - Operations - Learning Disability,LDP Huntingdonshire Locality - Care,Supported Living
Cambridgeshire County Council,22-Jun-17,23423346-15557518,-1266.59,2 Cheveril Lane (Voyage),Care Establishment,2 - Operations - Learning Disability,LDP Huntingdonshire Locality - Care,Supported Living
Cambridgeshire County Council,22-Jun-17,23450354-15557536,-1266.59,2 Cheveril Lane (Voyage),Care Establishment,2 - Operations - Learning Disability,LDP Huntingdonshire Locality - Care,Supported Living
Cambridgeshire County Council,22-Jun-17,23450361-15557543,-1266.59,2 Cheveril Lane (Voyage),Care Establishment,2 - Operations - Learning Disability,LDP Hunts special needs,Supported Living
Cambridgeshire County Council,22-Jun-17,23450363-15557545,-1266.59,2 Cheveril Lane (Voyage),Care Establishment,2 - Operations - Learning Disability,LDP Hunts special needs,Supported Living
Cambridgeshire County Council,22-Jun-17,23488825-15557549,-1266.59,2 Cheveril Lane (Voyage),Care Establishment,2 - Operations - Learning Disability,LDP Hunts special needs,Supported Living
Cambridgeshire County Council,22-Jun-17,23491128-15557566,-1266.59,2 Cheveril Lane (Voyage),Care Establishment,2 - Operations - Learning Disability,LDP Huntingdonshire Locality - Care,Supported Living
Cambridgeshire County Council,22-Jun-17,23491129-15557567,-1266.59,2 Cheveril Lane (Voyage),Care Establishment,2 - Operations - Learning Disability,LDP Huntingdonshire Locality - Care,Supported Living
Cambridgeshire County Council,22-Jun-17,23422269-15557528,-1266.59,2 Cheveril Lane (Voyage),Care Establishment,2 - Operations - Learning Disability,LDP Huntingdonshire Locality - Care,Supported Living
Cambridgeshire County Council,22-Jun-17,23450347-15557529,-1266.59,2 Cheveril Lane (Voyage),Care Establishment,2 - Operations - Learning Disability,LDP Huntingdonshire Locality - Care,Supported Living
Cambridgeshire County Council,22-Jun-17,23450350-15557532,-1266.59,2 Cheveril Lane (Voyage),Care Establishment,2 - Operations - Learning Disability,LDP Hunts special needs,Supported Living
Cambridgeshire County Council,22-Jun-17,23488831-15557554,-1266.59,2 Cheveril Lane (Voyage),Care Establishment,2 - Operations - Learning Disability,LDP Huntingdonshire Locality - Care,Supported Living
Cambridgeshire County Council,22-Jun-17,23491125-15557563,-1266.59,2 Cheveril Lane (Voyage),Care Establishment,2 - Operations - Learning Disability,LDP Huntingdonshire Locality - Care,Supported Living
Cambridgeshire County Council,22-Jun-17,23572694-15557600,-1266.59,2 Cheveril Lane (Voyage),Care Establishment,2 - Operations - Learning Disability,LDP Huntingdonshire Locality - Care,Supported Living
Cambridgeshire County Council,22-Jun-17,23422262-15557521,-1266.59,2 Cheveril Lane (Voyage),Care Establishment,2 - Operations - Learning Disability,LDP Huntingdonshire Locality - Care,Supported Living
Cambridgeshire County Council,22-Jun-17,23566638-15557577,-1266.59,2 Cheveril Lane (Voyage),Care Establishment,2 - Operations - Learning Disability,LDP Hunts special needs,Supported Living
Cambridgeshire County Council,22-Jun-17,23423347-15557519,-1266.59,2 Cheveril Lane (Voyage),Care Establishment,2 - Operations - Learning Disability,LDP Huntingdonshire Locality - Care,Supported Living
Cambridgeshire County Council,22-Jun-17,23423348-15557520,-1266.59,2 Cheveril Lane (Voyage),Care Establishment,2 - Operations - Learning Disability,LDP Hunts special needs,Supported Living
Cambridgeshire County Council,22-Jun-17,23422268-15557527,-1266.59,2 Cheveril Lane (Voyage),Care Establishment,2 - Operations - Learning Disability,LDP Huntingdonshire Locality - Care,Supported Living
Cambridgeshire County Council,22-Jun-17,23450348-15557530,-1266.59,2 Cheveril Lane (Voyage),Care Establishment,2 - Operations - Learning Disability,LDP Huntingdonshire Locality - Care,Supported Living
Cambridgeshire County Council,22-Jun-17,23450351-15557533,-1266.59,2 Cheveril Lane (Voyage),Care Establishment,2 - Operations - Learning Disability,LDP Hunts special needs,Supported Living
Cambridgeshire County Council,08-Jun-17,23454109-15482229,-1198.04,Caretech Community Services,Care Establishment,2 - Operations - Learning Disability,LDP South Cambs Locality - Care,Residential Independent Sector
Cambridgeshire County Council,08-Jun-17,23454088-15482245,-1198.04,Caretech Community Services,Care Establishment,2 - Operations - Learning Disability,LDP South Cambs - Special Needs,Residential Independent Sector
Cambridgeshire County Council,08-Jun-17,23454668-15482264,-1198.04,Caretech Community Services,Care Establishment,2 - Operations - Learning Disability,LDP South Cambs Locality - Care,Residential Independent Sector
Cambridgeshire County Council,08-Jun-17,23423016-15482150,-1198.04,Caretech Community Services,Care Establishment,2 - Operations - Learning Disability,LDP South Cambs Locality - Care,Residential Independent Sector
Cambridgeshire County Council,15-Jun-17,23487976-15533688,-1198.04,Caretech Community Services,Care Establishment,2 - Operations - Learning Disability,LDP South Cambs - Special Needs,Residential Independent Sector
Cambridgeshire County Council,15-Jun-17,23487997-15533656,-1198.04,Caretech Community Services,Care Establishment,2 - Operations - Learning Disability,LDP South Cambs - Special Needs,Residential Independent Sector
Cambridgeshire County Council,15-Jun-17,23487939-15533665,-1198.04,Caretech Community Services,Care Establishment,2 - Operations - Learning Disability,LDP South Cambs - Special Needs,Residential Independent Sector
Cambridgeshire County Council,22-Jun-17,23583223-15565761,-1198.04,Caretech Community Services,Care Establishment,2 - Operations - Learning Disability,LDP South Cambs Locality - Care,Residential Independent Sector
Cambridgeshire County Council,22-Jun-17,23583253-15565731,-1198.04,Caretech Community Services,Care Establishment,2 - Operations - Learning Disability,LDP South Cambs - Special Needs,Residential Independent Sector
Cambridgeshire County Council,22-Jun-17,23583257-15565735,-1198.04,Caretech Community Services,Care Establishment,2 - Operations - Learning Disability,LDP South Cambs - Special Needs,Residential Independent Sector
Cambridgeshire County Council,22-Jun-17,23583264-15565742,-1198.04,Caretech Community Services,Care Establishment,2 - Operations - Learning Disability,LDP South Cambs Locality - Care,Residential Independent Sector
Cambridgeshire County Council,08-Jun-17,23454119-15482239,-1198.04,Caretech Community Services,Care Establishment,2 - Operations - Learning Disability,LDP South Cambs - Special Needs,Residential Independent Sector
Cambridgeshire County Council,08-Jun-17,23454676-15482272,-1198.04,Caretech Community Services,Care Establishment,2 - Operations - Learning Disability,LDP South Cambs - Special Needs,Residential Independent Sector
Cambridgeshire County Council,08-Jun-17,23423010-15482144,-1198.04,Caretech Community Services,Care Establishment,2 - Operations - Learning Disability,LDP South Cambs Locality - Care,Residential Independent Sector
Cambridgeshire County Council,08-Jun-17,23423032-15482166,-1198.04,Caretech Community Services,Care Establishment,2 - Operations - Learning Disability,LDP South Cambs - Special Needs,Residential Independent Sector
Cambridgeshire County Council,08-Jun-17,23423037-15482171,-1198.04,Caretech Community Services,Care Establishment,2 - Operations - Learning Disability,LDP South Cambs Locality - Care,Residential Independent Sector
Cambridgeshire County Council,08-Jun-17,23421013-15482186,-1198.04,Caretech Community Services,Care Establishment,2 - Operations - Learning Disability,LDP South Cambs - Special Needs,Residential Independent Sector
Cambridgeshire County Council,08-Jun-17,23421017-15482190,-1198.04,Caretech Community Services,Care Establishment,2 - Operations - Learning Disability,LDP South Cambs Locality - Care,Residential Independent Sector
Cambridgeshire County Council,15-Jun-17,23487977-15533689,-1198.04,Caretech Community Services,Care Establishment,2 - Operations - Learning Disability,LDP South Cambs Locality - Care,Residential Independent Sector
Cambridgeshire County Council,15-Jun-17,23487987-15533697,-1198.04,Caretech Community Services,Care Establishment,2 - Operations - Learning Disability,LDP South Cambs Locality - Care,Residential Independent Sector
Cambridgeshire County Council,15-Jun-17,23487914-15533640,-1198.04,Caretech Community Services,Care Establishment,2 - Operations - Learning Disability,LDP South Cambs Locality - Care,Residential Independent Sector
Cambridgeshire County Council,15-Jun-17,23487943-15533668,-1198.04,Caretech Community Services,Care Establishment,2 - Operations - Learning Disability,LDP South Cambs - Special Needs,Residential Independent Sector
Cambridgeshire County Council,22-Jun-17,23583226-15565764,-1198.04,Caretech Community Services,Care Establishment,2 - Operations - Learning Disability,LDP South Cambs - Special Needs,Residential Independent Sector
Cambridgeshire County Council,22-Jun-17,23583231-15565769,-1198.04,Caretech Community Services,Care Establishment,2 - Operations - Learning Disability,LDP South Cambs - Special Needs,Residential Independent Sector
Cambridgeshire County Council,22-Jun-17,23583249-15565727,-1198.04,Caretech Community Services,Care Establishment,2 - Operations - Learning Disability,LDP South Cambs Locality - Care,Residential Independent Sector
Cambridgeshire County Council,22-Jun-17,23583273-15565751,-1198.04,Caretech Community Services,Care Establishment,2 - Operations - Learning Disability,LDP South Cambs - Special Needs,Residential Independent Sector
Cambridgeshire County Council,08-Jun-17,23454115-15482235,-1198.04,Caretech Community Services,Care Establishment,2 - Operations - Learning Disability,LDP South Cambs Locality - Care,Residential Independent Sector
Cambridgeshire County Council,08-Jun-17,23454084-15482241,-1198.04,Caretech Community Services,Care Establishment,2 - Operations - Learning Disability,LDP South Cambs - Special Needs,Residential Independent Sector
Cambridgeshire County Council,08-Jun-17,23454089-15482246,-1198.04,Caretech Community Services,Care Establishment,2 - Operations - Learning Disability,LDP South Cambs - Special Needs,Residential Independent Sector
Cambridgeshire County Council,08-Jun-17,23454103-15482260,-1198.04,Caretech Community Services,Care Establishment,2 - Operations - Learning Disability,LDP South Cambs - Special Needs,Residential Independent Sector
Cambridgeshire County Council,08-Jun-17,23423006-15482140,-1198.04,Caretech Community Services,Care Establishment,2 - Operations - Learning Disability,LDP South Cambs Locality - Care,Residential Independent Sector
Cambridgeshire County Council,08-Jun-17,23423008-15482142,-1198.04,Caretech Community Services,Care Establishment,2 - Operations - Learning Disability,LDP South Cambs - Special Needs,Residential Independent Sector
Cambridgeshire County Council,08-Jun-17,23423015-15482149,-1198.04,Caretech Community Services,Care Establishment,2 - Operations - Learning Disability,LDP South Cambs Locality - Care,Residential Independent Sector
Cambridgeshire County Council,08-Jun-17,23423027-15482161,-1198.04,Caretech Community Services,Care Establishment,2 - Operations - Learning Disability,LDP South Cambs - Special Needs,Residential Independent Sector
Cambridgeshire County Council,08-Jun-17,23421018-15482191,-1198.04,Caretech Community Services,Care Establishment,2 - Operations - Learning Disability,LDP South Cambs - Special Needs,Residential Independent Sector
Cambridgeshire County Council,15-Jun-17,23487961-15533677,-1198.04,Caretech Community Services,Care Establishment,2 - Operations - Learning Disability,LDP South Cambs - Special Needs,Residential Independent Sector
Cambridgeshire County Council,15-Jun-17,23487974-15533687,-1198.04,Caretech Community Services,Care Establishment,2 - Operations - Learning Disability,LDP South Cambs Locality - Care,Residential Independent Sector
Cambridgeshire County Council,15-Jun-17,23487986-15533696,-1198.04,Caretech Community Services,Care Establishment,2 - Operations - Learning Disability,LDP South Cambs Locality - Care,Residential Independent Sector
Cambridgeshire County Council,15-Jun-17,23487916-15533641,-1198.04,Caretech Community Services,Care Establishment,2 - Operations - Learning Disability,LDP South Cambs - Special Needs,Residential Independent Sector
Cambridgeshire County Council,15-Jun-17,23487927-15533647,-1198.04,Caretech Community Services,Care Establishment,2 - Operations - Learning Disability,LDP South Cambs Locality - Care,Residential Independent Sector
Cambridgeshire County Council,15-Jun-17,23487991-15533652,-1198.04,Caretech Community Services,Care Establishment,2 - Operations - Learning Disability,LDP South Cambs - Special Needs,Residential Independent Sector
Cambridgeshire County Council,15-Jun-17,23488001-15533659,-1198.04,Caretech Community Services,Care Establishment,2 - Operations - Learning Disability,LDP South Cambs - Special Needs,Residential Independent Sector
Cambridgeshire County Council,22-Jun-17,23583246-15565724,-1198.04,Caretech Community Services,Care Establishment,2 - Operations - Learning Disability,LDP South Cambs - Special Needs,Residential Independent Sector
Cambridgeshire County Council,22-Jun-17,23583254-15565732,-1198.04,Caretech Community Services,Care Establishment,2 - Operations - Learning Disability,LDP South Cambs Locality - Care,Residential Independent Sector
Cambridgeshire County Council,22-Jun-17,23583266-15565744,-1198.04,Caretech Community Services,Care Establishment,2 - Operations - Learning Disability,LDP South Cambs Locality - Care,Residential Independent Sector
Cambridgeshire County Council,08-Jun-17,23454670-15482266,-1198.04,Caretech Community Services,Care Establishment,2 - Operations - Learning Disability,LDP South Cambs Locality - Care,Residential Independent Sector
Cambridgeshire County Council,08-Jun-17,23454673-15482269,-1198.04,Caretech Community Services,Care Establishment,2 - Operations - Learning Disability,LDP South Cambs Locality - Care,Residential Independent Sector
Cambridgeshire County Council,08-Jun-17,23423012-15482146,-1198.04,Caretech Community Services,Care Establishment,2 - Operations - Learning Disability,LDP South Cambs Locality - Care,Residential Independent Sector
Cambridgeshire County Council,08-Jun-17,23421015-15482188,-1198.04,Caretech Community Services,Care Establishment,2 - Operations - Learning Disability,LDP South Cambs Locality - Care,Residential Independent Sector
Cambridgeshire County Council,15-Jun-17,23487984-15533694,-1198.04,Caretech Community Services,Care Establishment,2 - Operations - Learning Disability,LDP South Cambs - Special Needs,Residential Independent Sector
Cambridgeshire County Council,15-Jun-17,23488003-15533661,-1198.04,Caretech Community Services,Care Establishment,2 - Operations - Learning Disability,LDP South Cambs - Special Needs,Residential Independent Sector
Cambridgeshire County Council,22-Jun-17,23583241-15565779,-1198.04,Caretech Community Services,Care Establishment,2 - Operations - Learning Disability,LDP South Cambs Locality - Care,Residential Independent Sector
Cambridgeshire County Council,22-Jun-17,23583244-15565722,-1198.04,Caretech Community Services,Care Establishment,2 - Operations - Learning Disability,LDP South Cambs Locality - Care,Residential Independent Sector
Cambridgeshire County Council,22-Jun-17,23583267-15565745,-1198.04,Caretech Community Services,Care Establishment,2 - Operations - Learning Disability,LDP South Cambs - Special Needs,Residential Independent Sector
Cambridgeshire County Council,22-Jun-17,23583218-15565756,-1198.04,Caretech Community Services,Care Establishment,2 - Operations - Learning Disability,LDP South Cambs Locality - Care,Residential Independent Sector
Cambridgeshire County Council,22-Jun-17,23583219-15565757,-1198.04,Caretech Community Services,Care Establishment,2 - Operations - Learning Disability,LDP South Cambs Locality - Care,Residential Independent Sector
Cambridgeshire County Council,08-Jun-17,23454113-15482233,-1198.04,Caretech Community Services,Care Establishment,2 - Operations - Learning Disability,LDP South Cambs Locality - Care,Residential Independent Sector
Cambridgeshire County Council,08-Jun-17,23454118-15482238,-1198.04,Caretech Community Services,Care Establishment,2 - Operations - Learning Disability,LDP South Cambs - Special Needs,Residential Independent Sector
Cambridgeshire County Council,08-Jun-17,23454105-15482262,-1198.04,Caretech Community Services,Care Establishment,2 - Operations - Learning Disability,LDP South Cambs Locality - Care,Residential Independent Sector
Cambridgeshire County Council,08-Jun-17,23454678-15482274,-1198.04,Caretech Community Services,Care Establishment,2 - Operations - Learning Disability,LDP South Cambs Locality - Care,Residential Independent Sector
Cambridgeshire County Council,08-Jun-17,23454681-15482277,-1198.04,Caretech Community Services,Care Establishment,2 - Operations - Learning Disability,LDP South Cambs Locality - Care,Residential Independent Sector
Cambridgeshire County Council,08-Jun-17,23421008-15482181,-1198.04,Caretech Community Services,Care Establishment,2 - Operations - Learning Disability,LDP South Cambs - Special Needs,Residential Independent Sector
Cambridgeshire County Council,08-Jun-17,23421016-15482189,-1198.04,Caretech Community Services,Care Establishment,2 - Operations - Learning Disability,LDP South Cambs - Special Needs,Residential Independent Sector
Cambridgeshire County Council,15-Jun-17,23487910-15533637,-1198.04,Caretech Community Services,Care Establishment,2 - Operations - Learning Disability,LDP South Cambs - Special Needs,Residential Independent Sector
Cambridgeshire County Council,15-Jun-17,23487929-15533648,-1198.04,Caretech Community Services,Care Establishment,2 - Operations - Learning Disability,LDP South Cambs Locality - Care,Residential Independent Sector
Cambridgeshire County Council,22-Jun-17,23583248-15565726,-1198.04,Caretech Community Services,Care Establishment,2 - Operations - Learning Disability,LDP South Cambs Locality - Care,Residential Independent Sector
Cambridgeshire County Council,22-Jun-17,23583270-15565748,-1198.04,Caretech Community Services,Care Establishment,2 - Operations - Learning Disability,LDP South Cambs - Special Needs,Residential Independent Sector
Cambridgeshire County Council,22-Jun-17,23583272-15565750,-1198.04,Caretech Community Services,Care Establishment,2 - Operations - Learning Disability,LDP South Cambs Locality - Care,Residential Independent Sector
Cambridgeshire County Council,08-Jun-17,23454117-15482237,-1198.04,Caretech Community Services,Care Establishment,2 - Operations - Learning Disability,LDP South Cambs Locality - Care,Residential Independent Sector
Cambridgeshire County Council,08-Jun-17,23454083-15482240,-1198.04,Caretech Community Services,Care Establishment,2 - Operations - Learning Disability,LDP South Cambs - Special Needs,Residential Independent Sector
Cambridgeshire County Council,08-Jun-17,23454095-15482252,-1198.04,Caretech Community Services,Care Establishment,2 - Operations - Learning Disability,LDP South Cambs - Special Needs,Residential Independent Sector
Cambridgeshire County Council,08-Jun-17,23454099-15482256,-1198.04,Caretech Community Services,Care Establishment,2 - Operations - Learning Disability,LDP South Cambs Locality - Care,Residential Independent Sector
Cambridgeshire County Council,08-Jun-17,23454686-15482282,-1198.04,Caretech Community Services,Care Establishment,2 - Operations - Learning Disability,LDP South Cambs Locality - Care,Residential Independent Sector
Cambridgeshire County Council,08-Jun-17,23423011-15482145,-1198.04,Caretech Community Services,Care Establishment,2 - Operations - Learning Disability,LDP South Cambs Locality - Care,Residential Independent Sector
Cambridgeshire County Council,08-Jun-17,23423034-15482168,-1198.04,Caretech Community Services,Care Establishment,2 - Operations - Learning Disability,LDP South Cambs Locality - Care,Residential Independent Sector
Cambridgeshire County Council,08-Jun-17,23423039-15482173,-1198.04,Caretech Community Services,Care Establishment,2 - Operations - Learning Disability,LDP South Cambs - Special Needs,Residential Independent Sector
Cambridgeshire County Council,08-Jun-17,23421003-15482176,-1198.04,Caretech Community Services,Care Establishment,2 - Operations - Learning Disability,LDP South Cambs - Special Needs,Residential Independent Sector
Cambridgeshire County Council,15-Jun-17,23487941-15533667,-1198.04,Caretech Community Services,Care Establishment,2 - Operations - Learning Disability,LDP South Cambs - Special Needs,Residential Independent Sector
Cambridgeshire County Council,22-Jun-17,23583234-15565772,-1198.04,Caretech Community Services,Care Establishment,2 - Operations - Learning Disability,LDP South Cambs Locality - Care,Residential Independent Sector
Cambridgeshire County Council,22-Jun-17,23583271-15565749,-1198.04,Caretech Community Services,Care Establishment,2 - Operations - Learning Disability,LDP South Cambs - Special Needs,Residential Independent Sector
Cambridgeshire County Council,22-Jun-17,23583215-15565753,-1198.04,Caretech Community Services,Care Establishment,2 - Operations - Learning Disability,LDP South Cambs Locality - Care,Residential Independent Sector
Cambridgeshire County Council,08-Jun-17,23454110-15482230,-1198.04,Caretech Community Services,Care Establishment,2 - Operations - Learning Disability,LDP South Cambs Locality - Care,Residential Independent Sector
Cambridgeshire County Council,08-Jun-17,23454112-15482232,-1198.04,Caretech Community Services,Care Establishment,2 - Operations - Learning Disability,LDP South Cambs Locality - Care,Residential Independent Sector
Cambridgeshire County Council,08-Jun-17,23454086-15482243,-1198.04,Caretech Community Services,Care Establishment,2 - Operations - Learning Disability,LDP South Cambs Locality - Care,Residential Independent Sector
Cambridgeshire County Council,08-Jun-17,23454087-15482244,-1198.04,Caretech Community Services,Care Establishment,2 - Operations - Learning Disability,LDP South Cambs - Special Needs,Residential Independent Sector
Cambridgeshire County Council,08-Jun-17,23454092-15482249,-1198.04,Caretech Community Services,Care Establishment,2 - Operations - Learning Disability,LDP South Cambs Locality - Care,Residential Independent Sector
Cambridgeshire County Council,08-Jun-17,23423022-15482156,-1198.04,Caretech Community Services,Care Establishment,2 - Operations - Learning Disability,LDP South Cambs - Special Needs,Residential Independent Sector
Cambridgeshire County Council,08-Jun-17,23423023-15482157,-1198.04,Caretech Community Services,Care Establishment,2 - Operations - Learning Disability,LDP South Cambs Locality - Care,Residential Independent Sector
Cambridgeshire County Council,08-Jun-17,23423031-15482165,-1198.04,Caretech Community Services,Care Establishment,2 - Operations - Learning Disability,LDP South Cambs Locality - Care,Residential Independent Sector
Cambridgeshire County Council,08-Jun-17,23421002-15482175,-1198.04,Caretech Community Services,Care Establishment,2 - Operations - Learning Disability,LDP South Cambs - Special Needs,Residential Independent Sector
Cambridgeshire County Council,15-Jun-17,23487990-15533699,-1198.04,Caretech Community Services,Care Establishment,2 - Operations - Learning Disability,LDP South Cambs - Special Needs,Residential Independent Sector
Cambridgeshire County Council,15-Jun-17,23487959-15533676,-1198.04,Caretech Community Services,Care Establishment,2 - Operations - Learning Disability,LDP South Cambs Locality - Care,Residential Independent Sector
Cambridgeshire County Council,15-Jun-17,23487967-15533682,-1198.04,Caretech Community Services,Care Establishment,2 - Operations - Learning Disability,LDP South Cambs Locality - Care,Residential Independent Sector
Cambridgeshire County Council,15-Jun-17,23487970-15533684,-1198.04,Caretech Community Services,Care Establishment,2 - Operations - Learning Disability,LDP South Cambs - Special Needs,Residential Independent Sector
Cambridgeshire County Council,15-Jun-17,23487985-15533695,-1198.04,Caretech Community Services,Care Establishment,2 - Operations - Learning Disability,LDP South Cambs Locality - Care,Residential Independent Sector
Cambridgeshire County Council,22-Jun-17,23583224-15565762,-1198.04,Caretech Community Services,Care Establishment,2 - Operations - Learning Disability,LDP South Cambs - Special Needs,Residential Independent Sector
Cambridgeshire County Council,08-Jun-17,23454114-15482234,-1198.04,Caretech Community Services,Care Establishment,2 - Operations - Learning Disability,LDP South Cambs - Special Needs,Residential Independent Sector
Cambridgeshire County Council,08-Jun-17,23423020-15482154,-1198.04,Caretech Community Services,Care Establishment,2 - Operations - Learning Disability,LDP South Cambs Locality - Care,Residential Independent Sector
Cambridgeshire County Council,08-Jun-17,23423025-15482159,-1198.04,Caretech Community Services,Care Establishment,2 - Operations - Learning Disability,LDP South Cambs Locality - Care,Residential Independent Sector
Cambridgeshire County Council,08-Jun-17,23423026-15482160,-1198.04,Caretech Community Services,Care Establishment,2 - Operations - Learning Disability,LDP South Cambs Locality - Care,Residential Independent Sector
Cambridgeshire County Council,08-Jun-17,23423035-15482169,-1198.04,Caretech Community Services,Care Establishment,2 - Operations - Learning Disability,LDP South Cambs - Special Needs,Residential Independent Sector
Cambridgeshire County Council,15-Jun-17,23487962-15533678,-1198.04,Caretech Community Services,Care Establishment,2 - Operations - Learning Disability,LDP South Cambs - Special Needs,Residential Independent Sector
Cambridgeshire County Council,15-Jun-17,23487933-15533650,-1198.04,Caretech Community Services,Care Establishment,2 - Operations - Learning Disability,LDP South Cambs Locality - Care,Residential Independent Sector
Cambridgeshire County Council,15-Jun-17,23488006-15533663,-1198.04,Caretech Community Services,Care Establishment,2 - Operations - Learning Disability,LDP South Cambs - Special Needs,Residential Independent Sector
Cambridgeshire County Council,22-Jun-17,23583242-15565780,-1198.04,Caretech Community Services,Care Establishment,2 - Operations - Learning Disability,LDP South Cambs Locality - Care,Residential Independent Sector
Cambridgeshire County Council,22-Jun-17,23583260-15565738,-1198.04,Caretech Community Services,Care Establishment,2 - Operations - Learning Disability,LDP South Cambs - Special Needs,Residential Independent Sector
Cambridgeshire County Council,22-Jun-17,23583262-15565740,-1198.04,Caretech Community Services,Care Establishment,2 - Operations - Learning Disability,LDP South Cambs Locality - Care,Residential Independent Sector
Cambridgeshire County Council,22-Jun-17,23583216-15565754,-1198.04,Caretech Community Services,Care Establishment,2 - Operations - Learning Disability,LDP South Cambs - Special Needs,Residential Independent Sector
Cambridgeshire County Council,08-Jun-17,23448094-15481867,-1162.79,The Manor Cheshire Home,Care Establishment,2 - Operations - Learning Disability,LDP Huntingdonshire Locality - Care,Residential Independent Sector
Cambridgeshire County Council,08-Jun-17,23448093-15481866,-1162.79,The Manor Cheshire Home,Care Establishment,2 - Operations - Learning Disability,LDP Huntingdonshire Locality - Care,Residential Independent Sector
Cambridgeshire County Council,08-Jun-17,23448095-15481868,-1162.79,The Manor Cheshire Home,Care Establishment,2 - Operations - Learning Disability,LDP Huntingdonshire Locality - Care,Residential Independent Sector
Cambridgeshire County Council,22-Jun-17,23578269-15572987,-1145.58,Midas Care Ltd,Care Establishment,3 - Operations - Countywide Services,Countywide PD Service - Care,Day and Domicillary Care Independent Sector
Cambridgeshire County Council,22-Jun-17,23578326-15573009,-1145.58,Midas Care Ltd,Care Establishment,3 - Operations - Countywide Services,Countywide PD Service - Care,Day and Domicillary Care Independent Sector
Cambridgeshire County Council,22-Jun-17,23578310-15573004,-1145.58,Midas Care Ltd,Care Establishment,3 - Operations - Countywide Services,Countywide PD Service - Care,Day and Domicillary Care Independent Sector
Cambridgeshire County Council,22-Jun-17,23578319-15573006,-1145.58,Midas Care Ltd,Care Establishment,3 - Operations - Countywide Services,Countywide PD Service - Care,Day and Domicillary Care Independent Sector
Cambridgeshire County Council,22-Jun-17,23581250-15577769,-1126.47,Dimensions (Uk) Ltd,Care Establishment,2 - Operations - Learning Disability,LDP South Cambs Locality - Care,Supported Living
Cambridgeshire County Council,15-Jun-17,23487153-15532486,-1100,Woodlands Care Centre,Care Establishment,4 - Commissioning - Mental Health & Supporting People,Cambridge Mental Health team,Residential Independent Sector
Cambridgeshire County Council,15-Jun-17,23487148-15532503,-1100,Woodlands Care Centre,Care Establishment,4 - Commissioning - Mental Health & Supporting People,Cambridge Mental Health team,Residential Independent Sector
Cambridgeshire County Council,15-Jun-17,23491221-15532601,-1100,Woodlands Care Centre,Care Establishment,4 - Commissioning - Mental Health & Supporting People,Cambridge Mental Health team,Residential Independent Sector
Cambridgeshire County Council,15-Jun-17,23487144-15532500,-1100,Woodlands Care Centre,Care Establishment,4 - Commissioning - Mental Health & Supporting People,Cambridge Mental Health team,Residential Independent Sector
Cambridgeshire County Council,15-Jun-17,23487149-15532504,-1100,Woodlands Care Centre,Care Establishment,4 - Commissioning - Mental Health & Supporting People,Cambridge Mental Health team,Residential Independent Sector
Cambridgeshire County Council,15-Jun-17,23491219-15532599,-1100,Woodlands Care Centre,Care Establishment,4 - Commissioning - Mental Health & Supporting People,Cambridge Mental Health team,Residential Independent Sector
Cambridgeshire County Council,15-Jun-17,23487137-15532495,-1100,Woodlands Care Centre,Care Establishment,4 - Commissioning - Mental Health & Supporting People,Cambridge Mental Health team,Residential Independent Sector
Cambridgeshire County Council,15-Jun-17,23487150-15532505,-1100,Woodlands Care Centre,Care Establishment,4 - Commissioning - Mental Health & Supporting People,Cambridge Mental Health team,Residential Independent Sector
Cambridgeshire County Council,15-Jun-17,23487138-15532496,-1100,Woodlands Care Centre,Care Establishment,4 - Commissioning - Mental Health & Supporting People,Cambridge Mental Health team,Residential Independent Sector
Cambridgeshire County Council,15-Jun-17,23487141-15532498,-1100,Woodlands Care Centre,Care Establishment,4 - Commissioning - Mental Health & Supporting People,Cambridge Mental Health team,Residential Independent Sector
Cambridgeshire County Council,15-Jun-17,23487158-15532489,-1100,Woodlands Care Centre,Care Establishment,4 - Commissioning - Mental Health & Supporting People,Cambridge Mental Health team,Residential Independent Sector
Cambridgeshire County Council,22-Jun-17,23580689-15560996,-1098.8,Woodlands Care Centre,Care Establishment,2 - Commissioning - Older people Pool,Older People - City & South,Nursing Independent Sector
Cambridgeshire County Council,22-Jun-17,23580687-15560994,-1098.8,Woodlands Care Centre,Care Establishment,2 - Commissioning - Older people Pool,Older People - City & South,Nursing Independent Sector
Cambridgeshire County Council,15-Jun-17,23424788-15538171,-1091.65,Guyatt House Care Ltd,Care Establishment,2 - Operations - Learning Disability,LDP E Cambs Locality - Care,Day and Domicillary Care Independent Sector
Cambridgeshire County Council,15-Jun-17,23487672-15538177,-1091.65,Guyatt House Care Ltd,Care Establishment,2 - Operations - Learning Disability,LDP E Cambs Special Needs,Day and Domicillary Care Independent Sector
Cambridgeshire County Council,15-Jun-17,23449098-15538173,-1091.65,Guyatt House Care Ltd,Care Establishment,2 - Operations - Learning Disability,LDP E Cambs Special Needs,Day and Domicillary Care Independent Sector
Cambridgeshire County Council,22-Jun-17,23582919-15577311,-1091.65,Guyatt House Care Ltd,Care Establishment,2 - Operations - Learning Disability,LDP E Cambs Special Needs,Day and Domicillary Care Independent Sector
Cambridgeshire County Council,08-Jun-17,23453907-15483775,-1080.15,Haddon House,Care Establishment,2 - Operations - Learning Disability,LDP Hunts special needs,Residential Independent Sector
Cambridgeshire County Council,19-Jun-17,23477067-15542261,-1080,Randstad Education Limited,Education,E&P,SEMH Support Programme,Pay - Supply Cover - Long-term supply
Cambridgeshire County Council,22-Jun-17,23449037-15555800,-1030,Hunters Healthcare (Hunters Down),Care Establishment,2 - Commissioning - Older people Pool,Hunts O P  Team,Residential Independent Sector
Cambridgeshire County Council,22-Jun-17,23450000-15555776,-1030,Hunters Healthcare (Hunters Down),Care Establishment,2 - Commissioning - Older people Pool,Hunts O P  Team,Residential Independent Sector
Cambridgeshire County Council,22-Jun-17,23449989-15555771,-1030,Hunters Healthcare (Hunters Down),Care Establishment,2 - Commissioning - Older people Pool,Hunts O P  Team,Residential Independent Sector
Cambridgeshire County Council,22-Jun-17,23449999-15555775,-1030,Hunters Healthcare (Hunters Down),Care Establishment,2 - Commissioning - Older people Pool,Hunts O P  Team,Residential Independent Sector
Cambridgeshire County Council,22-Jun-17,23450003-15555779,-1030,Hunters Healthcare (Hunters Down),Care Establishment,2 - Commissioning - Older people Pool,Hunts O P  Team,Residential Independent Sector
Cambridgeshire County Council,22-Jun-17,23449990-15555772,-1030,Hunters Healthcare (Hunters Down),Care Establishment,2 - Commissioning - Older people Pool,Hunts O P  Team,Residential Independent Sector
Cambridgeshire County Council,22-Jun-17,23450004-15555780,-1030,Hunters Healthcare (Hunters Down),Care Establishment,2 - Commissioning - Older people Pool,Hunts O P  Team,Residential Independent Sector
Cambridgeshire County Council,22-Jun-17,23449994-15555773,-1030,Hunters Healthcare (Hunters Down),Care Establishment,2 - Commissioning - Older people Pool,Hunts O P  Team,Residential Independent Sector
Cambridgeshire County Council,22-Jun-17,23449035-15555798,-1030,Hunters Healthcare (Hunters Down),Care Establishment,2 - Commissioning - Older people Pool,Hunts O P  Team,Residential Independent Sector
Cambridgeshire County Council,22-Jun-17,23449036-15555799,-1030,Hunters Healthcare (Hunters Down),Care Establishment,2 - Commissioning - Older people Pool,Hunts O P  Team,Residential Independent Sector
Cambridgeshire County Council,22-Jun-17,23449038-15555801,-1030,Hunters Healthcare (Hunters Down),Care Establishment,2 - Commissioning - Older people Pool,Hunts O P  Team,Residential Independent Sector
Cambridgeshire County Council,22-Jun-17,23449987-15555770,-1030,Hunters Healthcare (Hunters Down),Care Establishment,2 - Commissioning - Older people Pool,Hunts O P  Team,Residential Independent Sector
Cambridgeshire County Council,08-Jun-17,23454096-15482253,-1026.89,Caretech Community Services,Care Establishment,2 - Operations - Learning Disability,LDP South Cambs Locality - Care,Residential Independent Sector
Cambridgeshire County Council,15-Jun-17,23487989-15533698,-1026.89,Caretech Community Services,Care Establishment,2 - Operations - Learning Disability,LDP South Cambs - Special Needs,Residential Independent Sector
Cambridgeshire County Council,22-Jun-17,23583229-15565767,-1026.89,Caretech Community Services,Care Establishment,2 - Operations - Learning Disability,LDP South Cambs - Special Needs,Residential Independent Sector
Cambridgeshire County Council,08-Jun-17,23421009-15482182,-1026.89,Caretech Community Services,Care Establishment,2 - Operations - Learning Disability,LDP South Cambs - Special Needs,Residential Independent Sector
Cambridgeshire County Council,29-Jun-17,23638626-15618872,-990,Bramley Court,Care Establishment,2 - Commissioning - Older people Pool,Older People - City & South,Residential Independent Sector
Cambridgeshire County Council,29-Jun-17,23638627-15618873,-990,Bramley Court,Care Establishment,2 - Commissioning - Older people Pool,Older People - City & South,Residential Independent Sector
Cambridgeshire County Council,29-Jun-17,23638628-15618874,-990,Bramley Court,Care Establishment,2 - Commissioning - Older people Pool,Older People - City & South,Residential Independent Sector
Cambridgeshire County Council,29-Jun-17,23638624-15618870,-990,Bramley Court,Care Establishment,2 - Commissioning - Older people Pool,Older People - City & South,Residential Independent Sector
Cambridgeshire County Council,29-Jun-17,23638618-15618864,-990,Bramley Court,Care Establishment,2 - Commissioning - Older people Pool,Older People - City & South,Residential Independent Sector
Cambridgeshire County Council,29-Jun-17,23638619-15618865,-990,Bramley Court,Care Establishment,2 - Commissioning - Older people Pool,Older People - City & South,Residential Independent Sector
Cambridgeshire County Council,29-Jun-17,23638621-15618867,-990,Bramley Court,Care Establishment,2 - Commissioning - Older people Pool,Older People - City & South,Residential Independent Sector
Cambridgeshire County Council,29-Jun-17,23638625-15618871,-990,Bramley Court,Care Establishment,2 - Commissioning - Older people Pool,Older People - City & South,Residential Independent Sector
Cambridgeshire County Council,29-Jun-17,23638629-15618875,-990,Bramley Court,Care Establishment,2 - Commissioning - Older people Pool,Older People - City & South,Residential Independent Sector
Cambridgeshire County Council,29-Jun-17,23638630-15618876,-990,Bramley Court,Care Establishment,2 - Commissioning - Older people Pool,Older People - City & South,Residential Independent Sector
Cambridgeshire County Council,29-Jun-17,23638617-15618863,-990,Bramley Court,Care Establishment,2 - Commissioning - Older people Pool,Older People - City & South,Residential Independent Sector
Cambridgeshire County Council,29-Jun-17,23638620-15618866,-990,Bramley Court,Care Establishment,2 - Commissioning - Older people Pool,Older People - City & South,Residential Independent Sector
Cambridgeshire County Council,22-Jun-17,23448897-15561009,-987.21,Social Care Solutions Ltd,Care Establishment,2 - Operations - Learning Disability,LDP Fenland Locality - Care,Day and Domicillary Care Independent Sector
Cambridgeshire County Council,22-Jun-17,23448906-15561018,-987.21,Social Care Solutions Ltd,Care Establishment,2 - Operations - Learning Disability,LDP Fenland Locality - Care,Day and Domicillary Care Independent Sector
Cambridgeshire County Council,22-Jun-17,23579444-15565641,-986.63,Porlock House,Care Establishment,2 - Operations - Learning Disability,LDP Cambs City - Special Needs,Daycare
Cambridgeshire County Council,22-Jun-17,23579469-15565663,-986.63,Porlock House,Care Establishment,2 - Operations - Learning Disability,LDP Cambs City - Special Needs,Daycare
Cambridgeshire County Council,22-Jun-17,23579436-15565634,-986.63,Porlock House,Care Establishment,2 - Operations - Learning Disability,LDP Cambs City - Special Needs,Daycare
Cambridgeshire County Council,22-Jun-17,23579468-15565662,-986.63,Porlock House,Care Establishment,2 - Operations - Learning Disability,LDP Cambs City - Special Needs,Daycare
Cambridgeshire County Council,22-Jun-17,23579450-15565647,-986.63,Porlock House,Care Establishment,2 - Operations - Learning Disability,LDP Cambs City - Special Needs,Daycare
Cambridgeshire County Council,08-Jun-17,23447283-15479149,-967.3,St Josephs (Nugent Care),Care Establishment,3 - Operations - Countywide Services,Countywide PD Service - Care,Residential Independent Sector
Cambridgeshire County Council,08-Jun-17,23447299-15479165,-967.3,St Josephs (Nugent Care),Care Establishment,3 - Operations - Countywide Services,Countywide PD Service - Care,Residential Independent Sector
Cambridgeshire County Council,01-Jun-17,23262015-15437118,-947.55,Bramley Court,Care Establishment,2 - Commissioning - Older people Pool,Older People Mental Health City & South,Nursing Independent Sector
Cambridgeshire County Council,01-Jun-17,23262017-15437120,-947.55,Bramley Court,Care Establishment,2 - Commissioning - Older people Pool,Older People Mental Health City & South,Nursing Independent Sector
Cambridgeshire County Council,01-Jun-17,23262018-15437121,-947.55,Bramley Court,Care Establishment,2 - Commissioning - Older people Pool,Older People Mental Health City & South,Nursing Independent Sector
Cambridgeshire County Council,01-Jun-17,23262013-15437116,-947.55,Bramley Court,Care Establishment,2 - Commissioning - Older people Pool,Older People Mental Health City & South,Nursing Independent Sector
Cambridgeshire County Council,01-Jun-17,23262020-15437123,-947.55,Bramley Court,Care Establishment,2 - Commissioning - Older people Pool,Older People Mental Health City & South,Nursing Independent Sector
Cambridgeshire County Council,01-Jun-17,23262014-15437117,-947.55,Bramley Court,Care Establishment,2 - Commissioning - Older people Pool,Older People Mental Health City & South,Nursing Independent Sector
Cambridgeshire County Council,01-Jun-17,23262019-15437122,-947.55,Bramley Court,Care Establishment,2 - Commissioning - Older people Pool,Older People Mental Health City & South,Nursing Independent Sector
Cambridgeshire County Council,01-Jun-17,23262021-15437124,-947.55,Bramley Court,Care Establishment,2 - Commissioning - Older people Pool,Older People Mental Health City & South,Nursing Independent Sector
Cambridgeshire County Council,01-Jun-17,23262022-15437125,-947.55,Bramley Court,Care Establishment,2 - Commissioning - Older people Pool,Older People Mental Health City & South,Nursing Independent Sector
Cambridgeshire County Council,01-Jun-17,23262024-15437127,-947.55,Bramley Court,Care Establishment,2 - Commissioning - Older people Pool,Older People Mental Health City & South,Nursing Independent Sector
Cambridgeshire County Council,15-Jun-17,23491217-15532597,-942.86,Woodlands Care Centre,Care Establishment,4 - Commissioning - Mental Health & Supporting People,Cambridge Mental Health team,Residential Independent Sector
Cambridgeshire County Council,01-Jun-17,23368834-15440007,-926.11,Making Space#1,Care Establishment,3 - Operations - Countywide Services,Countywide PD Service - Care,Nursing Independent Sector
Cambridgeshire County Council,01-Jun-17,23368836-15440009,-926.11,Making Space#1,Care Establishment,3 - Operations - Countywide Services,Countywide PD Service - Care,Nursing Independent Sector
Cambridgeshire County Council,01-Jun-17,23419319-15440045,-926.11,Making Space#1,Care Establishment,3 - Operations - Countywide Services,Countywide PD Service - Care,Nursing Independent Sector
Cambridgeshire County Council,01-Jun-17,23368787-15439960,-926.11,Making Space#1,Care Establishment,3 - Operations - Countywide Services,Countywide PD Service - Care,Nursing Independent Sector
Cambridgeshire County Council,01-Jun-17,23368796-15439969,-926.11,Making Space#1,Care Establishment,3 - Operations - Countywide Services,Countywide PD Service - Care,Nursing Independent Sector
Cambridgeshire County Council,01-Jun-17,23368806-15439979,-926.11,Making Space#1,Care Establishment,3 - Operations - Countywide Services,Countywide PD Service - Care,Nursing Independent Sector
Cambridgeshire County Council,01-Jun-17,23368807-15439980,-926.11,Making Space#1,Care Establishment,3 - Operations - Countywide Services,Countywide PD Service - Care,Nursing Independent Sector
Cambridgeshire County Council,01-Jun-17,23368815-15439988,-926.11,Making Space#1,Care Establishment,3 - Operations - Countywide Services,Countywide PD Service - Care,Nursing Independent Sector
Cambridgeshire County Council,01-Jun-17,23421281-15440104,-926.11,Making Space#1,Care Establishment,3 - Operations - Countywide Services,Countywide PD Service - Care,Nursing Independent Sector
Cambridgeshire County Council,08-Jun-17,23447207-15483955,-926.11,Making Space#1,Care Establishment,3 - Operations - Countywide Services,Countywide PD Service - Care,Nursing Independent Sector
Cambridgeshire County Council,08-Jun-17,23447145-15483893,-926.11,Making Space#1,Care Establishment,3 - Operations - Countywide Services,Countywide PD Service - Care,Nursing Independent Sector
Cambridgeshire County Council,08-Jun-17,23447156-15483904,-926.11,Making Space#1,Care Establishment,3 - Operations - Countywide Services,Countywide PD Service - Care,Nursing Independent Sector
Cambridgeshire County Council,08-Jun-17,23447169-15483917,-926.11,Making Space#1,Care Establishment,3 - Operations - Countywide Services,Countywide PD Service - Care,Nursing Independent Sector
Cambridgeshire County Council,08-Jun-17,23447180-15483928,-926.11,Making Space#1,Care Establishment,3 - Operations - Countywide Services,Countywide PD Service - Care,Nursing Independent Sector
Cambridgeshire County Council,08-Jun-17,23447181-15483929,-926.11,Making Space#1,Care Establishment,3 - Operations - Countywide Services,Countywide PD Service - Care,Nursing Independent Sector
Cambridgeshire County Council,15-Jun-17,23481972-15537350,-926.11,Making Space#1,Care Establishment,3 - Operations - Countywide Services,Countywide PD Service - Care,Nursing Independent Sector
Cambridgeshire County Council,15-Jun-17,23489800-15537377,-926.11,Making Space#1,Care Establishment,3 - Operations - Countywide Services,Countywide PD Service - Care,Nursing Independent Sector
Cambridgeshire County Council,15-Jun-17,23489815-15537392,-926.11,Making Space#1,Care Establishment,3 - Operations - Countywide Services,Countywide PD Service - Care,Nursing Independent Sector
Cambridgeshire County Council,01-Jun-17,23368833-15440006,-926.11,Making Space#1,Care Establishment,3 - Operations - Countywide Services,Countywide PD Service - Care,Nursing Independent Sector
Cambridgeshire County Council,01-Jun-17,23368835-15440008,-926.11,Making Space#1,Care Establishment,3 - Operations - Countywide Services,Countywide PD Service - Care,Nursing Independent Sector
Cambridgeshire County Council,01-Jun-17,23419317-15440043,-926.11,Making Space#1,Care Establishment,3 - Operations - Countywide Services,Countywide PD Service - Care,Nursing Independent Sector
Cambridgeshire County Council,01-Jun-17,23419321-15440047,-926.11,Making Space#1,Care Establishment,3 - Operations - Countywide Services,Countywide PD Service - Care,Nursing Independent Sector
Cambridgeshire County Council,01-Jun-17,23419324-15440050,-926.11,Making Space#1,Care Establishment,3 - Operations - Countywide Services,Countywide PD Service - Care,Nursing Independent Sector
Cambridgeshire County Council,01-Jun-17,23419326-15440052,-926.11,Making Space#1,Care Establishment,3 - Operations - Countywide Services,Countywide PD Service - Care,Nursing Independent Sector
Cambridgeshire County Council,01-Jun-17,23368779-15439952,-926.11,Making Space#1,Care Establishment,3 - Operations - Countywide Services,Countywide PD Service - Care,Nursing Independent Sector
Cambridgeshire County Council,01-Jun-17,23368780-15439953,-926.11,Making Space#1,Care Establishment,3 - Operations - Countywide Services,Countywide PD Service - Care,Nursing Independent Sector
Cambridgeshire County Council,01-Jun-17,23368793-15439966,-926.11,Making Space#1,Care Establishment,3 - Operations - Countywide Services,Countywide PD Service - Care,Nursing Independent Sector
Cambridgeshire County Council,01-Jun-17,23368799-15439972,-926.11,Making Space#1,Care Establishment,3 - Operations - Countywide Services,Countywide PD Service - Care,Nursing Independent Sector
Cambridgeshire County Council,01-Jun-17,23421280-15440103,-926.11,Making Space#1,Care Establishment,3 - Operations - Countywide Services,Countywide PD Service - Care,Nursing Independent Sector
Cambridgeshire County Council,08-Jun-17,23447146-15483894,-926.11,Making Space#1,Care Establishment,3 - Operations - Countywide Services,Countywide PD Service - Care,Nursing Independent Sector
Cambridgeshire County Council,08-Jun-17,23447178-15483926,-926.11,Making Space#1,Care Establishment,3 - Operations - Countywide Services,Countywide PD Service - Care,Nursing Independent Sector
Cambridgeshire County Council,15-Jun-17,23489817-15537394,-926.11,Making Space#1,Care Establishment,3 - Operations - Countywide Services,Countywide PD Service - Care,Nursing Independent Sector
Cambridgeshire County Council,01-Jun-17,23368825-15439998,-926.11,Making Space#1,Care Establishment,3 - Operations - Countywide Services,Countywide PD Service - Care,Nursing Independent Sector
Cambridgeshire County Council,01-Jun-17,23368837-15440010,-926.11,Making Space#1,Care Establishment,3 - Operations - Countywide Services,Countywide PD Service - Care,Nursing Independent Sector
Cambridgeshire County Council,01-Jun-17,23419306-15440032,-926.11,Making Space#1,Care Establishment,3 - Operations - Countywide Services,Countywide PD Service - Care,Nursing Independent Sector
Cambridgeshire County Council,01-Jun-17,23419304-15440054,-926.11,Making Space#1,Care Establishment,3 - Operations - Countywide Services,Countywide PD Service - Care,Nursing Independent Sector
Cambridgeshire County Council,01-Jun-17,23368798-15439971,-926.11,Making Space#1,Care Establishment,3 - Operations - Countywide Services,Countywide PD Service - Care,Nursing Independent Sector
Cambridgeshire County Council,01-Jun-17,23368818-15439991,-926.11,Making Space#1,Care Establishment,3 - Operations - Countywide Services,Countywide PD Service - Care,Nursing Independent Sector
Cambridgeshire County Council,08-Jun-17,23447208-15483956,-926.11,Making Space#1,Care Establishment,3 - Operations - Countywide Services,Countywide PD Service - Care,Nursing Independent Sector
Cambridgeshire County Council,08-Jun-17,23447152-15483900,-926.11,Making Space#1,Care Establishment,3 - Operations - Countywide Services,Countywide PD Service - Care,Nursing Independent Sector
Cambridgeshire County Council,08-Jun-17,23447162-15483910,-926.11,Making Space#1,Care Establishment,3 - Operations - Countywide Services,Countywide PD Service - Care,Nursing Independent Sector
Cambridgeshire County Council,08-Jun-17,23447167-15483915,-926.11,Making Space#1,Care Establishment,3 - Operations - Countywide Services,Countywide PD Service - Care,Nursing Independent Sector
Cambridgeshire County Council,08-Jun-17,23447170-15483918,-926.11,Making Space#1,Care Establishment,3 - Operations - Countywide Services,Countywide PD Service - Care,Nursing Independent Sector
Cambridgeshire County Council,08-Jun-17,23447171-15483919,-926.11,Making Space#1,Care Establishment,3 - Operations - Countywide Services,Countywide PD Service - Care,Nursing Independent Sector
Cambridgeshire County Council,08-Jun-17,23447174-15483922,-926.11,Making Space#1,Care Establishment,3 - Operations - Countywide Services,Countywide PD Service - Care,Nursing Independent Sector
Cambridgeshire County Council,15-Jun-17,23481957-15537335,-926.11,Making Space#1,Care Establishment,3 - Operations - Countywide Services,Countywide PD Service - Care,Nursing Independent Sector
Cambridgeshire County Council,15-Jun-17,23481982-15537360,-926.11,Making Space#1,Care Establishment,3 - Operations - Countywide Services,Countywide PD Service - Care,Nursing Independent Sector
Cambridgeshire County Council,01-Jun-17,23368832-15440005,-926.11,Making Space#1,Care Establishment,3 - Operations - Countywide Services,Countywide PD Service - Care,Nursing Independent Sector
Cambridgeshire County Council,01-Jun-17,23419305-15440031,-926.11,Making Space#1,Care Establishment,3 - Operations - Countywide Services,Countywide PD Service - Care,Nursing Independent Sector
Cambridgeshire County Council,01-Jun-17,23419309-15440035,-926.11,Making Space#1,Care Establishment,3 - Operations - Countywide Services,Countywide PD Service - Care,Nursing Independent Sector
Cambridgeshire County Council,01-Jun-17,23419320-15440046,-926.11,Making Space#1,Care Establishment,3 - Operations - Countywide Services,Countywide PD Service - Care,Nursing Independent Sector
Cambridgeshire County Council,01-Jun-17,23421293-15440070,-926.11,Making Space#1,Care Establishment,3 - Operations - Countywide Services,Countywide PD Service - Care,Nursing Independent Sector
Cambridgeshire County Council,01-Jun-17,23421302-15440079,-926.11,Making Space#1,Care Establishment,3 - Operations - Countywide Services,Countywide PD Service - Care,Nursing Independent Sector
Cambridgeshire County Council,01-Jun-17,23368781-15439954,-926.11,Making Space#1,Care Establishment,3 - Operations - Countywide Services,Countywide PD Service - Care,Nursing Independent Sector
Cambridgeshire County Council,01-Jun-17,23368786-15439959,-926.11,Making Space#1,Care Establishment,3 - Operations - Countywide Services,Countywide PD Service - Care,Nursing Independent Sector
Cambridgeshire County Council,01-Jun-17,23368791-15439964,-926.11,Making Space#1,Care Establishment,3 - Operations - Countywide Services,Countywide PD Service - Care,Nursing Independent Sector
Cambridgeshire County Council,01-Jun-17,23421307-15440084,-926.11,Making Space#1,Care Establishment,3 - Operations - Countywide Services,Countywide PD Service - Care,Nursing Independent Sector
Cambridgeshire County Council,01-Jun-17,23421311-15440088,-926.11,Making Space#1,Care Establishment,3 - Operations - Countywide Services,Countywide PD Service - Care,Nursing Independent Sector
Cambridgeshire County Council,01-Jun-17,23421267-15440090,-926.11,Making Space#1,Care Establishment,3 - Operations - Countywide Services,Countywide PD Service - Care,Nursing Independent Sector
Cambridgeshire County Council,01-Jun-17,23421279-15440102,-926.11,Making Space#1,Care Establishment,3 - Operations - Countywide Services,Countywide PD Service - Care,Nursing Independent Sector
Cambridgeshire County Council,08-Jun-17,23447198-15483946,-926.11,Making Space#1,Care Establishment,3 - Operations - Countywide Services,Countywide PD Service - Care,Nursing Independent Sector
Cambridgeshire County Council,08-Jun-17,23447172-15483920,-926.11,Making Space#1,Care Establishment,3 - Operations - Countywide Services,Countywide PD Service - Care,Nursing Independent Sector
Cambridgeshire County Council,08-Jun-17,23447183-15483931,-926.11,Making Space#1,Care Establishment,3 - Operations - Countywide Services,Countywide PD Service - Care,Nursing Independent Sector
Cambridgeshire County Council,08-Jun-17,23447191-15483939,-926.11,Making Space#1,Care Establishment,3 - Operations - Countywide Services,Countywide PD Service - Care,Nursing Independent Sector
Cambridgeshire County Council,15-Jun-17,23481962-15537340,-926.11,Making Space#1,Care Establishment,3 - Operations - Countywide Services,Countywide PD Service - Care,Nursing Independent Sector
Cambridgeshire County Council,15-Jun-17,23481967-15537345,-926.11,Making Space#1,Care Establishment,3 - Operations - Countywide Services,Countywide PD Service - Care,Nursing Independent Sector
Cambridgeshire County Council,15-Jun-17,23481973-15537351,-926.11,Making Space#1,Care Establishment,3 - Operations - Countywide Services,Countywide PD Service - Care,Nursing Independent Sector
Cambridgeshire County Council,15-Jun-17,23489799-15537376,-926.11,Making Space#1,Care Establishment,3 - Operations - Countywide Services,Countywide PD Service - Care,Nursing Independent Sector
Cambridgeshire County Council,15-Jun-17,23489804-15537381,-926.11,Making Space#1,Care Establishment,3 - Operations - Countywide Services,Countywide PD Service - Care,Nursing Independent Sector
Cambridgeshire County Council,15-Jun-17,23489810-15537387,-926.11,Making Space#1,Care Establishment,3 - Operations - Countywide Services,Countywide PD Service - Care,Nursing Independent Sector
Cambridgeshire County Council,15-Jun-17,23489813-15537390,-926.11,Making Space#1,Care Establishment,3 - Operations - Countywide Services,Countywide PD Service - Care,Nursing Independent Sector
Cambridgeshire County Council,01-Jun-17,23421306-15440083,-926.11,Making Space#1,Care Establishment,3 - Operations - Countywide Services,Countywide PD Service - Care,Nursing Independent Sector
Cambridgeshire County Council,01-Jun-17,23368784-15439957,-926.11,Making Space#1,Care Establishment,3 - Operations - Countywide Services,Countywide PD Service - Care,Nursing Independent Sector
Cambridgeshire County Council,01-Jun-17,23368795-15439968,-926.11,Making Space#1,Care Establishment,3 - Operations - Countywide Services,Countywide PD Service - Care,Nursing Independent Sector
Cambridgeshire County Council,01-Jun-17,23368801-15439974,-926.11,Making Space#1,Care Establishment,3 - Operations - Countywide Services,Countywide PD Service - Care,Nursing Independent Sector
Cambridgeshire County Council,01-Jun-17,23368813-15439986,-926.11,Making Space#1,Care Establishment,3 - Operations - Countywide Services,Countywide PD Service - Care,Nursing Independent Sector
Cambridgeshire County Council,01-Jun-17,23421266-15440089,-926.11,Making Space#1,Care Establishment,3 - Operations - Countywide Services,Countywide PD Service - Care,Nursing Independent Sector
Cambridgeshire County Council,01-Jun-17,23421269-15440092,-926.11,Making Space#1,Care Establishment,3 - Operations - Countywide Services,Countywide PD Service - Care,Nursing Independent Sector
Cambridgeshire County Council,01-Jun-17,23421284-15440107,-926.11,Making Space#1,Care Establishment,3 - Operations - Countywide Services,Countywide PD Service - Care,Nursing Independent Sector
Cambridgeshire County Council,08-Jun-17,23447201-15483949,-926.11,Making Space#1,Care Establishment,3 - Operations - Countywide Services,Countywide PD Service - Care,Nursing Independent Sector
Cambridgeshire County Council,08-Jun-17,23447161-15483909,-926.11,Making Space#1,Care Establishment,3 - Operations - Countywide Services,Countywide PD Service - Care,Nursing Independent Sector
Cambridgeshire County Council,08-Jun-17,23447165-15483913,-926.11,Making Space#1,Care Establishment,3 - Operations - Countywide Services,Countywide PD Service - Care,Nursing Independent Sector
Cambridgeshire County Council,08-Jun-17,23447188-15483936,-926.11,Making Space#1,Care Establishment,3 - Operations - Countywide Services,Countywide PD Service - Care,Nursing Independent Sector
Cambridgeshire County Council,08-Jun-17,23447194-15483942,-926.11,Making Space#1,Care Establishment,3 - Operations - Countywide Services,Countywide PD Service - Care,Nursing Independent Sector
Cambridgeshire County Council,15-Jun-17,23481958-15537336,-926.11,Making Space#1,Care Establishment,3 - Operations - Countywide Services,Countywide PD Service - Care,Nursing Independent Sector
Cambridgeshire County Council,15-Jun-17,23481961-15537339,-926.11,Making Space#1,Care Establishment,3 - Operations - Countywide Services,Countywide PD Service - Care,Nursing Independent Sector
Cambridgeshire County Council,15-Jun-17,23481974-15537352,-926.11,Making Space#1,Care Establishment,3 - Operations - Countywide Services,Countywide PD Service - Care,Nursing Independent Sector
Cambridgeshire County Council,15-Jun-17,23481983-15537361,-926.11,Making Space#1,Care Establishment,3 - Operations - Countywide Services,Countywide PD Service - Care,Nursing Independent Sector
Cambridgeshire County Council,15-Jun-17,23481986-15537364,-926.11,Making Space#1,Care Establishment,3 - Operations - Countywide Services,Countywide PD Service - Care,Nursing Independent Sector
Cambridgeshire County Council,15-Jun-17,23481988-15537366,-926.11,Making Space#1,Care Establishment,3 - Operations - Countywide Services,Countywide PD Service - Care,Nursing Independent Sector
Cambridgeshire County Council,01-Jun-17,23419313-15440039,-926.11,Making Space#1,Care Establishment,3 - Operations - Countywide Services,Countywide PD Service - Care,Nursing Independent Sector
Cambridgeshire County Council,01-Jun-17,23421297-15440074,-926.11,Making Space#1,Care Establishment,3 - Operations - Countywide Services,Countywide PD Service - Care,Nursing Independent Sector
Cambridgeshire County Council,01-Jun-17,23368814-15439987,-926.11,Making Space#1,Care Establishment,3 - Operations - Countywide Services,Countywide PD Service - Care,Nursing Independent Sector
Cambridgeshire County Council,08-Jun-17,23447147-15483895,-926.11,Making Space#1,Care Establishment,3 - Operations - Countywide Services,Countywide PD Service - Care,Nursing Independent Sector
Cambridgeshire County Council,08-Jun-17,23447160-15483908,-926.11,Making Space#1,Care Establishment,3 - Operations - Countywide Services,Countywide PD Service - Care,Nursing Independent Sector
Cambridgeshire County Council,15-Jun-17,23481960-15537338,-926.11,Making Space#1,Care Establishment,3 - Operations - Countywide Services,Countywide PD Service - Care,Nursing Independent Sector
Cambridgeshire County Council,15-Jun-17,23481985-15537363,-926.11,Making Space#1,Care Establishment,3 - Operations - Countywide Services,Countywide PD Service - Care,Nursing Independent Sector
Cambridgeshire County Council,15-Jun-17,23489796-15537373,-926.11,Making Space#1,Care Establishment,3 - Operations - Countywide Services,Countywide PD Service - Care,Nursing Independent Sector
Cambridgeshire County Council,15-Jun-17,23489797-15537374,-926.11,Making Space#1,Care Establishment,3 - Operations - Countywide Services,Countywide PD Service - Care,Nursing Independent Sector
Cambridgeshire County Council,15-Jun-17,23489809-15537386,-926.11,Making Space#1,Care Establishment,3 - Operations - Countywide Services,Countywide PD Service - Care,Nursing Independent Sector
Cambridgeshire County Council,01-Jun-17,23368827-15440000,-926.11,Making Space#1,Care Establishment,3 - Operations - Countywide Services,Countywide PD Service - Care,Nursing Independent Sector
Cambridgeshire County Council,01-Jun-17,23368842-15440015,-926.11,Making Space#1,Care Establishment,3 - Operations - Countywide Services,Countywide PD Service - Care,Nursing Independent Sector
Cambridgeshire County Council,01-Jun-17,23419315-15440041,-926.11,Making Space#1,Care Establishment,3 - Operations - Countywide Services,Countywide PD Service - Care,Nursing Independent Sector
Cambridgeshire County Council,01-Jun-17,23421303-15440080,-926.11,Making Space#1,Care Establishment,3 - Operations - Countywide Services,Countywide PD Service - Care,Nursing Independent Sector
Cambridgeshire County Council,01-Jun-17,23421304-15440081,-926.11,Making Space#1,Care Establishment,3 - Operations - Countywide Services,Countywide PD Service - Care,Nursing Independent Sector
Cambridgeshire County Council,01-Jun-17,23368808-15439981,-926.11,Making Space#1,Care Establishment,3 - Operations - Countywide Services,Countywide PD Service - Care,Nursing Independent Sector
Cambridgeshire County Council,01-Jun-17,23421308-15440085,-926.11,Making Space#1,Care Establishment,3 - Operations - Countywide Services,Countywide PD Service - Care,Nursing Independent Sector
Cambridgeshire County Council,08-Jun-17,23447153-15483901,-926.11,Making Space#1,Care Establishment,3 - Operations - Countywide Services,Countywide PD Service - Care,Nursing Independent Sector
Cambridgeshire County Council,15-Jun-17,23481956-15537334,-926.11,Making Space#1,Care Establishment,3 - Operations - Countywide Services,Countywide PD Service - Care,Nursing Independent Sector
Cambridgeshire County Council,15-Jun-17,23489802-15537379,-926.11,Making Space#1,Care Establishment,3 - Operations - Countywide Services,Countywide PD Service - Care,Nursing Independent Sector
Cambridgeshire County Council,15-Jun-17,23489805-15537382,-926.11,Making Space#1,Care Establishment,3 - Operations - Countywide Services,Countywide PD Service - Care,Nursing Independent Sector
Cambridgeshire County Council,15-Jun-17,23489822-15537399,-926.11,Making Space#1,Care Establishment,3 - Operations - Countywide Services,Countywide PD Service - Care,Nursing Independent Sector
Cambridgeshire County Council,15-Jun-17,23489824-15537401,-926.11,Making Space#1,Care Establishment,3 - Operations - Countywide Services,Countywide PD Service - Care,Nursing Independent Sector
Cambridgeshire County Council,01-Jun-17,23368822-15439995,-926.11,Making Space#1,Care Establishment,3 - Operations - Countywide Services,Countywide PD Service - Care,Nursing Independent Sector
Cambridgeshire County Council,01-Jun-17,23368785-15439958,-926.11,Making Space#1,Care Establishment,3 - Operations - Countywide Services,Countywide PD Service - Care,Nursing Independent Sector
Cambridgeshire County Council,01-Jun-17,23368792-15439965,-926.11,Making Space#1,Care Establishment,3 - Operations - Countywide Services,Countywide PD Service - Care,Nursing Independent Sector
Cambridgeshire County Council,01-Jun-17,23421268-15440091,-926.11,Making Space#1,Care Establishment,3 - Operations - Countywide Services,Countywide PD Service - Care,Nursing Independent Sector
Cambridgeshire County Council,01-Jun-17,23421271-15440094,-926.11,Making Space#1,Care Establishment,3 - Operations - Countywide Services,Countywide PD Service - Care,Nursing Independent Sector
Cambridgeshire County Council,01-Jun-17,23421274-15440097,-926.11,Making Space#1,Care Establishment,3 - Operations - Countywide Services,Countywide PD Service - Care,Nursing Independent Sector
Cambridgeshire County Council,01-Jun-17,23421278-15440101,-926.11,Making Space#1,Care Establishment,3 - Operations - Countywide Services,Countywide PD Service - Care,Nursing Independent Sector
Cambridgeshire County Council,08-Jun-17,23447199-15483947,-926.11,Making Space#1,Care Establishment,3 - Operations - Countywide Services,Countywide PD Service - Care,Nursing Independent Sector
Cambridgeshire County Council,08-Jun-17,23447149-15483897,-926.11,Making Space#1,Care Establishment,3 - Operations - Countywide Services,Countywide PD Service - Care,Nursing Independent Sector
Cambridgeshire County Council,08-Jun-17,23447166-15483914,-926.11,Making Space#1,Care Establishment,3 - Operations - Countywide Services,Countywide PD Service - Care,Nursing Independent Sector
Cambridgeshire County Council,08-Jun-17,23447173-15483921,-926.11,Making Space#1,Care Establishment,3 - Operations - Countywide Services,Countywide PD Service - Care,Nursing Independent Sector
Cambridgeshire County Council,08-Jun-17,23447192-15483940,-926.11,Making Space#1,Care Establishment,3 - Operations - Countywide Services,Countywide PD Service - Care,Nursing Independent Sector
Cambridgeshire County Council,15-Jun-17,23481965-15537343,-926.11,Making Space#1,Care Establishment,3 - Operations - Countywide Services,Countywide PD Service - Care,Nursing Independent Sector
Cambridgeshire County Council,15-Jun-17,23481975-15537353,-926.11,Making Space#1,Care Establishment,3 - Operations - Countywide Services,Countywide PD Service - Care,Nursing Independent Sector
Cambridgeshire County Council,15-Jun-17,23481984-15537362,-926.11,Making Space#1,Care Establishment,3 - Operations - Countywide Services,Countywide PD Service - Care,Nursing Independent Sector
Cambridgeshire County Council,15-Jun-17,23490972-15535110,-904.19,The Cambridge Housing Society Ltd,Care Establishment,2 - Commissioning - Older people Pool,Older People - City & South,Residential Independent Sector
Cambridgeshire County Council,29-Jun-17,23637432-15617909,-904.19,The Cambridge Housing Society Ltd,Care Establishment,2 - Commissioning - Older people Pool,Older People - City & South,Residential Independent Sector
Cambridgeshire County Council,29-Jun-17,23637442-15617919,-904.19,The Cambridge Housing Society Ltd,Care Establishment,2 - Commissioning - Older people Pool,Older People - City & South,Residential Independent Sector
Cambridgeshire County Council,15-Jun-17,23490969-15535107,-904.19,The Cambridge Housing Society Ltd,Care Establishment,2 - Commissioning - Older people Pool,Older People - City & South,Residential Independent Sector
Cambridgeshire County Council,15-Jun-17,23490971-15535109,-904.19,The Cambridge Housing Society Ltd,Care Establishment,2 - Commissioning - Older people Pool,Older People - City & South,Residential Independent Sector
Cambridgeshire County Council,15-Jun-17,23490955-15535093,-904.19,The Cambridge Housing Society Ltd,Care Establishment,2 - Commissioning - Older people Pool,Older People - City & South,Residential Independent Sector
Cambridgeshire County Council,15-Jun-17,23490961-15535099,-904.19,The Cambridge Housing Society Ltd,Care Establishment,2 - Commissioning - Older people Pool,Older People - City & South,Residential Independent Sector
Cambridgeshire County Council,15-Jun-17,23490962-15535100,-904.19,The Cambridge Housing Society Ltd,Care Establishment,2 - Commissioning - Older people Pool,Older People - City & South,Residential Independent Sector
Cambridgeshire County Council,15-Jun-17,23490973-15535111,-904.19,The Cambridge Housing Society Ltd,Care Establishment,2 - Commissioning - Older people Pool,Older People - City & South,Residential Independent Sector
Cambridgeshire County Council,29-Jun-17,23637427-15617904,-904.19,The Cambridge Housing Society Ltd,Care Establishment,2 - Commissioning - Older people Pool,Older People - City & South,Residential Independent Sector
Cambridgeshire County Council,29-Jun-17,23637441-15617918,-904.19,The Cambridge Housing Society Ltd,Care Establishment,2 - Commissioning - Older people Pool,Older People - City & South,Residential Independent Sector
Cambridgeshire County Council,29-Jun-17,23637422-15617899,-904.19,The Cambridge Housing Society Ltd,Care Establishment,2 - Commissioning - Older people Pool,Older People - City & South,Residential Independent Sector
Cambridgeshire County Council,15-Jun-17,23490960-15535098,-904.19,The Cambridge Housing Society Ltd,Care Establishment,2 - Commissioning - Older people Pool,Older People - City & South,Residential Independent Sector
Cambridgeshire County Council,29-Jun-17,23637433-15617910,-904.19,The Cambridge Housing Society Ltd,Care Establishment,2 - Commissioning - Older people Pool,Older People - City & South,Residential Independent Sector
Cambridgeshire County Council,29-Jun-17,23637416-15617893,-904.19,The Cambridge Housing Society Ltd,Care Establishment,2 - Commissioning - Older people Pool,Older People - City & South,Residential Independent Sector
Cambridgeshire County Council,15-Jun-17,23490967-15535105,-904.19,The Cambridge Housing Society Ltd,Care Establishment,2 - Commissioning - Older people Pool,Older People - City & South,Residential Independent Sector
Cambridgeshire County Council,29-Jun-17,23637429-15617906,-904.19,The Cambridge Housing Society Ltd,Care Establishment,2 - Commissioning - Older people Pool,Older People - City & South,Residential Independent Sector
Cambridgeshire County Council,29-Jun-17,23637444-15617921,-904.19,The Cambridge Housing Society Ltd,Care Establishment,2 - Commissioning - Older people Pool,Older People - City & South,Residential Independent Sector
Cambridgeshire County Council,29-Jun-17,23637414-15617891,-904.19,The Cambridge Housing Society Ltd,Care Establishment,2 - Commissioning - Older people Pool,Older People - City & South,Residential Independent Sector
Cambridgeshire County Council,29-Jun-17,23637418-15617895,-904.19,The Cambridge Housing Society Ltd,Care Establishment,2 - Commissioning - Older people Pool,Older People - City & South,Residential Independent Sector
Cambridgeshire County Council,29-Jun-17,23637421-15617898,-904.19,The Cambridge Housing Society Ltd,Care Establishment,2 - Commissioning - Older people Pool,Older People - City & South,Residential Independent Sector
Cambridgeshire County Council,29-Jun-17,23637434-15617911,-904.19,The Cambridge Housing Society Ltd,Care Establishment,2 - Commissioning - Older people Pool,Older People - City & South,Residential Independent Sector
Cambridgeshire County Council,29-Jun-17,23637439-15617916,-904.19,The Cambridge Housing Society Ltd,Care Establishment,2 - Commissioning - Older people Pool,Older People - City & South,Residential Independent Sector
Cambridgeshire County Council,15-Jun-17,23490951-15535089,-904.19,The Cambridge Housing Society Ltd,Care Establishment,2 - Commissioning - Older people Pool,Older People - City & South,Residential Independent Sector
Cambridgeshire County Council,15-Jun-17,23490957-15535095,-904.19,The Cambridge Housing Society Ltd,Care Establishment,2 - Commissioning - Older people Pool,Older People - City & South,Residential Independent Sector
Cambridgeshire County Council,15-Jun-17,23490966-15535104,-904.19,The Cambridge Housing Society Ltd,Care Establishment,2 - Commissioning - Older people Pool,Older People - City & South,Residential Independent Sector
Cambridgeshire County Council,29-Jun-17,23637428-15617905,-904.19,The Cambridge Housing Society Ltd,Care Establishment,2 - Commissioning - Older people Pool,Older People - City & South,Residential Independent Sector
Cambridgeshire County Council,01-Jun-17,23389437-15440587,-900,Cherry Hinton Nursing Home,Care Establishment,2 - Commissioning - Older people Pool,Older People - City & South,Nursing Independent Sector
Cambridgeshire County Council,01-Jun-17,23389396-15440578,-900,Cherry Hinton Nursing Home,Care Establishment,2 - Commissioning - Older people Pool,Older People - City & South,Nursing Independent Sector
Cambridgeshire County Council,01-Jun-17,23389407-15440582,-900,Cherry Hinton Nursing Home,Care Establishment,2 - Commissioning - Older people Pool,Older People - City & South,Nursing Independent Sector
Cambridgeshire County Council,01-Jun-17,23389419-15440585,-900,Cherry Hinton Nursing Home,Care Establishment,2 - Commissioning - Older people Pool,Older People - City & South,Nursing Independent Sector
Cambridgeshire County Council,01-Jun-17,23389400-15440580,-900,Cherry Hinton Nursing Home,Care Establishment,2 - Commissioning - Older people Pool,Older People - City & South,Nursing Independent Sector
Cambridgeshire County Council,01-Jun-17,23389399-15440579,-900,Cherry Hinton Nursing Home,Care Establishment,2 - Commissioning - Older people Pool,Older People - City & South,Nursing Independent Sector
Cambridgeshire County Council,01-Jun-17,23389406-15440581,-900,Cherry Hinton Nursing Home,Care Establishment,2 - Commissioning - Older people Pool,Older People - City & South,Nursing Independent Sector
Cambridgeshire County Council,01-Jun-17,23389410-15440583,-900,Cherry Hinton Nursing Home,Care Establishment,2 - Commissioning - Older people Pool,Older People - City & South,Nursing Independent Sector
Cambridgeshire County Council,01-Jun-17,23389412-15440584,-900,Cherry Hinton Nursing Home,Care Establishment,2 - Commissioning - Older people Pool,Older People - City & South,Nursing Independent Sector
Cambridgeshire County Council,01-Jun-17,23389446-15440588,-900,Cherry Hinton Nursing Home,Care Establishment,2 - Commissioning - Older people Pool,Older People - City & South,Nursing Independent Sector
Cambridgeshire County Council,22-Jun-17,23450002-15555778,-882.86,Hunters Healthcare (Hunters Down),Care Establishment,2 - Commissioning - Older people Pool,Hunts O P  Team,Residential Independent Sector
Cambridgeshire County Council,28-Jun-17,23608510-15602147,-880,A2b Taxis,Trade Supplier,S&C,Home to School Transport - Special,Home to School - Special - Special school
Cambridgeshire County Council,22-Jun-17,23450756-15561552,-865.4,Affinity Trust,Care Establishment,2 - Operations - Learning Disability,LDP Fens - Special Needs,Day and Domicillary Care Independent Sector
Cambridgeshire County Council,22-Jun-17,23450740-15561550,-865.4,Affinity Trust,Care Establishment,2 - Operations - Learning Disability,LDP Fens - Special Needs,Day and Domicillary Care Independent Sector
Cambridgeshire County Council,22-Jun-17,23450735-15561549,-865.4,Affinity Trust,Care Establishment,2 - Operations - Learning Disability,LDP Fens - Special Needs,Day and Domicillary Care Independent Sector
Cambridgeshire County Council,22-Jun-17,23486085-15569001,-848.8,Rose Lodge,Care Establishment,2 - Commissioning - Older people Pool,Older People Mental Health Fenland,Nursing Independent Sector
Cambridgeshire County Council,22-Jun-17,23486081-15568998,-848.8,Rose Lodge,Care Establishment,2 - Commissioning - Older people Pool,Older People Mental Health Fenland,Nursing Independent Sector
Cambridgeshire County Council,22-Jun-17,23486084-15569000,-848.8,Rose Lodge,Care Establishment,2 - Commissioning - Older people Pool,Older People Mental Health Fenland,Nursing Independent Sector
Cambridgeshire County Council,22-Jun-17,23486083-15568999,-848.8,Rose Lodge,Care Establishment,2 - Commissioning - Older people Pool,Older People Mental Health Fenland,Nursing Independent Sector
Cambridgeshire County Council,29-Jun-17,23638622-15618868,-848.57,Bramley Court,Care Establishment,2 - Commissioning - Older people Pool,Older People - City & South,Residential Independent Sector
Cambridgeshire County Council,22-Jun-17,23448907-15561019,-846.18,Social Care Solutions Ltd,Care Establishment,2 - Operations - Learning Disability,LDP Fenland Locality - Care,Day and Domicillary Care Independent Sector
Cambridgeshire County Council,01-Jun-17,23159613-15435747,-816.06,Midfield Lodge Care Centre,Care Establishment,2 - Commissioning - Older people Pool,Hunts O P  Team,Nursing Independent Sector
Cambridgeshire County Council,01-Jun-17,23158514-15435737,-816.06,Midfield Lodge Care Centre,Care Establishment,2 - Commissioning - Older people Pool,Hunts O P  Team,Nursing Independent Sector
Cambridgeshire County Council,01-Jun-17,23159633-15435753,-816.06,Midfield Lodge Care Centre,Care Establishment,2 - Commissioning - Older people Pool,Hunts O P  Team,Nursing Independent Sector
Cambridgeshire County Council,01-Jun-17,23159604-15435742,-816.06,Midfield Lodge Care Centre,Care Establishment,2 - Commissioning - Older people Pool,Hunts O P  Team,Nursing Independent Sector
Cambridgeshire County Council,01-Jun-17,23159631-15435752,-816.06,Midfield Lodge Care Centre,Care Establishment,2 - Commissioning - Older people Pool,Hunts O P  Team,Nursing Independent Sector
Cambridgeshire County Council,01-Jun-17,23159605-15435743,-816.06,Midfield Lodge Care Centre,Care Establishment,2 - Commissioning - Older people Pool,Hunts O P  Team,Nursing Independent Sector
Cambridgeshire County Council,01-Jun-17,23159609-15435744,-816.06,Midfield Lodge Care Centre,Care Establishment,2 - Commissioning - Older people Pool,Hunts O P  Team,Nursing Independent Sector
Cambridgeshire County Council,01-Jun-17,23381822-15437558,-814,Barchester Healthcare Homes Ltd,Care Establishment,4 - Commissioning - Mental Health & Supporting People,Cambridge Mental Health team,Nursing Independent Sector
Cambridgeshire County Council,01-Jun-17,23262023-15437126,-813.21,Bramley Court,Care Establishment,2 - Commissioning - Older people Pool,Older People Mental Health City & South,Nursing Independent Sector
Cambridgeshire County Council,01-Jun-17,23419334-15437591,-812.85,Barchester Healthcare Homes Ltd,Care Establishment,2 - Commissioning - Older people Pool,Older People Mental Health City & South,Nursing Independent Sector
Cambridgeshire County Council,01-Jun-17,23419332-15437589,-812.85,Barchester Healthcare Homes Ltd,Care Establishment,2 - Commissioning - Older people Pool,Older People Mental Health City & South,Nursing Independent Sector
Cambridgeshire County Council,01-Jun-17,23419331-15437588,-812.85,Barchester Healthcare Homes Ltd,Care Establishment,2 - Commissioning - Older people Pool,Older People Mental Health City & South,Nursing Independent Sector
Cambridgeshire County Council,01-Jun-17,23381821-15437557,-812.8,Barchester Healthcare Homes Ltd,Care Establishment,4 - Commissioning - Mental Health & Supporting People,Cambridge Mental Health team,Nursing Independent Sector
Cambridgeshire County Council,01-Jun-17,23381816-15437552,-812.8,Barchester Healthcare Homes Ltd,Care Establishment,4 - Commissioning - Mental Health & Supporting People,Cambridge Mental Health team,Nursing Independent Sector
Cambridgeshire County Council,01-Jun-17,23381811-15437547,-812.8,Barchester Healthcare Homes Ltd,Care Establishment,4 - Commissioning - Mental Health & Supporting People,Cambridge Mental Health team,Nursing Independent Sector
Cambridgeshire County Council,01-Jun-17,23381813-15437549,-812.8,Barchester Healthcare Homes Ltd,Care Establishment,4 - Commissioning - Mental Health & Supporting People,Cambridge Mental Health team,Nursing Independent Sector
Cambridgeshire County Council,01-Jun-17,23381810-15437546,-812.8,Barchester Healthcare Homes Ltd,Care Establishment,4 - Commissioning - Mental Health & Supporting People,Cambridge Mental Health team,Nursing Independent Sector
Cambridgeshire County Council,01-Jun-17,23381818-15437554,-812.8,Barchester Healthcare Homes Ltd,Care Establishment,4 - Commissioning - Mental Health & Supporting People,Cambridge Mental Health team,Nursing Independent Sector
Cambridgeshire County Council,01-Jun-17,23381815-15437551,-812.8,Barchester Healthcare Homes Ltd,Care Establishment,4 - Commissioning - Mental Health & Supporting People,Cambridge Mental Health team,Nursing Independent Sector
Cambridgeshire County Council,01-Jun-17,23381820-15437556,-812.8,Barchester Healthcare Homes Ltd,Care Establishment,4 - Commissioning - Mental Health & Supporting People,Cambridge Mental Health team,Nursing Independent Sector
Cambridgeshire County Council,01-Jun-17,23381814-15437550,-812.8,Barchester Healthcare Homes Ltd,Care Establishment,4 - Commissioning - Mental Health & Supporting People,Cambridge Mental Health team,Nursing Independent Sector
Cambridgeshire County Council,01-Jun-17,23381817-15437553,-812.8,Barchester Healthcare Homes Ltd,Care Establishment,4 - Commissioning - Mental Health & Supporting People,Cambridge Mental Health team,Nursing Independent Sector
Cambridgeshire County Council,01-Jun-17,23263005-15434001,-811.8,Gracefield Nursing And Residential Home,Care Establishment,2 - Commissioning - Older people Pool,Older People Mental Health E Cambs,Nursing Independent Sector
Cambridgeshire County Council,01-Jun-17,23263023-15434005,-811.8,Gracefield Nursing And Residential Home,Care Establishment,2 - Commissioning - Older people Pool,Older People Mental Health E Cambs,Nursing Independent Sector
Cambridgeshire County Council,01-Jun-17,23263001-15433999,-811.8,Gracefield Nursing And Residential Home,Care Establishment,2 - Commissioning - Older people Pool,Older People Mental Health E Cambs,Nursing Independent Sector
Cambridgeshire County Council,01-Jun-17,23263011-15434003,-811.8,Gracefield Nursing And Residential Home,Care Establishment,2 - Commissioning - Older people Pool,Older People Mental Health E Cambs,Nursing Independent Sector
Cambridgeshire County Council,01-Jun-17,23263004-15434000,-811.8,Gracefield Nursing And Residential Home,Care Establishment,2 - Commissioning - Older people Pool,Older People Mental Health E Cambs,Nursing Independent Sector
Cambridgeshire County Council,01-Jun-17,23263009-15434002,-811.8,Gracefield Nursing And Residential Home,Care Establishment,2 - Commissioning - Older people Pool,Older People Mental Health E Cambs,Nursing Independent Sector
Cambridgeshire County Council,27-Jun-17,23609633-15596330,-806,Swanton House,Care Establishment,4 - Commissioning - Mental Health & Supporting People,Cambridge Mental Health team,Nursing Independent Sector
Cambridgeshire County Council,08-Jun-17,23447179-15483927,-793.81,Making Space#1,Care Establishment,3 - Operations - Countywide Services,Countywide PD Service - Care,Nursing Independent Sector
Cambridgeshire County Council,15-Jun-17,23481971-15537349,-793.81,Making Space#1,Care Establishment,3 - Operations - Countywide Services,Countywide PD Service - Care,Nursing Independent Sector
Cambridgeshire County Council,01-Jun-17,23368790-15439963,-793.81,Making Space#1,Care Establishment,3 - Operations - Countywide Services,Countywide PD Service - Care,Nursing Independent Sector
Cambridgeshire County Council,01-Jun-17,23419323-15440049,-793.81,Making Space#1,Care Establishment,3 - Operations - Countywide Services,Countywide PD Service - Care,Nursing Independent Sector
Cambridgeshire County Council,29-Jun-17,23448576-15618366,-793.05,St Georges Nursing Home,Care Establishment,2 - Commissioning - Older people Pool,Older People - City & South,Nursing Independent Sector
Cambridgeshire County Council,01-Jun-17,23371678-15438878,-793.05,Abbey Healthcare (Huntingdon) Ltd,Care Establishment,2 - Commissioning - Older people Pool,Hunts O P  Team,Nursing Independent Sector
Cambridgeshire County Council,29-Jun-17,23448575-15618365,-793.05,St Georges Nursing Home,Care Establishment,2 - Commissioning - Older people Pool,Older People - City & South,Nursing Independent Sector
Cambridgeshire County Council,29-Jun-17,23448579-15618369,-793.05,St Georges Nursing Home,Care Establishment,2 - Commissioning - Older people Pool,Older People - City & South,Nursing Independent Sector
Cambridgeshire County Council,01-Jun-17,23371675-15438875,-793.05,Abbey Healthcare (Huntingdon) Ltd,Care Establishment,2 - Commissioning - Older people Pool,Hunts O P  Team,Nursing Independent Sector
Cambridgeshire County Council,29-Jun-17,23448577-15618367,-793.05,St Georges Nursing Home,Care Establishment,2 - Commissioning - Older people Pool,Older People - City & South,Nursing Independent Sector
Cambridgeshire County Council,29-Jun-17,23448578-15618368,-793.05,St Georges Nursing Home,Care Establishment,2 - Commissioning - Older people Pool,Older People - City & South,Nursing Independent Sector
Cambridgeshire County Council,01-Jun-17,23371676-15438876,-793.05,Abbey Healthcare (Huntingdon) Ltd,Care Establishment,2 - Commissioning - Older people Pool,Hunts O P  Team,Nursing Independent Sector
Cambridgeshire County Council,22-Jun-17,23579462-15565656,-789.3,Porlock House,Care Establishment,2 - Operations - Learning Disability,LDP Cambs City - Special Needs,Daycare
Cambridgeshire County Council,22-Jun-17,23580688-15560995,-784.86,Woodlands Care Centre,Care Establishment,2 - Commissioning - Older people Pool,Older People - City & South,Nursing Independent Sector
Cambridgeshire County Council,22-Jun-17,23583144-15563416,-776.05,St George'S Court,Care Establishment,2 - Commissioning - Older people Pool,Older People - City & South,Nursing Independent Sector
Cambridgeshire County Council,22-Jun-17,23583145-15563417,-776.05,St George'S Court,Care Establishment,2 - Commissioning - Older people Pool,Older People - City & South,Nursing Independent Sector
Cambridgeshire County Council,22-Jun-17,23584807-15563419,-776.05,St George'S Court,Care Establishment,2 - Commissioning - Older people Pool,Older People - City & South,Nursing Independent Sector
Cambridgeshire County Council,29-Jun-17,23636486-15615279,-776.05,St George'S Court,Care Establishment,2 - Commissioning - Older people Pool,Older People - City & South,Nursing Independent Sector
Cambridgeshire County Council,29-Jun-17,23634372-15615285,-776.05,St George'S Court,Care Establishment,2 - Commissioning - Older people Pool,Older People - City & South,Nursing Independent Sector
Cambridgeshire County Council,29-Jun-17,23636294-15617194,-776.05,Buchan Healthcare Ltd,Care Establishment,2 - Commissioning - Older people Pool,Older People Mental Health City & South,Nursing Independent Sector
Cambridgeshire County Council,29-Jun-17,23636299-15617199,-776.05,Buchan Healthcare Ltd,Care Establishment,2 - Commissioning - Older people Pool,Older People Mental Health City & South,Nursing Independent Sector
Cambridgeshire County Council,29-Jun-17,23633226-15617221,-776.05,Buchan Healthcare Ltd,Care Establishment,2 - Commissioning - Older people Pool,Older People Mental Health City & South,Nursing Independent Sector
Cambridgeshire County Council,29-Jun-17,23638481-15617233,-776.05,Buchan Healthcare Ltd,Care Establishment,2 - Commissioning - Older people Pool,Older People - City & South,Nursing Independent Sector
Cambridgeshire County Council,29-Jun-17,23638489-15617239,-776.05,Buchan Healthcare Ltd,Care Establishment,2 - Commissioning - Older people Pool,Older People - City & South,Nursing Independent Sector
Cambridgeshire County Council,29-Jun-17,23636302-15617202,-776.05,Buchan Healthcare Ltd,Care Establishment,2 - Commissioning - Older people Pool,Older People Mental Health City & South,Nursing Independent Sector
Cambridgeshire County Council,29-Jun-17,23636305-15617205,-776.05,Buchan Healthcare Ltd,Care Establishment,2 - Commissioning - Older people Pool,Older People Mental Health City & South,Nursing Independent Sector
Cambridgeshire County Council,29-Jun-17,23633797-15617213,-776.05,Buchan Healthcare Ltd,Care Establishment,2 - Commissioning - Older people Pool,Older People - City & South,Nursing Independent Sector
Cambridgeshire County Council,29-Jun-17,23633798-15617214,-776.05,Buchan Healthcare Ltd,Care Establishment,2 - Commissioning - Older people Pool,Older People - City & South,Nursing Independent Sector
Cambridgeshire County Council,29-Jun-17,23633225-15617220,-776.05,Buchan Healthcare Ltd,Care Establishment,2 - Commissioning - Older people Pool,Older People Mental Health City & South,Nursing Independent Sector
Cambridgeshire County Council,29-Jun-17,23637045-15617259,-776.05,Buchan Healthcare Ltd,Care Establishment,2 - Commissioning - Older people Pool,Older People - City & South,Nursing Independent Sector
Cambridgeshire County Council,22-Jun-17,23583138-15563410,-776.05,St George'S Court,Care Establishment,2 - Commissioning - Older people Pool,Older People - City & South,Nursing Independent Sector
Cambridgeshire County Council,22-Jun-17,23583139-15563411,-776.05,St George'S Court,Care Establishment,2 - Commissioning - Older people Pool,Older People - City & South,Nursing Independent Sector
Cambridgeshire County Council,22-Jun-17,23583146-15563418,-776.05,St George'S Court,Care Establishment,2 - Commissioning - Older people Pool,Older People - City & South,Nursing Independent Sector
Cambridgeshire County Council,29-Jun-17,23636308-15617208,-776.05,Buchan Healthcare Ltd,Care Establishment,2 - Commissioning - Older people Pool,Older People Mental Health City & South,Nursing Independent Sector
Cambridgeshire County Council,29-Jun-17,23638490-15617240,-776.05,Buchan Healthcare Ltd,Care Establishment,2 - Commissioning - Older people Pool,Older People - City & South,Nursing Independent Sector
Cambridgeshire County Council,29-Jun-17,23638496-15617244,-776.05,Buchan Healthcare Ltd,Care Establishment,2 - Commissioning - Older people Pool,Older People - City & South,Nursing Independent Sector
Cambridgeshire County Council,29-Jun-17,23637038-15617252,-776.05,Buchan Healthcare Ltd,Care Establishment,2 - Commissioning - Older people Pool,Older People - City & South,Nursing Independent Sector
Cambridgeshire County Council,29-Jun-17,23634377-15615288,-776.05,St George'S Court,Care Establishment,2 - Commissioning - Older people Pool,Older People - City & South,Nursing Independent Sector
Cambridgeshire County Council,29-Jun-17,23636479-15615272,-776.05,St George'S Court,Care Establishment,2 - Commissioning - Older people Pool,Older People - City & South,Nursing Independent Sector
Cambridgeshire County Council,29-Jun-17,23636480-15615273,-776.05,St George'S Court,Care Establishment,2 - Commissioning - Older people Pool,Older People - City & South,Nursing Independent Sector
Cambridgeshire County Council,29-Jun-17,23638471-15617226,-776.05,Buchan Healthcare Ltd,Care Establishment,2 - Commissioning - Older people Pool,Older People - City & South,Nursing Independent Sector
Cambridgeshire County Council,29-Jun-17,23638488-15617238,-776.05,Buchan Healthcare Ltd,Care Establishment,2 - Commissioning - Older people Pool,Older People - City & South,Nursing Independent Sector
Cambridgeshire County Council,22-Jun-17,23583142-15563414,-776.05,St George'S Court,Care Establishment,2 - Commissioning - Older people Pool,Older People - City & South,Nursing Independent Sector
Cambridgeshire County Council,22-Jun-17,23584820-15563421,-776.05,St George'S Court,Care Establishment,2 - Commissioning - Older people Pool,Older People - City & South,Nursing Independent Sector
Cambridgeshire County Council,29-Jun-17,23636482-15615275,-776.05,St George'S Court,Care Establishment,2 - Commissioning - Older people Pool,Older People - City & South,Nursing Independent Sector
Cambridgeshire County Council,29-Jun-17,23633224-15617219,-776.05,Buchan Healthcare Ltd,Care Establishment,2 - Commissioning - Older people Pool,Older People Mental Health City & South,Nursing Independent Sector
Cambridgeshire County Council,29-Jun-17,23638494-15617242,-776.05,Buchan Healthcare Ltd,Care Establishment,2 - Commissioning - Older people Pool,Older People - City & South,Nursing Independent Sector
Cambridgeshire County Council,29-Jun-17,23637040-15617254,-776.05,Buchan Healthcare Ltd,Care Establishment,2 - Commissioning - Older people Pool,Older People - City & South,Nursing Independent Sector
Cambridgeshire County Council,29-Jun-17,23637041-15617255,-776.05,Buchan Healthcare Ltd,Care Establishment,2 - Commissioning - Older people Pool,Older People - City & South,Nursing Independent Sector
Cambridgeshire County Council,29-Jun-17,23636311-15617211,-776.05,Buchan Healthcare Ltd,Care Establishment,2 - Commissioning - Older people Pool,Older People Mental Health City & South,Nursing Independent Sector
Cambridgeshire County Council,29-Jun-17,23633800-15617216,-776.05,Buchan Healthcare Ltd,Care Establishment,2 - Commissioning - Older people Pool,Older People - City & South,Nursing Independent Sector
Cambridgeshire County Council,29-Jun-17,23633229-15617224,-776.05,Buchan Healthcare Ltd,Care Establishment,2 - Commissioning - Older people Pool,Older People Mental Health City & South,Nursing Independent Sector
Cambridgeshire County Council,29-Jun-17,23638473-15617228,-776.05,Buchan Healthcare Ltd,Care Establishment,2 - Commissioning - Older people Pool,Older People - City & South,Nursing Independent Sector
Cambridgeshire County Council,29-Jun-17,23637411-15615310,-776.05,St George'S Court,Care Establishment,2 - Commissioning - Older people Pool,Older People - City & South,Nursing Independent Sector
Cambridgeshire County Council,29-Jun-17,23636307-15617207,-776.05,Buchan Healthcare Ltd,Care Establishment,2 - Commissioning - Older people Pool,Older People Mental Health City & South,Nursing Independent Sector
Cambridgeshire County Council,29-Jun-17,23638475-15617230,-776.05,Buchan Healthcare Ltd,Care Establishment,2 - Commissioning - Older people Pool,Older People - City & South,Nursing Independent Sector
Cambridgeshire County Council,29-Jun-17,23638497-15617245,-776.05,Buchan Healthcare Ltd,Care Establishment,2 - Commissioning - Older people Pool,Older People - City & South,Nursing Independent Sector
Cambridgeshire County Council,29-Jun-17,23637046-15617260,-776.05,Buchan Healthcare Ltd,Care Establishment,2 - Commissioning - Older people Pool,Older People - City & South,Nursing Independent Sector
Cambridgeshire County Council,29-Jun-17,23637031-15617262,-776.05,Buchan Healthcare Ltd,Care Establishment,2 - Commissioning - Older people Pool,Older People - City & South,Nursing Independent Sector
Cambridgeshire County Council,22-Jun-17,23583140-15563412,-776.05,St George'S Court,Care Establishment,2 - Commissioning - Older people Pool,Older People - City & South,Nursing Independent Sector
Cambridgeshire County Council,22-Jun-17,23583141-15563413,-776.05,St George'S Court,Care Establishment,2 - Commissioning - Older people Pool,Older People - City & South,Nursing Independent Sector
Cambridgeshire County Council,29-Jun-17,23634373-15615286,-776.05,St George'S Court,Care Establishment,2 - Commissioning - Older people Pool,Older People - City & South,Nursing Independent Sector
Cambridgeshire County Council,29-Jun-17,23633796-15617212,-776.05,Buchan Healthcare Ltd,Care Establishment,2 - Commissioning - Older people Pool,Older People - City & South,Nursing Independent Sector
Cambridgeshire County Council,29-Jun-17,23638485-15617236,-776.05,Buchan Healthcare Ltd,Care Establishment,2 - Commissioning - Older people Pool,Older People - City & South,Nursing Independent Sector
Cambridgeshire County Council,29-Jun-17,23637039-15617253,-776.05,Buchan Healthcare Ltd,Care Establishment,2 - Commissioning - Older people Pool,Older People - City & South,Nursing Independent Sector
Cambridgeshire County Council,15-Jun-17,23490953-15535091,-775.02,The Cambridge Housing Society Ltd,Care Establishment,2 - Commissioning - Older people Pool,Older People - City & South,Residential Independent Sector
Cambridgeshire County Council,29-Jun-17,23637430-15617907,-775.02,The Cambridge Housing Society Ltd,Care Establishment,2 - Commissioning - Older people Pool,Older People - City & South,Residential Independent Sector
Cambridgeshire County Council,22-Jun-17,23581257-15577774,-754.99,Dimensions (Uk) Ltd,Care Establishment,2 - Operations - Learning Disability,LDP South Cambs Locality - Care,Day and Domicillary Care Independent Sector
Cambridgeshire County Council,22-Jun-17,23581255-15577772,-754.99,Dimensions (Uk) Ltd,Care Establishment,2 - Operations - Learning Disability,LDP South Cambs Locality - Care,Day and Domicillary Care Independent Sector
Cambridgeshire County Council,29-Jun-17,23635764-15612548,-745.05,Glennfield Care Centre (Op),Care Establishment,2 - Commissioning - Older people Pool,Older People Mental Health Fenland,Nursing Independent Sector
Cambridgeshire County Council,29-Jun-17,23641562-15612560,-745.05,Glennfield Care Centre (Op),Care Establishment,2 - Commissioning - Older people Pool,Hunts O P  Team,Nursing Independent Sector
Cambridgeshire County Council,29-Jun-17,23641564-15612562,-745.05,Glennfield Care Centre (Op),Care Establishment,2 - Commissioning - Older people Pool,Hunts O P  Team,Nursing Independent Sector
Cambridgeshire County Council,29-Jun-17,23632957-15612565,-745.05,Glennfield Care Centre (Op),Care Establishment,2 - Commissioning - Older people Pool,Older People Mental Health Fenland,Nursing Independent Sector
Cambridgeshire County Council,29-Jun-17,23635760-15612544,-745.05,Glennfield Care Centre (Op),Care Establishment,2 - Commissioning - Older people Pool,Older People Mental Health Fenland,Nursing Independent Sector
Cambridgeshire County Council,29-Jun-17,23635770-15612554,-745.05,Glennfield Care Centre (Op),Care Establishment,2 - Commissioning - Older people Pool,Older People Mental Health Fenland,Nursing Independent Sector
Cambridgeshire County Council,29-Jun-17,23639007-15612584,-745.05,Glennfield Care Centre (Op),Care Establishment,2 - Commissioning - Older people Pool,Hunts O P  Team,Nursing Independent Sector
Cambridgeshire County Council,29-Jun-17,23639008-15612585,-745.05,Glennfield Care Centre (Op),Care Establishment,2 - Commissioning - Older people Pool,Hunts O P  Team,Nursing Independent Sector
Cambridgeshire County Council,29-Jun-17,23639012-15612589,-745.05,Glennfield Care Centre (Op),Care Establishment,2 - Commissioning - Older people Pool,Hunts O P  Team,Nursing Independent Sector
Cambridgeshire County Council,29-Jun-17,23639015-15612591,-745.05,Glennfield Care Centre (Op),Care Establishment,2 - Commissioning - Older people Pool,Hunts O P  Team,Nursing Independent Sector
Cambridgeshire County Council,29-Jun-17,23635768-15612552,-745.05,Glennfield Care Centre (Op),Care Establishment,2 - Commissioning - Older people Pool,Older People Mental Health Fenland,Nursing Independent Sector
Cambridgeshire County Council,29-Jun-17,23639001-15612578,-745.05,Glennfield Care Centre (Op),Care Establishment,2 - Commissioning - Older people Pool,Hunts O P  Team,Nursing Independent Sector
Cambridgeshire County Council,29-Jun-17,23639003-15612580,-745.05,Glennfield Care Centre (Op),Care Establishment,2 - Commissioning - Older people Pool,Hunts O P  Team,Nursing Independent Sector
Cambridgeshire County Council,29-Jun-17,23632958-15612566,-745.05,Glennfield Care Centre (Op),Care Establishment,2 - Commissioning - Older people Pool,Older People Mental Health Fenland,Nursing Independent Sector
Cambridgeshire County Council,29-Jun-17,23635761-15612545,-745.05,Glennfield Care Centre (Op),Care Establishment,2 - Commissioning - Older people Pool,Older People Mental Health Fenland,Nursing Independent Sector
Cambridgeshire County Council,29-Jun-17,23639009-15612586,-745.05,Glennfield Care Centre (Op),Care Establishment,2 - Commissioning - Older people Pool,Hunts O P  Team,Nursing Independent Sector
Cambridgeshire County Council,29-Jun-17,23635762-15612546,-745.05,Glennfield Care Centre (Op),Care Establishment,2 - Commissioning - Older people Pool,Older People Mental Health Fenland,Nursing Independent Sector
Cambridgeshire County Council,29-Jun-17,23635767-15612551,-745.05,Glennfield Care Centre (Op),Care Establishment,2 - Commissioning - Older people Pool,Older People Mental Health Fenland,Nursing Independent Sector
Cambridgeshire County Council,29-Jun-17,23641561-15612559,-745.05,Glennfield Care Centre (Op),Care Establishment,2 - Commissioning - Older people Pool,Hunts O P  Team,Nursing Independent Sector
Cambridgeshire County Council,29-Jun-17,23632956-15612564,-745.05,Glennfield Care Centre (Op),Care Establishment,2 - Commissioning - Older people Pool,Older People Mental Health Fenland,Nursing Independent Sector
Cambridgeshire County Council,29-Jun-17,23632960-15612568,-745.05,Glennfield Care Centre (Op),Care Establishment,2 - Commissioning - Older people Pool,Older People Mental Health Fenland,Nursing Independent Sector
Cambridgeshire County Council,29-Jun-17,23639002-15612579,-745.05,Glennfield Care Centre (Op),Care Establishment,2 - Commissioning - Older people Pool,Hunts O P  Team,Nursing Independent Sector
Cambridgeshire County Council,08-Jun-17,23448518-15483599,-737.1,Availl Healthcare,Care Establishment,2 - Commissioning - Older people Pool,Older People - City & South,Day and Domicillary Care Independent Sector
Cambridgeshire County Council,15-Jun-17,23417408-15536326,-736.45,The Edmund Trust,Care Establishment,2 - Operations - Learning Disability,LDP E Cambs Locality - Care,Day and Domicillary Care Independent Sector
Cambridgeshire County Council,15-Jun-17,23450692-15536365,-736.45,The Edmund Trust,Care Establishment,2 - Operations - Learning Disability,LDP E Cambs Special Needs,Day and Domicillary Care Independent Sector
Cambridgeshire County Council,15-Jun-17,23450697-15536368,-736.45,The Edmund Trust,Care Establishment,2 - Operations - Learning Disability,LDP E Cambs Special Needs,Day and Domicillary Care Independent Sector
Cambridgeshire County Council,15-Jun-17,23482333-15536418,-736.45,The Edmund Trust,Care Establishment,2 - Operations - Learning Disability,LDP E Cambs Special Needs,Day and Domicillary Care Independent Sector
Cambridgeshire County Council,15-Jun-17,23482338-15536423,-736.45,The Edmund Trust,Care Establishment,2 - Operations - Learning Disability,LDP E Cambs Locality - Care,Day and Domicillary Care Independent Sector
Cambridgeshire County Council,22-Jun-17,23569860-15570167,-736.45,The Edmund Trust,Care Establishment,2 - Operations - Learning Disability,LDP E Cambs Locality - Care,Day and Domicillary Care Independent Sector
Cambridgeshire County Council,22-Jun-17,23569866-15570170,-736.45,The Edmund Trust,Care Establishment,2 - Operations - Learning Disability,LDP E Cambs Locality - Care,Day and Domicillary Care Independent Sector
Cambridgeshire County Council,29-Jun-17,23640675-15612239,-736.45,The Edmund Trust,Care Establishment,2 - Operations - Learning Disability,LDP E Cambs Special Needs,Day and Domicillary Care Independent Sector
Cambridgeshire County Council,15-Jun-17,23417393-15536317,-736.45,The Edmund Trust,Care Establishment,2 - Operations - Learning Disability,LDP E Cambs Locality - Care,Day and Domicillary Care Independent Sector
Cambridgeshire County Council,15-Jun-17,23417394-15536318,-736.45,The Edmund Trust,Care Establishment,2 - Operations - Learning Disability,LDP E Cambs Locality - Care,Day and Domicillary Care Independent Sector
Cambridgeshire County Council,15-Jun-17,23417412-15536328,-736.45,The Edmund Trust,Care Establishment,2 - Operations - Learning Disability,LDP E Cambs Special Needs,Day and Domicillary Care Independent Sector
Cambridgeshire County Council,15-Jun-17,23450698-15536369,-736.45,The Edmund Trust,Care Establishment,2 - Operations - Learning Disability,LDP E Cambs Special Needs,Day and Domicillary Care Independent Sector
Cambridgeshire County Council,15-Jun-17,23482320-15536405,-736.45,The Edmund Trust,Care Establishment,2 - Operations - Learning Disability,LDP E Cambs Locality - Care,Day and Domicillary Care Independent Sector
Cambridgeshire County Council,22-Jun-17,23569804-15570138,-736.45,The Edmund Trust,Care Establishment,2 - Operations - Learning Disability,LDP E Cambs Special Needs,Day and Domicillary Care Independent Sector
Cambridgeshire County Council,29-Jun-17,23638087-15612275,-736.45,The Edmund Trust,Care Establishment,2 - Operations - Learning Disability,LDP E Cambs Locality - Care,Day and Domicillary Care Independent Sector
Cambridgeshire County Council,29-Jun-17,23638073-15612278,-736.45,The Edmund Trust,Care Establishment,2 - Operations - Learning Disability,LDP E Cambs Special Needs,Day and Domicillary Care Independent Sector
Cambridgeshire County Council,29-Jun-17,23638082-15612283,-736.45,The Edmund Trust,Care Establishment,2 - Operations - Learning Disability,LDP E Cambs Special Needs,Day and Domicillary Care Independent Sector
Cambridgeshire County Council,29-Jun-17,23640672-15612237,-736.45,The Edmund Trust,Care Establishment,2 - Operations - Learning Disability,LDP E Cambs Locality - Care,Day and Domicillary Care Independent Sector
Cambridgeshire County Council,29-Jun-17,23640678-15612241,-736.45,The Edmund Trust,Care Establishment,2 - Operations - Learning Disability,LDP E Cambs Special Needs,Day and Domicillary Care Independent Sector
Cambridgeshire County Council,15-Jun-17,23417389-15536313,-736.45,The Edmund Trust,Care Establishment,2 - Operations - Learning Disability,LDP E Cambs Locality - Care,Day and Domicillary Care Independent Sector
Cambridgeshire County Council,15-Jun-17,23417395-15536319,-736.45,The Edmund Trust,Care Establishment,2 - Operations - Learning Disability,LDP E Cambs Special Needs,Day and Domicillary Care Independent Sector
Cambridgeshire County Council,15-Jun-17,23417397-15536320,-736.45,The Edmund Trust,Care Establishment,2 - Operations - Learning Disability,LDP E Cambs Special Needs,Day and Domicillary Care Independent Sector
Cambridgeshire County Council,15-Jun-17,23417421-15536333,-736.45,The Edmund Trust,Care Establishment,2 - Operations - Learning Disability,LDP E Cambs Locality - Care,Day and Domicillary Care Independent Sector
Cambridgeshire County Council,15-Jun-17,23450670-15536350,-736.45,The Edmund Trust,Care Establishment,2 - Operations - Learning Disability,LDP E Cambs Locality - Care,Day and Domicillary Care Independent Sector
Cambridgeshire County Council,15-Jun-17,23482330-15536415,-736.45,The Edmund Trust,Care Establishment,2 - Operations - Learning Disability,LDP E Cambs Locality - Care,Day and Domicillary Care Independent Sector
Cambridgeshire County Council,15-Jun-17,23482331-15536416,-736.45,The Edmund Trust,Care Establishment,2 - Operations - Learning Disability,LDP E Cambs Special Needs,Day and Domicillary Care Independent Sector
Cambridgeshire County Council,22-Jun-17,23569802-15570136,-736.45,The Edmund Trust,Care Establishment,2 - Operations - Learning Disability,LDP E Cambs Special Needs,Day and Domicillary Care Independent Sector
Cambridgeshire County Council,22-Jun-17,23569835-15570154,-736.45,The Edmund Trust,Care Establishment,2 - Operations - Learning Disability,LDP E Cambs Special Needs,Day and Domicillary Care Independent Sector
Cambridgeshire County Council,29-Jun-17,23640674-15612238,-736.45,The Edmund Trust,Care Establishment,2 - Operations - Learning Disability,LDP E Cambs Locality - Care,Day and Domicillary Care Independent Sector
Cambridgeshire County Council,29-Jun-17,23640643-15612248,-736.45,The Edmund Trust,Care Establishment,2 - Operations - Learning Disability,LDP E Cambs Special Needs,Day and Domicillary Care Independent Sector
Cambridgeshire County Council,29-Jun-17,23640647-15612250,-736.45,The Edmund Trust,Care Establishment,2 - Operations - Learning Disability,LDP E Cambs Locality - Care,Day and Domicillary Care Independent Sector
Cambridgeshire County Council,15-Jun-17,23417391-15536315,-736.45,The Edmund Trust,Care Establishment,2 - Operations - Learning Disability,LDP E Cambs Locality - Care,Day and Domicillary Care Independent Sector
Cambridgeshire County Council,15-Jun-17,23417425-15536337,-736.45,The Edmund Trust,Care Establishment,2 - Operations - Learning Disability,LDP E Cambs Locality - Care,Day and Domicillary Care Independent Sector
Cambridgeshire County Council,15-Jun-17,23417433-15536341,-736.45,The Edmund Trust,Care Establishment,2 - Operations - Learning Disability,LDP E Cambs Locality - Care,Day and Domicillary Care Independent Sector
Cambridgeshire County Council,15-Jun-17,23417439-15536343,-736.45,The Edmund Trust,Care Establishment,2 - Operations - Learning Disability,LDP E Cambs Locality - Care,Day and Domicillary Care Independent Sector
Cambridgeshire County Council,15-Jun-17,23450673-15536353,-736.45,The Edmund Trust,Care Establishment,2 - Operations - Learning Disability,LDP E Cambs Special Needs,Day and Domicillary Care Independent Sector
Cambridgeshire County Council,15-Jun-17,23450690-15536363,-736.45,The Edmund Trust,Care Establishment,2 - Operations - Learning Disability,LDP E Cambs Locality - Care,Day and Domicillary Care Independent Sector
Cambridgeshire County Council,15-Jun-17,23450705-15536374,-736.45,The Edmund Trust,Care Establishment,2 - Operations - Learning Disability,LDP E Cambs Locality - Care,Day and Domicillary Care Independent Sector
Cambridgeshire County Council,15-Jun-17,23482327-15536412,-736.45,The Edmund Trust,Care Establishment,2 - Operations - Learning Disability,LDP E Cambs Special Needs,Day and Domicillary Care Independent Sector
Cambridgeshire County Council,15-Jun-17,23482335-15536420,-736.45,The Edmund Trust,Care Establishment,2 - Operations - Learning Disability,LDP E Cambs Special Needs,Day and Domicillary Care Independent Sector
Cambridgeshire County Council,22-Jun-17,23569829-15570151,-736.45,The Edmund Trust,Care Establishment,2 - Operations - Learning Disability,LDP E Cambs Locality - Care,Day and Domicillary Care Independent Sector
Cambridgeshire County Council,22-Jun-17,23569863-15570168,-736.45,The Edmund Trust,Care Establishment,2 - Operations - Learning Disability,LDP E Cambs Special Needs,Day and Domicillary Care Independent Sector
Cambridgeshire County Council,29-Jun-17,23638075-15612280,-736.45,The Edmund Trust,Care Establishment,2 - Operations - Learning Disability,LDP E Cambs Locality - Care,Day and Domicillary Care Independent Sector
Cambridgeshire County Council,15-Jun-17,23450663-15536346,-736.45,The Edmund Trust,Care Establishment,2 - Operations - Learning Disability,LDP E Cambs Locality - Care,Day and Domicillary Care Independent Sector
Cambridgeshire County Council,15-Jun-17,23450682-15536359,-736.45,The Edmund Trust,Care Establishment,2 - Operations - Learning Disability,LDP E Cambs Special Needs,Day and Domicillary Care Independent Sector
Cambridgeshire County Council,15-Jun-17,23482312-15536397,-736.45,The Edmund Trust,Care Establishment,2 - Operations - Learning Disability,LDP E Cambs Locality - Care,Day and Domicillary Care Independent Sector
Cambridgeshire County Council,15-Jun-17,23482319-15536404,-736.45,The Edmund Trust,Care Establishment,2 - Operations - Learning Disability,LDP E Cambs Special Needs,Day and Domicillary Care Independent Sector
Cambridgeshire County Council,15-Jun-17,23482332-15536417,-736.45,The Edmund Trust,Care Establishment,2 - Operations - Learning Disability,LDP E Cambs Locality - Care,Day and Domicillary Care Independent Sector
Cambridgeshire County Council,22-Jun-17,23569817-15570143,-736.45,The Edmund Trust,Care Establishment,2 - Operations - Learning Disability,LDP E Cambs Special Needs,Day and Domicillary Care Independent Sector
Cambridgeshire County Council,22-Jun-17,23569818-15570144,-736.45,The Edmund Trust,Care Establishment,2 - Operations - Learning Disability,LDP E Cambs Locality - Care,Day and Domicillary Care Independent Sector
Cambridgeshire County Council,29-Jun-17,23638076-15612281,-736.45,The Edmund Trust,Care Establishment,2 - Operations - Learning Disability,LDP E Cambs Special Needs,Day and Domicillary Care Independent Sector
Cambridgeshire County Council,29-Jun-17,23640632-15612246,-736.45,The Edmund Trust,Care Establishment,2 - Operations - Learning Disability,LDP E Cambs Locality - Care,Day and Domicillary Care Independent Sector
Cambridgeshire County Council,15-Jun-17,23417417-15536331,-736.45,The Edmund Trust,Care Establishment,2 - Operations - Learning Disability,LDP E Cambs Special Needs,Day and Domicillary Care Independent Sector
Cambridgeshire County Council,15-Jun-17,23417419-15536332,-736.45,The Edmund Trust,Care Establishment,2 - Operations - Learning Disability,LDP E Cambs Special Needs,Day and Domicillary Care Independent Sector
Cambridgeshire County Council,15-Jun-17,23450664-15536347,-736.45,The Edmund Trust,Care Establishment,2 - Operations - Learning Disability,LDP E Cambs Locality - Care,Day and Domicillary Care Independent Sector
Cambridgeshire County Council,15-Jun-17,23450688-15536362,-736.45,The Edmund Trust,Care Establishment,2 - Operations - Learning Disability,LDP E Cambs Special Needs,Day and Domicillary Care Independent Sector
Cambridgeshire County Council,15-Jun-17,23450701-15536371,-736.45,The Edmund Trust,Care Establishment,2 - Operations - Learning Disability,LDP E Cambs Special Needs,Day and Domicillary Care Independent Sector
Cambridgeshire County Council,15-Jun-17,23482314-15536399,-736.45,The Edmund Trust,Care Establishment,2 - Operations - Learning Disability,LDP E Cambs Locality - Care,Day and Domicillary Care Independent Sector
Cambridgeshire County Council,15-Jun-17,23482321-15536406,-736.45,The Edmund Trust,Care Establishment,2 - Operations - Learning Disability,LDP E Cambs Locality - Care,Day and Domicillary Care Independent Sector
Cambridgeshire County Council,22-Jun-17,23569830-15570152,-736.45,The Edmund Trust,Care Establishment,2 - Operations - Learning Disability,LDP E Cambs Special Needs,Day and Domicillary Care Independent Sector
Cambridgeshire County Council,22-Jun-17,23569847-15570159,-736.45,The Edmund Trust,Care Establishment,2 - Operations - Learning Disability,LDP E Cambs Locality - Care,Day and Domicillary Care Independent Sector
Cambridgeshire County Council,22-Jun-17,23569880-15570178,-736.45,The Edmund Trust,Care Establishment,2 - Operations - Learning Disability,LDP E Cambs Special Needs,Day and Domicillary Care Independent Sector
Cambridgeshire County Council,29-Jun-17,23640687-15612243,-736.45,The Edmund Trust,Care Establishment,2 - Operations - Learning Disability,LDP E Cambs Special Needs,Day and Domicillary Care Independent Sector
Cambridgeshire County Council,15-Jun-17,23450675-15536355,-736.45,The Edmund Trust,Care Establishment,2 - Operations - Learning Disability,LDP E Cambs Locality - Care,Day and Domicillary Care Independent Sector
Cambridgeshire County Council,15-Jun-17,23450696-15536367,-736.45,The Edmund Trust,Care Establishment,2 - Operations - Learning Disability,LDP E Cambs Locality - Care,Day and Domicillary Care Independent Sector
Cambridgeshire County Council,15-Jun-17,23450711-15536376,-736.45,The Edmund Trust,Care Establishment,2 - Operations - Learning Disability,LDP E Cambs Locality - Care,Day and Domicillary Care Independent Sector
Cambridgeshire County Council,15-Jun-17,23482316-15536401,-736.45,The Edmund Trust,Care Establishment,2 - Operations - Learning Disability,LDP E Cambs Special Needs,Day and Domicillary Care Independent Sector
Cambridgeshire County Council,15-Jun-17,23482322-15536407,-736.45,The Edmund Trust,Care Establishment,2 - Operations - Learning Disability,LDP E Cambs Locality - Care,Day and Domicillary Care Independent Sector
Cambridgeshire County Council,22-Jun-17,23569828-15570150,-736.45,The Edmund Trust,Care Establishment,2 - Operations - Learning Disability,LDP E Cambs Special Needs,Day and Domicillary Care Independent Sector
Cambridgeshire County Council,22-Jun-17,23569836-15570155,-736.45,The Edmund Trust,Care Establishment,2 - Operations - Learning Disability,LDP E Cambs Locality - Care,Day and Domicillary Care Independent Sector
Cambridgeshire County Council,22-Jun-17,23569858-15570165,-736.45,The Edmund Trust,Care Establishment,2 - Operations - Learning Disability,LDP E Cambs Locality - Care,Day and Domicillary Care Independent Sector
Cambridgeshire County Council,29-Jun-17,23640661-15612231,-736.45,The Edmund Trust,Care Establishment,2 - Operations - Learning Disability,LDP E Cambs Special Needs,Day and Domicillary Care Independent Sector
Cambridgeshire County Council,29-Jun-17,23640684-15612242,-736.45,The Edmund Trust,Care Establishment,2 - Operations - Learning Disability,LDP E Cambs Locality - Care,Day and Domicillary Care Independent Sector
Cambridgeshire County Council,15-Jun-17,23417413-15536329,-736.45,The Edmund Trust,Care Establishment,2 - Operations - Learning Disability,LDP E Cambs Special Needs,Day and Domicillary Care Independent Sector
Cambridgeshire County Council,15-Jun-17,23417428-15536339,-736.45,The Edmund Trust,Care Establishment,2 - Operations - Learning Disability,LDP E Cambs Locality - Care,Day and Domicillary Care Independent Sector
Cambridgeshire County Council,15-Jun-17,23450659-15536345,-736.45,The Edmund Trust,Care Establishment,2 - Operations - Learning Disability,LDP E Cambs Special Needs,Day and Domicillary Care Independent Sector
Cambridgeshire County Council,15-Jun-17,23482325-15536410,-736.45,The Edmund Trust,Care Establishment,2 - Operations - Learning Disability,LDP E Cambs Locality - Care,Day and Domicillary Care Independent Sector
Cambridgeshire County Council,15-Jun-17,23482326-15536411,-736.45,The Edmund Trust,Care Establishment,2 - Operations - Learning Disability,LDP E Cambs Locality - Care,Day and Domicillary Care Independent Sector
Cambridgeshire County Council,22-Jun-17,23569820-15570145,-736.45,The Edmund Trust,Care Establishment,2 - Operations - Learning Disability,LDP E Cambs Special Needs,Day and Domicillary Care Independent Sector
Cambridgeshire County Council,29-Jun-17,23640631-15612245,-736.45,The Edmund Trust,Care Establishment,2 - Operations - Learning Disability,LDP E Cambs Locality - Care,Day and Domicillary Care Independent Sector
Cambridgeshire County Council,01-Jun-17,23390723-15437140,-733.9,Bramley Court,Care Establishment,2 - Commissioning - Older people Pool,Older People - City & South,Nursing Independent Sector
Cambridgeshire County Council,01-Jun-17,23390724-15437141,-733.9,Bramley Court,Care Establishment,2 - Commissioning - Older people Pool,Older People - City & South,Nursing Independent Sector
Cambridgeshire County Council,22-Jun-17,23488012-15555943,-724.05,Hunters Healthcare (Hunters Down),Care Establishment,2 - Commissioning - Older people Pool,Hunts O P  Team,Nursing Independent Sector
Cambridgeshire County Council,29-Jun-17,23638152-15620235,-724.05,Hunters Healthcare (Hunters Down),Care Establishment,2 - Commissioning - Older people Pool,Hunts O P  Team,Nursing Independent Sector
Cambridgeshire County Council,22-Jun-17,23488009-15555940,-724.05,Hunters Healthcare (Hunters Down),Care Establishment,2 - Commissioning - Older people Pool,Hunts O P  Team,Nursing Independent Sector
Cambridgeshire County Council,22-Jun-17,23488010-15555941,-724.05,Hunters Healthcare (Hunters Down),Care Establishment,2 - Commissioning - Older people Pool,Hunts O P  Team,Nursing Independent Sector
Cambridgeshire County Council,22-Jun-17,23488011-15555942,-724.05,Hunters Healthcare (Hunters Down),Care Establishment,2 - Commissioning - Older people Pool,Hunts O P  Team,Nursing Independent Sector
Cambridgeshire County Council,29-Jun-17,23638150-15620233,-724.05,Hunters Healthcare (Hunters Down),Care Establishment,2 - Commissioning - Older people Pool,Hunts O P  Team,Nursing Independent Sector
Cambridgeshire County Council,22-Jun-17,23489536-15555923,-724.05,Hunters Healthcare (Hunters Down),Care Establishment,2 - Commissioning - Older people Pool,Hunts O P  Team,Nursing Independent Sector
Cambridgeshire County Council,22-Jun-17,23489537-15555924,-724.05,Hunters Healthcare (Hunters Down),Care Establishment,2 - Commissioning - Older people Pool,Hunts O P  Team,Nursing Independent Sector
Cambridgeshire County Council,22-Jun-17,23488007-15555939,-724.05,Hunters Healthcare (Hunters Down),Care Establishment,2 - Commissioning - Older people Pool,Hunts O P  Team,Nursing Independent Sector
Cambridgeshire County Council,22-Jun-17,23488014-15555944,-724.05,Hunters Healthcare (Hunters Down),Care Establishment,2 - Commissioning - Older people Pool,Hunts O P  Team,Nursing Independent Sector
Cambridgeshire County Council,29-Jun-17,23640965-15620109,-724.05,Hunters Healthcare (Hunters Down),Care Establishment,2 - Commissioning - Older people Pool,Hunts O P  Team,Nursing Independent Sector
Cambridgeshire County Council,01-Jun-17,23337786-15436172,-719.81,Redacted Personal Data,Individual,2 - Commissioning - Older people Pool,East Cambs - O P Team,SDS - Care and support Services
Cambridgeshire County Council,01-Jun-17,23337803-15436189,-719.81,Redacted Personal Data,Individual,2 - Commissioning - Older people Pool,East Cambs - O P Team,Direct Payments - Social Services
Cambridgeshire County Council,01-Jun-17,23337809-15436195,-719.81,Redacted Personal Data,Individual,2 - Commissioning - Older people Pool,East Cambs - O P Team,Direct Payments - Social Services
Cambridgeshire County Council,01-Jun-17,23384514-15436334,-719.81,Redacted Personal Data,Individual,2 - Commissioning - Older people Pool,East Cambs - O P Team,Direct Payments - Social Services
Cambridgeshire County Council,01-Jun-17,23384548-15436368,-719.81,Redacted Personal Data,Individual,2 - Commissioning - Older people Pool,East Cambs - O P Team,Direct Payments - Social Services
Cambridgeshire County Council,01-Jun-17,23337831-15436217,-719.81,Redacted Personal Data,Individual,2 - Commissioning - Older people Pool,East Cambs - O P Team,Direct Payments - Social Services
Cambridgeshire County Council,01-Jun-17,23371562-15436235,-719.81,Redacted Personal Data,Individual,2 - Commissioning - Older people Pool,East Cambs - O P Team,SDS - Care and support Services
Cambridgeshire County Council,01-Jun-17,23371566-15436239,-719.81,Redacted Personal Data,Individual,2 - Commissioning - Older people Pool,East Cambs - O P Team,Direct Payments - Social Services
Cambridgeshire County Council,01-Jun-17,23384450-15436270,-719.81,Redacted Personal Data,Individual,2 - Commissioning - Older people Pool,East Cambs - O P Team,Direct Payments - Social Services
Cambridgeshire County Council,01-Jun-17,23384457-15436277,-719.81,Redacted Personal Data,Individual,2 - Commissioning - Older people Pool,East Cambs - O P Team,Direct Payments - Social Services
Cambridgeshire County Council,01-Jun-17,23384461-15436281,-719.81,Redacted Personal Data,Individual,2 - Commissioning - Older people Pool,East Cambs - O P Team,Direct Payments - Social Services
Cambridgeshire County Council,01-Jun-17,23384474-15436294,-719.81,Redacted Personal Data,Individual,2 - Commissioning - Older people Pool,East Cambs - O P Team,SDS - Care and support Services
Cambridgeshire County Council,01-Jun-17,23384477-15436297,-719.81,Redacted Personal Data,Individual,2 - Commissioning - Older people Pool,East Cambs - O P Team,SDS - Care and support Services
Cambridgeshire County Council,01-Jun-17,23384492-15436312,-719.81,Redacted Personal Data,Individual,2 - Commissioning - Older people Pool,East Cambs - O P Team,Direct Payments - Social Services
Cambridgeshire County Council,01-Jun-17,23337123-15436008,-719.81,Redacted Personal Data,Individual,2 - Commissioning - Older people Pool,East Cambs - O P Team,Direct Payments - Social Services
Cambridgeshire County Council,01-Jun-17,23337131-15436016,-719.81,Redacted Personal Data,Individual,2 - Commissioning - Older people Pool,East Cambs - O P Team,SDS - Care and support Services
Cambridgeshire County Council,01-Jun-17,23337140-15436025,-719.81,Redacted Personal Data,Individual,2 - Commissioning - Older people Pool,East Cambs - O P Team,SDS - Care and support Services
Cambridgeshire County Council,01-Jun-17,23335816-15436051,-719.81,Redacted Personal Data,Individual,2 - Commissioning - Older people Pool,East Cambs - O P Team,SDS - Care and support Services
Cambridgeshire County Council,01-Jun-17,23335832-15436067,-719.81,Redacted Personal Data,Individual,2 - Commissioning - Older people Pool,East Cambs - O P Team,SDS - Care and support Services
Cambridgeshire County Council,01-Jun-17,23335838-15436073,-719.81,Redacted Personal Data,Individual,2 - Commissioning - Older people Pool,East Cambs - O P Team,Direct Payments - Social Services
Cambridgeshire County Council,01-Jun-17,23335843-15436078,-719.81,Redacted Personal Data,Individual,2 - Commissioning - Older people Pool,East Cambs - O P Team,Direct Payments - Social Services
Cambridgeshire County Council,01-Jun-17,23335848-15436083,-719.81,Redacted Personal Data,Individual,2 - Commissioning - Older people Pool,East Cambs - O P Team,Direct Payments - Social Services
Cambridgeshire County Council,01-Jun-17,23337121-15436100,-719.81,Redacted Personal Data,Individual,2 - Commissioning - Older people Pool,East Cambs - O P Team,Direct Payments - Social Services
Cambridgeshire County Council,01-Jun-17,23337719-15436105,-719.81,Redacted Personal Data,Individual,2 - Commissioning - Older people Pool,East Cambs - O P Team,Direct Payments - Social Services
Cambridgeshire County Council,01-Jun-17,23337765-15436151,-719.81,Redacted Personal Data,Individual,2 - Commissioning - Older people Pool,East Cambs - O P Team,SDS - Care and support Services
Cambridgeshire County Council,01-Jun-17,23424488-15436668,-719.81,Redacted Personal Data,Individual,2 - Commissioning - Older people Pool,East Cambs - O P Team,Direct Payments - Social Services
Cambridgeshire County Council,01-Jun-17,23390591-15436415,-719.81,Redacted Personal Data,Individual,2 - Commissioning - Older people Pool,East Cambs - O P Team,Direct Payments - Social Services
Cambridgeshire County Council,01-Jun-17,23390604-15436428,-719.81,Redacted Personal Data,Individual,2 - Commissioning - Older people Pool,East Cambs - O P Team,SDS - Care and support Services
Cambridgeshire County Council,01-Jun-17,23390614-15436437,-719.81,Redacted Personal Data,Individual,2 - Commissioning - Older people Pool,East Cambs - O P Team,SDS - Care and support Services
Cambridgeshire County Council,01-Jun-17,23390627-15436450,-719.81,Redacted Personal Data,Individual,2 - Commissioning - Older people Pool,East Cambs - O P Team,Direct Payments - Social Services
Cambridgeshire County Council,01-Jun-17,23417708-15436470,-719.81,Redacted Personal Data,Individual,2 - Commissioning - Older people Pool,East Cambs - O P Team,SDS - Care and support Services
Cambridgeshire County Council,01-Jun-17,23417714-15436476,-719.81,Redacted Personal Data,Individual,2 - Commissioning - Older people Pool,East Cambs - O P Team,Direct Payments - Social Services
Cambridgeshire County Council,01-Jun-17,23417721-15436483,-719.81,Redacted Personal Data,Individual,2 - Commissioning - Older people Pool,East Cambs - O P Team,Direct Payments - Social Services
Cambridgeshire County Council,01-Jun-17,23417722-15436484,-719.81,Redacted Personal Data,Individual,2 - Commissioning - Older people Pool,East Cambs - O P Team,Direct Payments - Social Services
Cambridgeshire County Council,01-Jun-17,23417736-15436498,-719.81,Redacted Personal Data,Individual,2 - Commissioning - Older people Pool,East Cambs - O P Team,Direct Payments - Social Services
Cambridgeshire County Council,01-Jun-17,23417766-15436528,-719.81,Redacted Personal Data,Individual,2 - Commissioning - Older people Pool,East Cambs - O P Team,SDS - Care and support Services
Cambridgeshire County Council,01-Jun-17,23422451-15436535,-719.81,Redacted Personal Data,Individual,2 - Commissioning - Older people Pool,East Cambs - O P Team,SDS - Care and support Services
Cambridgeshire County Council,01-Jun-17,23422459-15436543,-719.81,Redacted Personal Data,Individual,2 - Commissioning - Older people Pool,East Cambs - O P Team,SDS - Care and support Services
Cambridgeshire County Council,01-Jun-17,23422482-15436566,-719.81,Redacted Personal Data,Individual,2 - Commissioning - Older people Pool,East Cambs - O P Team,SDS - Care and support Services
Cambridgeshire County Council,01-Jun-17,23423960-15436601,-719.81,Redacted Personal Data,Individual,2 - Commissioning - Older people Pool,East Cambs - O P Team,Direct Payments - Social Services
Cambridgeshire County Council,01-Jun-17,23424521-15436627,-719.81,Redacted Personal Data,Individual,2 - Commissioning - Older people Pool,East Cambs - O P Team,Direct Payments - Social Services
Cambridgeshire County Council,01-Jun-17,23424525-15436631,-719.81,Redacted Personal Data,Individual,2 - Commissioning - Older people Pool,East Cambs - O P Team,SDS - Care and support Services
Cambridgeshire County Council,01-Jun-17,23424527-15436633,-719.81,Redacted Personal Data,Individual,2 - Commissioning - Older people Pool,East Cambs - O P Team,SDS - Care and support Services
Cambridgeshire County Council,01-Jun-17,23424529-15436635,-719.81,Redacted Personal Data,Individual,2 - Commissioning - Older people Pool,East Cambs - O P Team,Direct Payments - Social Services
Cambridgeshire County Council,29-Jun-17,23452655-15616686,-719.81,Redacted Personal Data,Individual,2 - Commissioning - Older people Pool,East Cambs - O P Team,Direct Payments - Social Services
Cambridgeshire County Council,29-Jun-17,23452659-15616690,-719.81,Redacted Personal Data,Individual,2 - Commissioning - Older people Pool,East Cambs - O P Team,Direct Payments - Social Services
Cambridgeshire County Council,29-Jun-17,23452669-15616700,-719.81,Redacted Personal Data,Individual,2 - Commissioning - Older people Pool,East Cambs - O P Team,SDS - Care and support Services
Cambridgeshire County Council,29-Jun-17,23452680-15616711,-719.81,Redacted Personal Data,Individual,2 - Commissioning - Older people Pool,East Cambs - O P Team,Direct Payments - Social Services
Cambridgeshire County Council,29-Jun-17,23452681-15616712,-719.81,Redacted Personal Data,Individual,2 - Commissioning - Older people Pool,East Cambs - O P Team,SDS - Care and support Services
Cambridgeshire County Council,29-Jun-17,23636942-15616726,-719.81,Redacted Personal Data,Individual,2 - Commissioning - Older people Pool,East Cambs - O P Team,Direct Payments - Social Services
Cambridgeshire County Council,29-Jun-17,23636948-15616732,-719.81,Redacted Personal Data,Individual,2 - Commissioning - Older people Pool,East Cambs - O P Team,Direct Payments - Social Services
Cambridgeshire County Council,29-Jun-17,23636952-15616736,-719.81,Redacted Personal Data,Individual,2 - Commissioning - Older people Pool,East Cambs - O P Team,SDS - Care and support Services
Cambridgeshire County Council,29-Jun-17,23636916-15616757,-719.81,Redacted Personal Data,Individual,2 - Commissioning - Older people Pool,East Cambs - O P Team,SDS - Care and support Services
Cambridgeshire County Council,29-Jun-17,23636917-15616758,-719.81,Redacted Personal Data,Individual,2 - Commissioning - Older people Pool,East Cambs - O P Team,Direct Payments - Social Services
Cambridgeshire County Council,29-Jun-17,23636919-15616760,-719.81,Redacted Personal Data,Individual,2 - Commissioning - Older people Pool,East Cambs - O P Team,SDS - Care and support Services
Cambridgeshire County Council,29-Jun-17,23452722-15616517,-719.81,Redacted Personal Data,Individual,2 - Commissioning - Older people Pool,East Cambs - O P Team,SDS - Care and support Services
Cambridgeshire County Council,29-Jun-17,23454644-15616569,-719.81,Redacted Personal Data,Individual,2 - Commissioning - Older people Pool,East Cambs - O P Team,SDS - Care and support Services
Cambridgeshire County Council,29-Jun-17,23452778-15616601,-719.81,Redacted Personal Data,Individual,2 - Commissioning - Older people Pool,East Cambs - O P Team,SDS - Care and support Services
Cambridgeshire County Council,29-Jun-17,23452785-15616608,-719.81,Redacted Personal Data,Individual,2 - Commissioning - Older people Pool,East Cambs - O P Team,Direct Payments - Social Services
Cambridgeshire County Council,29-Jun-17,23452703-15616616,-719.81,Redacted Personal Data,Individual,2 - Commissioning - Older people Pool,East Cambs - O P Team,SDS - Care and support Services
Cambridgeshire County Council,29-Jun-17,23452717-15616630,-719.81,Redacted Personal Data,Individual,2 - Commissioning - Older people Pool,East Cambs - O P Team,SDS - Care and support Services
Cambridgeshire County Council,29-Jun-17,23452604-15616635,-719.81,Redacted Personal Data,Individual,2 - Commissioning - Older people Pool,East Cambs - O P Team,SDS - Care and support Services
Cambridgeshire County Council,29-Jun-17,23452619-15616650,-719.81,Redacted Personal Data,Individual,2 - Commissioning - Older people Pool,East Cambs - O P Team,Direct Payments - Social Services
Cambridgeshire County Council,29-Jun-17,23452626-15616657,-719.81,Redacted Personal Data,Individual,2 - Commissioning - Older people Pool,East Cambs - O P Team,SDS - Care and support Services
Cambridgeshire County Council,29-Jun-17,23452633-15616664,-719.81,Redacted Personal Data,Individual,2 - Commissioning - Older people Pool,East Cambs - O P Team,SDS - Care and support Services
Cambridgeshire County Council,29-Jun-17,23580778-15616204,-719.81,Redacted Personal Data,Individual,2 - Commissioning - Older people Pool,East Cambs - O P Team,Direct Payments - Social Services
Cambridgeshire County Council,29-Jun-17,23487376-15616253,-719.81,Redacted Personal Data,Individual,2 - Commissioning - Older people Pool,East Cambs - O P Team,SDS - Care and support Services
Cambridgeshire County Council,29-Jun-17,23487379-15616255,-719.81,Redacted Personal Data,Individual,2 - Commissioning - Older people Pool,East Cambs - O P Team,Direct Payments - Social Services
Cambridgeshire County Council,29-Jun-17,23489489-15616297,-719.81,Redacted Personal Data,Individual,2 - Commissioning - Older people Pool,East Cambs - O P Team,SDS - Care and support Services
Cambridgeshire County Council,29-Jun-17,23489493-15616299,-719.81,Redacted Personal Data,Individual,2 - Commissioning - Older people Pool,East Cambs - O P Team,SDS - Care and support Services
Cambridgeshire County Council,29-Jun-17,23491233-15616305,-719.81,Redacted Personal Data,Individual,2 - Commissioning - Older people Pool,East Cambs - O P Team,SDS - Care and support Services
Cambridgeshire County Council,29-Jun-17,23491250-15616322,-719.81,Redacted Personal Data,Individual,2 - Commissioning - Older people Pool,East Cambs - O P Team,Direct Payments - Social Services
Cambridgeshire County Council,29-Jun-17,23491252-15616324,-719.81,Redacted Personal Data,Individual,2 - Commissioning - Older people Pool,East Cambs - O P Team,Direct Payments - Social Services
Cambridgeshire County Council,29-Jun-17,23491266-15616338,-719.81,Redacted Personal Data,Individual,2 - Commissioning - Older people Pool,East Cambs - O P Team,Direct Payments - Social Services
Cambridgeshire County Council,29-Jun-17,23487430-15616414,-719.81,Redacted Personal Data,Individual,2 - Commissioning - Older people Pool,East Cambs - O P Team,SDS - Care and support Services
Cambridgeshire County Council,29-Jun-17,23487468-15616443,-719.81,Redacted Personal Data,Individual,2 - Commissioning - Older people Pool,East Cambs - O P Team,Direct Payments - Social Services
Cambridgeshire County Council,29-Jun-17,23487502-15616470,-719.81,Redacted Personal Data,Individual,2 - Commissioning - Older people Pool,East Cambs - O P Team,Direct Payments - Social Services
Cambridgeshire County Council,29-Jun-17,23454652-15616474,-719.81,Redacted Personal Data,Individual,2 - Commissioning - Older people Pool,East Cambs - O P Team,Direct Payments - Social Services
Cambridgeshire County Council,29-Jun-17,23454654-15616476,-719.81,Redacted Personal Data,Individual,2 - Commissioning - Older people Pool,East Cambs - O P Team,Direct Payments - Social Services
Cambridgeshire County Council,29-Jun-17,23491226-15616360,-719.81,Redacted Personal Data,Individual,2 - Commissioning - Older people Pool,East Cambs - O P Team,SDS - Care and support Services
Cambridgeshire County Council,29-Jun-17,23489448-15616368,-719.81,Redacted Personal Data,Individual,2 - Commissioning - Older people Pool,East Cambs - O P Team,Direct Payments - Social Services
Cambridgeshire County Council,29-Jun-17,23487403-15616394,-719.81,Redacted Personal Data,Individual,2 - Commissioning - Older people Pool,East Cambs - O P Team,SDS - Care and support Services
Cambridgeshire County Council,29-Jun-17,23487412-15616401,-719.81,Redacted Personal Data,Individual,2 - Commissioning - Older people Pool,East Cambs - O P Team,SDS - Care and support Services
Cambridgeshire County Council,29-Jun-17,23581009-15616017,-719.81,Redacted Personal Data,Individual,2 - Commissioning - Older people Pool,East Cambs - O P Team,Direct Payments - Social Services
Cambridgeshire County Council,29-Jun-17,23580972-15616026,-719.81,Redacted Personal Data,Individual,2 - Commissioning - Older people Pool,East Cambs - O P Team,Direct Payments - Social Services
Cambridgeshire County Council,29-Jun-17,23580993-15616047,-719.81,Redacted Personal Data,Individual,2 - Commissioning - Older people Pool,East Cambs - O P Team,SDS - Care and support Services
Cambridgeshire County Council,29-Jun-17,23580889-15616108,-719.81,Redacted Personal Data,Individual,2 - Commissioning - Older people Pool,East Cambs - O P Team,Direct Payments - Social Services
Cambridgeshire County Council,29-Jun-17,23580950-15616131,-719.81,Redacted Personal Data,Individual,2 - Commissioning - Older people Pool,East Cambs - O P Team,Direct Payments - Social Services
Cambridgeshire County Council,29-Jun-17,23580963-15616144,-719.81,Redacted Personal Data,Individual,2 - Commissioning - Older people Pool,East Cambs - O P Team,Direct Payments - Social Services
Cambridgeshire County Council,29-Jun-17,23580893-15616148,-719.81,Redacted Personal Data,Individual,2 - Commissioning - Older people Pool,East Cambs - O P Team,Direct Payments - Social Services
Cambridgeshire County Council,29-Jun-17,23580905-15616159,-719.81,Redacted Personal Data,Individual,2 - Commissioning - Older people Pool,East Cambs - O P Team,SDS - Care and support Services
Cambridgeshire County Council,29-Jun-17,23580908-15616162,-719.81,Redacted Personal Data,Individual,2 - Commissioning - Older people Pool,East Cambs - O P Team,SDS - Care and support Services
Cambridgeshire County Council,29-Jun-17,23580911-15616165,-719.81,Redacted Personal Data,Individual,2 - Commissioning - Older people Pool,East Cambs - O P Team,Direct Payments - Social Services
Cambridgeshire County Council,29-Jun-17,23580914-15616167,-719.81,Redacted Personal Data,Individual,2 - Commissioning - Older people Pool,East Cambs - O P Team,SDS - Care and support Services
Cambridgeshire County Council,29-Jun-17,23580917-15616170,-719.81,Redacted Personal Data,Individual,2 - Commissioning - Older people Pool,East Cambs - O P Team,Direct Payments - Social Services
Cambridgeshire County Council,29-Jun-17,23580848-15616193,-719.81,Redacted Personal Data,Individual,2 - Commissioning - Older people Pool,East Cambs - O P Team,Direct Payments - Social Services
Cambridgeshire County Council,29-Jun-17,23580849-15616194,-719.81,Redacted Personal Data,Individual,2 - Commissioning - Older people Pool,East Cambs - O P Team,SDS - Care and support Services
Cambridgeshire County Council,29-Jun-17,23633757-15615830,-719.81,Redacted Personal Data,Individual,2 - Commissioning - Older people Pool,East Cambs - O P Team,SDS - Care and support Services
Cambridgeshire County Council,29-Jun-17,23633763-15615836,-719.81,Redacted Personal Data,Individual,2 - Commissioning - Older people Pool,East Cambs - O P Team,Direct Payments - Social Services
Cambridgeshire County Council,29-Jun-17,23633772-15615845,-719.81,Redacted Personal Data,Individual,2 - Commissioning - Older people Pool,East Cambs - O P Team,Direct Payments - Social Services
Cambridgeshire County Council,29-Jun-17,23633642-15615932,-719.81,Redacted Personal Data,Individual,2 - Commissioning - Older people Pool,East Cambs - O P Team,SDS - Care and support Services
Cambridgeshire County Council,29-Jun-17,23633702-15615956,-719.81,Redacted Personal Data,Individual,2 - Commissioning - Older people Pool,East Cambs - O P Team,Direct Payments - Social Services
Cambridgeshire County Council,29-Jun-17,23633651-15615977,-719.81,Redacted Personal Data,Individual,2 - Commissioning - Older people Pool,East Cambs - O P Team,SDS - Care and support Services
Cambridgeshire County Council,29-Jun-17,23633656-15615982,-719.81,Redacted Personal Data,Individual,2 - Commissioning - Older people Pool,East Cambs - O P Team,SDS - Care and support Services
Cambridgeshire County Council,29-Jun-17,23633673-15615999,-719.81,Redacted Personal Data,Individual,2 - Commissioning - Older people Pool,East Cambs - O P Team,Direct Payments - Social Services
Cambridgeshire County Council,29-Jun-17,23581004-15616012,-719.81,Redacted Personal Data,Individual,2 - Commissioning - Older people Pool,East Cambs - O P Team,SDS - Care and support Services
Cambridgeshire County Council,29-Jun-17,23581006-15616014,-719.81,Redacted Personal Data,Individual,2 - Commissioning - Older people Pool,East Cambs - O P Team,SDS - Care and support Services
Cambridgeshire County Council,29-Jun-17,23633727-15615875,-719.81,Redacted Personal Data,Individual,2 - Commissioning - Older people Pool,East Cambs - O P Team,Direct Payments - Social Services
Cambridgeshire County Council,29-Jun-17,23633748-15615896,-719.81,Redacted Personal Data,Individual,2 - Commissioning - Older people Pool,East Cambs - O P Team,Direct Payments - Social Services
Cambridgeshire County Council,01-Jun-17,23337790-15436176,-719.81,Redacted Personal Data,Individual,2 - Commissioning - Older people Pool,East Cambs - O P Team,Direct Payments - Social Services
Cambridgeshire County Council,01-Jun-17,23337791-15436177,-719.81,Redacted Personal Data,Individual,2 - Commissioning - Older people Pool,East Cambs - O P Team,SDS - Care and support Services
Cambridgeshire County Council,01-Jun-17,23384523-15436343,-719.81,Redacted Personal Data,Individual,2 - Commissioning - Older people Pool,East Cambs - O P Team,Direct Payments - Social Services
Cambridgeshire County Council,01-Jun-17,23384529-15436349,-719.81,Redacted Personal Data,Individual,2 - Commissioning - Older people Pool,East Cambs - O P Team,Direct Payments - Social Services
Cambridgeshire County Council,01-Jun-17,23384533-15436353,-719.81,Redacted Personal Data,Individual,2 - Commissioning - Older people Pool,East Cambs - O P Team,SDS - Care and support Services
Cambridgeshire County Council,01-Jun-17,23384541-15436361,-719.81,Redacted Personal Data,Individual,2 - Commissioning - Older people Pool,East Cambs - O P Team,SDS - Care and support Services
Cambridgeshire County Council,01-Jun-17,23384571-15436389,-719.81,Redacted Personal Data,Individual,2 - Commissioning - Older people Pool,East Cambs - O P Team,Direct Payments - Social Services
Cambridgeshire County Council,01-Jun-17,23390585-15436409,-719.81,Redacted Personal Data,Individual,2 - Commissioning - Older people Pool,East Cambs - O P Team,Direct Payments - Social Services
Cambridgeshire County Council,01-Jun-17,23337825-15436211,-719.81,Redacted Personal Data,Individual,2 - Commissioning - Older people Pool,East Cambs - O P Team,SDS - Care and support Services
Cambridgeshire County Council,01-Jun-17,23337828-15436214,-719.81,Redacted Personal Data,Individual,2 - Commissioning - Older people Pool,East Cambs - O P Team,SDS - Care and support Services
Cambridgeshire County Council,01-Jun-17,23371557-15436230,-719.81,Redacted Personal Data,Individual,2 - Commissioning - Older people Pool,East Cambs - O P Team,Direct Payments - Social Services
Cambridgeshire County Council,01-Jun-17,23384427-15436245,-719.81,Redacted Personal Data,Individual,2 - Commissioning - Older people Pool,East Cambs - O P Team,SDS - Care and support Services
Cambridgeshire County Council,01-Jun-17,23384429-15436247,-719.81,Redacted Personal Data,Individual,2 - Commissioning - Older people Pool,East Cambs - O P Team,SDS - Care and support Services
Cambridgeshire County Council,01-Jun-17,23384432-15436250,-719.81,Redacted Personal Data,Individual,2 - Commissioning - Older people Pool,East Cambs - O P Team,Direct Payments - Social Services
Cambridgeshire County Council,01-Jun-17,23335008-15436003,-719.81,Redacted Personal Data,Individual,2 - Commissioning - Older people Pool,East Cambs - O P Team,Direct Payments - Social Services
Cambridgeshire County Council,01-Jun-17,23337138-15436023,-719.81,Redacted Personal Data,Individual,2 - Commissioning - Older people Pool,East Cambs - O P Team,SDS - Care and support Services
Cambridgeshire County Council,01-Jun-17,23337144-15436029,-719.81,Redacted Personal Data,Individual,2 - Commissioning - Older people Pool,East Cambs - O P Team,SDS - Care and support Services
Cambridgeshire County Council,01-Jun-17,23337152-15436037,-719.81,Redacted Personal Data,Individual,2 - Commissioning - Older people Pool,East Cambs - O P Team,Direct Payments - Social Services
Cambridgeshire County Council,01-Jun-17,23337158-15436043,-719.81,Redacted Personal Data,Individual,2 - Commissioning - Older people Pool,East Cambs - O P Team,Direct Payments - Social Services
Cambridgeshire County Council,01-Jun-17,23335820-15436055,-719.81,Redacted Personal Data,Individual,2 - Commissioning - Older people Pool,East Cambs - O P Team,Direct Payments - Social Services
Cambridgeshire County Council,01-Jun-17,23335828-15436063,-719.81,Redacted Personal Data,Individual,2 - Commissioning - Older people Pool,East Cambs - O P Team,Direct Payments - Social Services
Cambridgeshire County Council,01-Jun-17,23335833-15436068,-719.81,Redacted Personal Data,Individual,2 - Commissioning - Older people Pool,East Cambs - O P Team,SDS - Care and support Services
Cambridgeshire County Council,01-Jun-17,23337108-15436087,-719.81,Redacted Personal Data,Individual,2 - Commissioning - Older people Pool,East Cambs - O P Team,SDS - Care and support Services
Cambridgeshire County Council,01-Jun-17,23337726-15436112,-719.81,Redacted Personal Data,Individual,2 - Commissioning - Older people Pool,East Cambs - O P Team,SDS - Care and support Services
Cambridgeshire County Council,01-Jun-17,23337750-15436136,-719.81,Redacted Personal Data,Individual,2 - Commissioning - Older people Pool,East Cambs - O P Team,SDS - Care and support Services
Cambridgeshire County Council,01-Jun-17,23337761-15436147,-719.81,Redacted Personal Data,Individual,2 - Commissioning - Older people Pool,East Cambs - O P Team,Direct Payments - Social Services
Cambridgeshire County Council,01-Jun-17,23337763-15436149,-719.81,Redacted Personal Data,Individual,2 - Commissioning - Older people Pool,East Cambs - O P Team,SDS - Care and support Services
Cambridgeshire County Council,01-Jun-17,23337774-15436160,-719.81,Redacted Personal Data,Individual,2 - Commissioning - Older people Pool,East Cambs - O P Team,SDS - Care and support Services
Cambridgeshire County Council,01-Jun-17,23337779-15436165,-719.81,Redacted Personal Data,Individual,2 - Commissioning - Older people Pool,East Cambs - O P Team,Direct Payments - Social Services
Cambridgeshire County Council,01-Jun-17,23337785-15436171,-719.81,Redacted Personal Data,Individual,2 - Commissioning - Older people Pool,East Cambs - O P Team,Direct Payments - Social Services
Cambridgeshire County Council,01-Jun-17,23424551-15436657,-719.81,Redacted Personal Data,Individual,2 - Commissioning - Older people Pool,East Cambs - O P Team,Direct Payments - Social Services
Cambridgeshire County Council,01-Jun-17,23424494-15436674,-719.81,Redacted Personal Data,Individual,2 - Commissioning - Older people Pool,East Cambs - O P Team,SDS - Care and support Services
Cambridgeshire County Council,01-Jun-17,23424497-15436677,-719.81,Redacted Personal Data,Individual,2 - Commissioning - Older people Pool,East Cambs - O P Team,SDS - Care and support Services
Cambridgeshire County Council,01-Jun-17,23424563-15436689,-719.81,Redacted Personal Data,Individual,2 - Commissioning - Older people Pool,East Cambs - O P Team,SDS - Care and support Services
Cambridgeshire County Council,01-Jun-17,23390590-15436414,-719.81,Redacted Personal Data,Individual,2 - Commissioning - Older people Pool,East Cambs - O P Team,SDS - Care and support Services
Cambridgeshire County Council,01-Jun-17,23390593-15436417,-719.81,Redacted Personal Data,Individual,2 - Commissioning - Older people Pool,East Cambs - O P Team,SDS - Care and support Services
Cambridgeshire County Council,01-Jun-17,23417690-15436452,-719.81,Redacted Personal Data,Individual,2 - Commissioning - Older people Pool,East Cambs - O P Team,SDS - Care and support Services
Cambridgeshire County Council,01-Jun-17,23417696-15436458,-719.81,Redacted Personal Data,Individual,2 - Commissioning - Older people Pool,East Cambs - O P Team,Direct Payments - Social Services
Cambridgeshire County Council,01-Jun-17,23417720-15436482,-719.81,Redacted Personal Data,Individual,2 - Commissioning - Older people Pool,East Cambs - O P Team,SDS - Care and support Services
Cambridgeshire County Council,01-Jun-17,23417733-15436495,-719.81,Redacted Personal Data,Individual,2 - Commissioning - Older people Pool,East Cambs - O P Team,Direct Payments - Social Services
Cambridgeshire County Council,01-Jun-17,23417747-15436509,-719.81,Redacted Personal Data,Individual,2 - Commissioning - Older people Pool,East Cambs - O P Team,SDS - Care and support Services
Cambridgeshire County Council,01-Jun-17,23417761-15436523,-719.81,Redacted Personal Data,Individual,2 - Commissioning - Older people Pool,East Cambs - O P Team,SDS - Care and support Services
Cambridgeshire County Council,01-Jun-17,23417764-15436526,-719.81,Redacted Personal Data,Individual,2 - Commissioning - Older people Pool,East Cambs - O P Team,SDS - Care and support Services
Cambridgeshire County Council,01-Jun-17,23422452-15436536,-719.81,Redacted Personal Data,Individual,2 - Commissioning - Older people Pool,East Cambs - O P Team,SDS - Care and support Services
Cambridgeshire County Council,01-Jun-17,23422463-15436547,-719.81,Redacted Personal Data,Individual,2 - Commissioning - Older people Pool,East Cambs - O P Team,SDS - Care and support Services
Cambridgeshire County Council,01-Jun-17,23424514-15436620,-719.81,Redacted Personal Data,Individual,2 - Commissioning - Older people Pool,East Cambs - O P Team,SDS - Care and support Services
Cambridgeshire County Council,01-Jun-17,23424537-15436643,-719.81,Redacted Personal Data,Individual,2 - Commissioning - Older people Pool,East Cambs - O P Team,SDS - Care and support Services
Cambridgeshire County Council,01-Jun-17,23424544-15436650,-719.81,Redacted Personal Data,Individual,2 - Commissioning - Older people Pool,East Cambs - O P Team,Direct Payments - Social Services
Cambridgeshire County Council,29-Jun-17,23452664-15616695,-719.81,Redacted Personal Data,Individual,2 - Commissioning - Older people Pool,East Cambs - O P Team,SDS - Care and support Services
Cambridgeshire County Council,29-Jun-17,23452672-15616703,-719.81,Redacted Personal Data,Individual,2 - Commissioning - Older people Pool,East Cambs - O P Team,Direct Payments - Social Services
Cambridgeshire County Council,29-Jun-17,23636939-15616723,-719.81,Redacted Personal Data,Individual,2 - Commissioning - Older people Pool,East Cambs - O P Team,Direct Payments - Social Services
Cambridgeshire County Council,29-Jun-17,23636944-15616728,-719.81,Redacted Personal Data,Individual,2 - Commissioning - Older people Pool,East Cambs - O P Team,SDS - Care and support Services
Cambridgeshire County Council,29-Jun-17,23636950-15616734,-719.81,Redacted Personal Data,Individual,2 - Commissioning - Older people Pool,East Cambs - O P Team,Direct Payments - Social Services
Cambridgeshire County Council,29-Jun-17,23636912-15616753,-719.81,Redacted Personal Data,Individual,2 - Commissioning - Older people Pool,East Cambs - O P Team,SDS - Care and support Services
Cambridgeshire County Council,29-Jun-17,23452692-15616505,-719.81,Redacted Personal Data,Individual,2 - Commissioning - Older people Pool,East Cambs - O P Team,SDS - Care and support Services
Cambridgeshire County Council,29-Jun-17,23452695-15616508,-719.81,Redacted Personal Data,Individual,2 - Commissioning - Older people Pool,East Cambs - O P Team,SDS - Care and support Services
Cambridgeshire County Council,29-Jun-17,23452698-15616511,-719.81,Redacted Personal Data,Individual,2 - Commissioning - Older people Pool,East Cambs - O P Team,SDS - Care and support Services
Cambridgeshire County Council,29-Jun-17,23452729-15616524,-719.81,Redacted Personal Data,Individual,2 - Commissioning - Older people Pool,East Cambs - O P Team,Direct Payments - Social Services
Cambridgeshire County Council,29-Jun-17,23452733-15616528,-719.81,Redacted Personal Data,Individual,2 - Commissioning - Older people Pool,East Cambs - O P Team,Direct Payments - Social Services
Cambridgeshire County Council,29-Jun-17,23452734-15616529,-719.81,Redacted Personal Data,Individual,2 - Commissioning - Older people Pool,East Cambs - O P Team,SDS - Care and support Services
Cambridgeshire County Council,29-Jun-17,23452741-15616536,-719.81,Redacted Personal Data,Individual,2 - Commissioning - Older people Pool,East Cambs - O P Team,Direct Payments - Social Services
Cambridgeshire County Council,29-Jun-17,23452760-15616583,-719.81,Redacted Personal Data,Individual,2 - Commissioning - Older people Pool,East Cambs - O P Team,Direct Payments - Social Services
Cambridgeshire County Council,29-Jun-17,23452714-15616627,-719.81,Redacted Personal Data,Individual,2 - Commissioning - Older people Pool,East Cambs - O P Team,Direct Payments - Social Services
Cambridgeshire County Council,29-Jun-17,23452715-15616628,-719.81,Redacted Personal Data,Individual,2 - Commissioning - Older people Pool,East Cambs - O P Team,Direct Payments - Social Services
Cambridgeshire County Council,29-Jun-17,23452601-15616632,-719.81,Redacted Personal Data,Individual,2 - Commissioning - Older people Pool,East Cambs - O P Team,SDS - Care and support Services
Cambridgeshire County Council,29-Jun-17,23452630-15616661,-719.81,Redacted Personal Data,Individual,2 - Commissioning - Older people Pool,East Cambs - O P Team,SDS - Care and support Services
Cambridgeshire County Council,29-Jun-17,23452641-15616672,-719.81,Redacted Personal Data,Individual,2 - Commissioning - Older people Pool,East Cambs - O P Team,Direct Payments - Social Services
Cambridgeshire County Council,29-Jun-17,23580781-15616207,-719.81,Redacted Personal Data,Individual,2 - Commissioning - Older people Pool,East Cambs - O P Team,Direct Payments - Social Services
Cambridgeshire County Council,29-Jun-17,23580809-15616235,-719.81,Redacted Personal Data,Individual,2 - Commissioning - Older people Pool,East Cambs - O P Team,Direct Payments - Social Services
Cambridgeshire County Council,29-Jun-17,23580813-15616239,-719.81,Redacted Personal Data,Individual,2 - Commissioning - Older people Pool,East Cambs - O P Team,Direct Payments - Social Services
Cambridgeshire County Council,29-Jun-17,23487380-15616256,-719.81,Redacted Personal Data,Individual,2 - Commissioning - Older people Pool,East Cambs - O P Team,Direct Payments - Social Services
Cambridgeshire County Council,29-Jun-17,23487384-15616259,-719.81,Redacted Personal Data,Individual,2 - Commissioning - Older people Pool,East Cambs - O P Team,SDS - Care and support Services
Cambridgeshire County Council,29-Jun-17,23489427-15616269,-719.81,Redacted Personal Data,Individual,2 - Commissioning - Older people Pool,East Cambs - O P Team,Direct Payments - Social Services
Cambridgeshire County Council,29-Jun-17,23489433-15616274,-719.81,Redacted Personal Data,Individual,2 - Commissioning - Older people Pool,East Cambs - O P Team,Direct Payments - Social Services
Cambridgeshire County Council,29-Jun-17,23491245-15616317,-719.81,Redacted Personal Data,Individual,2 - Commissioning - Older people Pool,East Cambs - O P Team,Direct Payments - Social Services
Cambridgeshire County Council,29-Jun-17,23491251-15616323,-719.81,Redacted Personal Data,Individual,2 - Commissioning - Older people Pool,East Cambs - O P Team,SDS - Care and support Services
Cambridgeshire County Council,29-Jun-17,23491254-15616326,-719.81,Redacted Personal Data,Individual,2 - Commissioning - Older people Pool,East Cambs - O P Team,SDS - Care and support Services
Cambridgeshire County Council,29-Jun-17,23491260-15616332,-719.81,Redacted Personal Data,Individual,2 - Commissioning - Older people Pool,East Cambs - O P Team,SDS - Care and support Services
Cambridgeshire County Council,29-Jun-17,23490325-15616344,-719.81,Redacted Personal Data,Individual,2 - Commissioning - Older people Pool,East Cambs - O P Team,Direct Payments - Social Services
Cambridgeshire County Council,29-Jun-17,23487423-15616409,-719.81,Redacted Personal Data,Individual,2 - Commissioning - Older people Pool,East Cambs - O P Team,SDS - Care and support Services
Cambridgeshire County Council,29-Jun-17,23487447-15616427,-719.81,Redacted Personal Data,Individual,2 - Commissioning - Older people Pool,East Cambs - O P Team,Direct Payments - Social Services
Cambridgeshire County Council,29-Jun-17,23487478-15616451,-719.81,Redacted Personal Data,Individual,2 - Commissioning - Older people Pool,East Cambs - O P Team,Direct Payments - Social Services
Cambridgeshire County Council,29-Jun-17,23487484-15616456,-719.81,Redacted Personal Data,Individual,2 - Commissioning - Older people Pool,East Cambs - O P Team,Direct Payments - Social Services
Cambridgeshire County Council,29-Jun-17,23487504-15616472,-719.81,Redacted Personal Data,Individual,2 - Commissioning - Older people Pool,East Cambs - O P Team,Direct Payments - Social Services
Cambridgeshire County Council,29-Jun-17,23491231-15616365,-719.81,Redacted Personal Data,Individual,2 - Commissioning - Older people Pool,East Cambs - O P Team,Direct Payments - Social Services
Cambridgeshire County Council,29-Jun-17,23489451-15616370,-719.81,Redacted Personal Data,Individual,2 - Commissioning - Older people Pool,East Cambs - O P Team,Direct Payments - Social Services
Cambridgeshire County Council,29-Jun-17,23489456-15616374,-719.81,Redacted Personal Data,Individual,2 - Commissioning - Older people Pool,East Cambs - O P Team,SDS - Care and support Services
Cambridgeshire County Council,29-Jun-17,23489460-15616377,-719.81,Redacted Personal Data,Individual,2 - Commissioning - Older people Pool,East Cambs - O P Team,SDS - Care and support Services
Cambridgeshire County Council,29-Jun-17,23489461-15616378,-719.81,Redacted Personal Data,Individual,2 - Commissioning - Older people Pool,East Cambs - O P Team,SDS - Care and support Services
Cambridgeshire County Council,29-Jun-17,23489463-15616379,-719.81,Redacted Personal Data,Individual,2 - Commissioning - Older people Pool,East Cambs - O P Team,SDS - Care and support Services
Cambridgeshire County Council,29-Jun-17,23580974-15616028,-719.81,Redacted Personal Data,Individual,2 - Commissioning - Older people Pool,East Cambs - O P Team,Direct Payments - Social Services
Cambridgeshire County Council,29-Jun-17,23580983-15616037,-719.81,Redacted Personal Data,Individual,2 - Commissioning - Older people Pool,East Cambs - O P Team,SDS - Care and support Services
Cambridgeshire County Council,29-Jun-17,23580994-15616048,-719.81,Redacted Personal Data,Individual,2 - Commissioning - Older people Pool,East Cambs - O P Team,Direct Payments - Social Services
Cambridgeshire County Council,29-Jun-17,23581001-15616055,-719.81,Redacted Personal Data,Individual,2 - Commissioning - Older people Pool,East Cambs - O P Team,Direct Payments - Social Services
Cambridgeshire County Council,29-Jun-17,23581002-15616056,-719.81,Redacted Personal Data,Individual,2 - Commissioning - Older people Pool,East Cambs - O P Team,SDS - Care and support Services
Cambridgeshire County Council,29-Jun-17,23580829-15616067,-719.81,Redacted Personal Data,Individual,2 - Commissioning - Older people Pool,East Cambs - O P Team,SDS - Care and support Services
Cambridgeshire County Council,29-Jun-17,23580869-15616088,-719.81,Redacted Personal Data,Individual,2 - Commissioning - Older people Pool,East Cambs - O P Team,SDS - Care and support Services
Cambridgeshire County Council,29-Jun-17,23580888-15616107,-719.81,Redacted Personal Data,Individual,2 - Commissioning - Older people Pool,East Cambs - O P Team,Direct Payments - Social Services
Cambridgeshire County Council,29-Jun-17,23580933-15616114,-719.81,Redacted Personal Data,Individual,2 - Commissioning - Older people Pool,East Cambs - O P Team,Direct Payments - Social Services
Cambridgeshire County Council,29-Jun-17,23580955-15616136,-719.81,Redacted Personal Data,Individual,2 - Commissioning - Older people Pool,East Cambs - O P Team,Direct Payments - Social Services
Cambridgeshire County Council,29-Jun-17,23580959-15616140,-719.81,Redacted Personal Data,Individual,2 - Commissioning - Older people Pool,East Cambs - O P Team,SDS - Care and support Services
Cambridgeshire County Council,29-Jun-17,23580961-15616142,-719.81,Redacted Personal Data,Individual,2 - Commissioning - Older people Pool,East Cambs - O P Team,SDS - Care and support Services
Cambridgeshire County Council,29-Jun-17,23580899-15616154,-719.81,Redacted Personal Data,Individual,2 - Commissioning - Older people Pool,East Cambs - O P Team,Direct Payments - Social Services
Cambridgeshire County Council,29-Jun-17,23580925-15616178,-719.81,Redacted Personal Data,Individual,2 - Commissioning - Older people Pool,East Cambs - O P Team,Direct Payments - Social Services
Cambridgeshire County Council,29-Jun-17,23580927-15616180,-719.81,Redacted Personal Data,Individual,2 - Commissioning - Older people Pool,East Cambs - O P Team,Direct Payments - Social Services
Cambridgeshire County Council,29-Jun-17,23633779-15615852,-719.81,Redacted Personal Data,Individual,2 - Commissioning - Older people Pool,East Cambs - O P Team,Direct Payments - Social Services
Cambridgeshire County Council,29-Jun-17,23633695-15615949,-719.81,Redacted Personal Data,Individual,2 - Commissioning - Older people Pool,East Cambs - O P Team,Direct Payments - Social Services
Cambridgeshire County Council,29-Jun-17,23633709-15615963,-719.81,Redacted Personal Data,Individual,2 - Commissioning - Older people Pool,East Cambs - O P Team,Direct Payments - Social Services
Cambridgeshire County Council,29-Jun-17,23633713-15615967,-719.81,Redacted Personal Data,Individual,2 - Commissioning - Older people Pool,East Cambs - O P Team,SDS - Care and support Services
Cambridgeshire County Council,29-Jun-17,23633718-15615972,-719.81,Redacted Personal Data,Individual,2 - Commissioning - Older people Pool,East Cambs - O P Team,Direct Payments - Social Services
Cambridgeshire County Council,29-Jun-17,23633658-15615984,-719.81,Redacted Personal Data,Individual,2 - Commissioning - Older people Pool,East Cambs - O P Team,Direct Payments - Social Services
Cambridgeshire County Council,29-Jun-17,23633682-15616008,-719.81,Redacted Personal Data,Individual,2 - Commissioning - Older people Pool,East Cambs - O P Team,Direct Payments - Social Services
Cambridgeshire County Council,29-Jun-17,23633795-15615868,-719.81,Redacted Personal Data,Individual,2 - Commissioning - Older people Pool,East Cambs - O P Team,Direct Payments - Social Services
Cambridgeshire County Council,29-Jun-17,23633741-15615889,-719.81,Redacted Personal Data,Individual,2 - Commissioning - Older people Pool,East Cambs - O P Team,Direct Payments - Social Services
Cambridgeshire County Council,29-Jun-17,23633751-15615899,-719.81,Redacted Personal Data,Individual,2 - Commissioning - Older people Pool,East Cambs - O P Team,Direct Payments - Social Services
Cambridgeshire County Council,29-Jun-17,23641119-15615912,-719.81,Redacted Personal Data,Individual,2 - Commissioning - Older people Pool,East Cambs - O P Team,Direct Payments - Social Services
Cambridgeshire County Council,01-Jun-17,23337788-15436174,-719.81,Redacted Personal Data,Individual,2 - Commissioning - Older people Pool,East Cambs - O P Team,Direct Payments - Social Services
Cambridgeshire County Council,01-Jun-17,23384540-15436360,-719.81,Redacted Personal Data,Individual,2 - Commissioning - Older people Pool,East Cambs - O P Team,SDS - Care and support Services
Cambridgeshire County Council,01-Jun-17,23384553-15436372,-719.81,Redacted Personal Data,Individual,2 - Commissioning - Older people Pool,East Cambs - O P Team,SDS - Care and support Services
Cambridgeshire County Council,01-Jun-17,23384560-15436379,-719.81,Redacted Personal Data,Individual,2 - Commissioning - Older people Pool,East Cambs - O P Team,Direct Payments - Social Services
Cambridgeshire County Council,01-Jun-17,23384435-15436253,-719.81,Redacted Personal Data,Individual,2 - Commissioning - Older people Pool,East Cambs - O P Team,Direct Payments - Social Services
Cambridgeshire County Council,01-Jun-17,23384437-15436255,-719.81,Redacted Personal Data,Individual,2 - Commissioning - Older people Pool,East Cambs - O P Team,SDS - Care and support Services
Cambridgeshire County Council,01-Jun-17,23384439-15436259,-719.81,Redacted Personal Data,Individual,2 - Commissioning - Older people Pool,East Cambs - O P Team,SDS - Care and support Services
Cambridgeshire County Council,01-Jun-17,23384446-15436266,-719.81,Redacted Personal Data,Individual,2 - Commissioning - Older people Pool,East Cambs - O P Team,Direct Payments - Social Services
Cambridgeshire County Council,01-Jun-17,23384447-15436267,-719.81,Redacted Personal Data,Individual,2 - Commissioning - Older people Pool,East Cambs - O P Team,SDS - Care and support Services
Cambridgeshire County Council,01-Jun-17,23384465-15436285,-719.81,Redacted Personal Data,Individual,2 - Commissioning - Older people Pool,East Cambs - O P Team,Direct Payments - Social Services
Cambridgeshire County Council,01-Jun-17,23384466-15436286,-719.81,Redacted Personal Data,Individual,2 - Commissioning - Older people Pool,East Cambs - O P Team,Direct Payments - Social Services
Cambridgeshire County Council,01-Jun-17,23384472-15436292,-719.81,Redacted Personal Data,Individual,2 - Commissioning - Older people Pool,East Cambs - O P Team,Direct Payments - Social Services
Cambridgeshire County Council,01-Jun-17,23384480-15436300,-719.81,Redacted Personal Data,Individual,2 - Commissioning - Older people Pool,East Cambs - O P Team,Direct Payments - Social Services
Cambridgeshire County Council,01-Jun-17,23384487-15436307,-719.81,Redacted Personal Data,Individual,2 - Commissioning - Older people Pool,East Cambs - O P Team,Direct Payments - Social Services
Cambridgeshire County Council,01-Jun-17,23334990-15435985,-719.81,Redacted Personal Data,Individual,2 - Commissioning - Older people Pool,East Cambs - O P Team,SDS - Care and support Services
Cambridgeshire County Council,01-Jun-17,23334996-15435991,-719.81,Redacted Personal Data,Individual,2 - Commissioning - Older people Pool,East Cambs - O P Team,SDS - Care and support Services
Cambridgeshire County Council,01-Jun-17,23335006-15436001,-719.81,Redacted Personal Data,Individual,2 - Commissioning - Older people Pool,East Cambs - O P Team,SDS - Care and support Services
Cambridgeshire County Council,01-Jun-17,23337142-15436027,-719.81,Redacted Personal Data,Individual,2 - Commissioning - Older people Pool,East Cambs - O P Team,SDS - Care and support Services
